Service Area,Service Division,Expense Type,Expense Code,Detailed Expense Type,Payment Date,Transaction Number,Amount Exc VAT,Supplier Name
Adult and Health Services,Head of Adults,Third Party Payments 4THIRD,470101,Purchase of Care,01/05/2018,3430429-3616,"32,470.00",OVERSANDS SCHOOL.
Adult and Health Services,Head of Adults,Third Party Payments 4THIRD,470101,Purchase of Care,01/05/2018,3430480-0000158370,"38,543.67",SCOPE.
Children and Young Peoples Services,Head of Early Help Assessment and Safeguarding,Third Party Payments 4THIRD,425023,Rendered by Voluntary Organisations,01/05/2018,3430189-CHI035551,"13,833.33",CAMBIAN WHINFELL SCHOOL LTD.
Children and Young Peoples Services,Head of Education,Third Party Payments 4THIRD,440999,Other third party payments E440,01/05/2018,3430244-006/19/0712,"1,001.86",DISC LTD.
Children and Young Peoples Services,Head of Looked After Provision Permanence and Care Leavers,Supplies and Services,336005,Advertising E336,01/05/2018,3430278-SINV00160618,820.60,EXTERION MEDIA (UK) LTD.
Children and Young Peoples Services,Head of Early Help Assessment and Safeguarding,Supplies and Services,384302,Miscellaneous Expenses,01/05/2018,3430389-283,"1,325.00",MOUNTAIN ACTIVITY CO.
Children and Young Peoples Services,Head of Early Help Assessment and Safeguarding,Third Party Payments 4THIRD,425023,Rendered by Voluntary Organisations,01/05/2018,3430511-634,"11,666.67",TALBOT HOUSE SCHOOL.
Children and Young Peoples Services,Head of Early Help Assessment and Safeguarding,Third Party Payments 4THIRD,425023,Rendered by Voluntary Organisations,01/05/2018,3430561-110,"19,874.00",WITHERSLACK GROUP LTD T/A ASHBROOKE SCHOOL.
Children and Young Peoples Services,Head of Early Help Assessment and Safeguarding,Third Party Payments 4THIRD,425023,Rendered by Voluntary Organisations,01/05/2018,3430562-115,"18,880.30",WITHERSLACK GROUP LTD.
Dedicated Schools Grant,DSG High Needs Block,Transfer Payments,510034,School Children,01/05/2018,3430169-LACPP1718SPRING,500.00,BIDDICK ACADEMY.
Non-Service Specific,Non Service Specific-Financing,Long Term Debtors,924001,Car loans,01/05/2018,3430149-113654,"1,210.00",ARRIVA DURHAM COUNTY LTD.
Non-Service Specific,Non Service Specific-Financing,Long Term Debtors,924001,Car loans,01/05/2018,3430298-65291,700.00,GO GATESHEAD LTD.
Regeneration and Local Services,Culture & Sport,Supplies and Services,308011,Furniture,01/05/2018,3430131-161795,855.00,ALBANY OFFICE EQUIPMENT (WHOLESALE) LTD.
Regeneration and Local Services,Technical Services,Supplies and Services,304358,Equipment and Materials,01/05/2018,3430145-29766,"2,587.50",AQUAJET DRAIN CLEANING LTD.
Regeneration and Local Services,Technical Services,Supplies and Services,304358,Equipment and Materials,01/05/2018,3430145-29767,"2,587.50",AQUAJET DRAIN CLEANING LTD.
Regeneration and Local Services,Technical Services,Supplies and Services,338027,Services,01/05/2018,3430152-18012475,"5,394.00",ATKINS GLOBAL.
Regeneration and Local Services,Technical Services,Third Party Payments 4THIRD,430100,Rendered by Private Contractors,01/05/2018,3430162-1760003,"31,235.22",BCE NORTHERN LTD.
Regeneration and Local Services,Technical Services,Third Party Payments 4THIRD,430100,Rendered by Private Contractors,01/05/2018,3430162-1760004,"9,293.70",BCE NORTHERN LTD.
Regeneration and Local Services,Direct Services,Third Party Payments 4THIRD,430100,Rendered by Private Contractors,01/05/2018,3430167-46053603,772.00,BELL TRUCK SALES LTD T/A BELL TRUCK & VAN.
Regeneration and Local Services,Direct Services,Third Party Payments 4THIRD,430100,Rendered by Private Contractors,01/05/2018,3430167-46054088,591.04,BELL TRUCK SALES LTD T/A BELL TRUCK & VAN.
Regeneration and Local Services,Technical Services,Third Party Payments 4THIRD,430100,Rendered by Private Contractors,01/05/2018,3430178-1278010377,"2,199.35",BOUYGUES E&S INFRASTRUCTURE UK LTD.
Regeneration and Local Services,Technical Services,Third Party Payments 4THIRD,430100,Rendered by Private Contractors,01/05/2018,3430178-1278010378,"1,957.66",BOUYGUES E&S INFRASTRUCTURE UK LTD.
Regeneration and Local Services,Technical Services,Third Party Payments 4THIRD,430100,Rendered by Private Contractors,01/05/2018,3430178-1278010379,"3,089.19",BOUYGUES E&S INFRASTRUCTURE UK LTD.
Regeneration and Local Services,Direct Services,Supplies and Services,304358,Equipment and Materials,01/05/2018,3430187-05550,700.00,BW HAULAGE LTD.
Regeneration and Local Services,Culture & Sport,Supplies and Services,384199,Miscellaneous Expenses,01/05/2018,3430207-000992,"1,000.00",CLEARVIEW TECHNICAL LTD.
Regeneration and Local Services,Direct Services,Supplies and Services,304221,Equipment and Materials,01/05/2018,3430230-INV0123605,"5,032.83",CROMWELL POLYTHENE LTD.
Regeneration and Local Services,Direct Services,Third Party Payments 4THIRD,430100,Rendered by Private Contractors,01/05/2018,3430240-323744,"1,120.75",DENNIS EAGLE LTD.
Regeneration and Local Services,Direct Services,Third Party Payments 4THIRD,430101,Rendered by Private Contractors,01/05/2018,3430243-IV964788,"1,547.59",DIRECT TYRE MANAGEMENT (DTM).
Regeneration and Local Services,Economic Development and Housing,Supplies and Services,338066,Services,01/05/2018,3430247-PSI001645,"4,166.67",DOCOBO LTD.
Regeneration and Local Services,Technical Services,Supplies and Services,304221,Equipment and Materials,01/05/2018,3430274-1803\228,642.44,EPPLETON QUARRY PRODUCTS LTD.
Regeneration and Local Services,Technical Services,Supplies and Services,304221,Equipment and Materials,01/05/2018,3430274-1803\281,"1,027.00",EPPLETON QUARRY PRODUCTS LTD.
Regeneration and Local Services,Technical Services,Supplies and Services,304221,Equipment and Materials,01/05/2018,3430295-746933,591.84,GLASDON UK LTD.
Regeneration and Local Services,Direct Services,Supplies and Services,304259,Equipment and Materials,01/05/2018,3430295-745065,"2,769.94",GLASDON UK LTD.
Regeneration and Local Services,Transport and Contracted Services,Third Party Payments 4THIRD,430106,Rendered by Private Contractors,01/05/2018,3430298-65531,"104,862.52",GO GATESHEAD LTD.
Regeneration and Local Services,Direct Services,Third Party Payments 4THIRD,430100,Rendered by Private Contractors,01/05/2018,3430314-72599,969.43,HOGARTH COACHWORKS LTD.
Regeneration and Local Services,Direct Services,Third Party Payments 4THIRD,430100,Rendered by Private Contractors,01/05/2018,3430314-72749,"1,474.05",HOGARTH COACHWORKS LTD.
Regeneration and Local Services,Direct Services,Third Party Payments 4THIRD,430100,Rendered by Private Contractors,01/05/2018,3430314-72774,647.50,HOGARTH COACHWORKS LTD.
Regeneration and Local Services,Technical Services,Construction work A908,908105,Construction work,01/05/2018,3430328-21573,883.20,JACK COUPE & SONS LTD T/A COUPE LINE.
Regeneration and Local Services,Direct Services,Third Party Payments 4THIRD,430100,Rendered by Private Contractors,01/05/2018,3430339-65281806,502.56,JOHNSTON SWEEPERS LTD.
Regeneration and Local Services,Technical Services,Supplies and Services,304221,Equipment and Materials,01/05/2018,3430341-BII251055,"4,095.00",JT DOVE LTD.
Regeneration and Local Services,Technical Services,Supplies and Services,304221,Equipment and Materials,01/05/2018,3430342-GOI881/D,"1,173.32",JT DOVE LTD.
Regeneration and Local Services,Technical Services,Supplies and Services,304358,Equipment and Materials,01/05/2018,3430348-2121,930.00,KEVIN SNOWDON GROUNDWORKS LTD.
Regeneration and Local Services,Technical Services,Supplies and Services,304358,Equipment and Materials,01/05/2018,3430348-2122,"2,103.00",KEVIN SNOWDON GROUNDWORKS LTD.
Regeneration and Local Services,Technical Services,Supplies and Services,304358,Equipment and Materials,01/05/2018,3430348-2123,"1,168.00",KEVIN SNOWDON GROUNDWORKS LTD.
Regeneration and Local Services,Technical Services,Supplies and Services,304358,Equipment and Materials,01/05/2018,3430348-2124,"1,168.00",KEVIN SNOWDON GROUNDWORKS LTD.
Regeneration and Local Services,Technical Services,Supplies and Services,304358,Equipment and Materials,01/05/2018,3430348-2125,643.50,KEVIN SNOWDON GROUNDWORKS LTD.
Regeneration and Local Services,Technical Services,Supplies and Services,304358,Equipment and Materials,01/05/2018,3430348-2126,635.25,KEVIN SNOWDON GROUNDWORKS LTD.
Regeneration and Local Services,Technical Services,Supplies and Services,304358,Equipment and Materials,01/05/2018,3430348-2127,643.50,KEVIN SNOWDON GROUNDWORKS LTD.
Regeneration and Local Services,Technical Services,Supplies and Services,304358,Equipment and Materials,01/05/2018,3430348-2128,528.00,KEVIN SNOWDON GROUNDWORKS LTD.
Regeneration and Local Services,Technical Services,Supplies and Services,304358,Equipment and Materials,01/05/2018,3430348-2129,610.50,KEVIN SNOWDON GROUNDWORKS LTD.
Regeneration and Local Services,Technical Services,Supplies and Services,304358,Equipment and Materials,01/05/2018,3430348-2130,"1,099.00",KEVIN SNOWDON GROUNDWORKS LTD.
Regeneration and Local Services,Technical Services,Supplies and Services,304358,Equipment and Materials,01/05/2018,3430348-2132,943.00,KEVIN SNOWDON GROUNDWORKS LTD.
Regeneration and Local Services,Technical Services,Supplies and Services,304358,Equipment and Materials,01/05/2018,3430348-2133,610.50,KEVIN SNOWDON GROUNDWORKS LTD.
Regeneration and Local Services,Technical Services,Supplies and Services,304358,Equipment and Materials,01/05/2018,3430348-2134,842.00,KEVIN SNOWDON GROUNDWORKS LTD.
Regeneration and Local Services,Technical Services,Supplies and Services,304358,Equipment and Materials,01/05/2018,3430348-2135,"1,308.00",KEVIN SNOWDON GROUNDWORKS LTD.
Regeneration and Local Services,Technical Services,Supplies and Services,304358,Equipment and Materials,01/05/2018,3430348-2136,832.00,KEVIN SNOWDON GROUNDWORKS LTD.
Regeneration and Local Services,Technical Services,Supplies and Services,304358,Equipment and Materials,01/05/2018,3430348-2137,555.00,KEVIN SNOWDON GROUNDWORKS LTD.
Regeneration and Local Services,Technical Services,Supplies and Services,304358,Equipment and Materials,01/05/2018,3430348-2140,"1,145.00",KEVIN SNOWDON GROUNDWORKS LTD.
Regeneration and Local Services,Technical Services,Supplies and Services,304358,Equipment and Materials,01/05/2018,3430348-2141,736.00,KEVIN SNOWDON GROUNDWORKS LTD.
Regeneration and Local Services,Technical Services,Supplies and Services,304358,Equipment and Materials,01/05/2018,3430348-2143,570.00,KEVIN SNOWDON GROUNDWORKS LTD.
Regeneration and Local Services,Technical Services,Supplies and Services,304358,Equipment and Materials,01/05/2018,3430348-2147,690.00,KEVIN SNOWDON GROUNDWORKS LTD.
Regeneration and Local Services,Technical Services,Supplies and Services,304358,Equipment and Materials,01/05/2018,3430348-2148,911.00,KEVIN SNOWDON GROUNDWORKS LTD.
Regeneration and Local Services,Technical Services,Supplies and Services,304358,Equipment and Materials,01/05/2018,3430348-2150,837.00,KEVIN SNOWDON GROUNDWORKS LTD.
Regeneration and Local Services,Technical Services,Supplies and Services,304358,Equipment and Materials,01/05/2018,3430348-2152,511.50,KEVIN SNOWDON GROUNDWORKS LTD.
Regeneration and Local Services,Technical Services,Supplies and Services,304358,Equipment and Materials,01/05/2018,3430348-2158,777.00,KEVIN SNOWDON GROUNDWORKS LTD.
Regeneration and Local Services,Technical Services,Supplies and Services,304358,Equipment and Materials,01/05/2018,3430348-2159,702.00,KEVIN SNOWDON GROUNDWORKS LTD.
Regeneration and Local Services,Direct Services,Supplies and Services,304358,Equipment and Materials,01/05/2018,3430372-16BB,637.50,M & E & MR WALTON.
Regeneration and Local Services,Technical Services,Third Party Payments 4THIRD,430127,Rendered by Private Contractors,01/05/2018,3430378-5597,599.00,MAKEPEACE MOTORS.
Regeneration and Local Services,Direct Services,Third Party Payments 4THIRD,430100,Rendered by Private Contractors,01/05/2018,3430396-21006,"1,031.90",MULTEVO LTD.
Regeneration and Local Services,Technical Services,Supplies and Services,304358,Equipment and Materials,01/05/2018,3430407-NC/025/BW,"2,035.00",NEDCO CONTRACTS (NE) LTD.
Regeneration and Local Services,Technical Services,Third Party Payments 4THIRD,430100,Rendered by Private Contractors,01/05/2018,3430407-NC2/C620/BW,"17,087.75",NEDCO CONTRACTS (NE) LTD.
Regeneration and Local Services,Technical Services,Supplies and Services,304221,Equipment and Materials,01/05/2018,3430416-170083,634.50,NORTH EAST CONCRETE LTD.
Regeneration and Local Services,Technical Services,Third Party Payments 4THIRD,430100,Rendered by Private Contractors,01/05/2018,3430419-DI20281904,"2,298.20",NORTHERN POWERGRID (NORTHEAST) LTD.
Regeneration and Local Services,Culture & Sport,Supplies and Services,338047,Services,01/05/2018,3430433-R2168948,505.58,PARAMOUNT PICTURES UK.
Regeneration and Local Services,Culture & Sport,Supplies and Services,338047,Services,01/05/2018,3430489-1212411-1,574.00,SONY PICTURES RELEASING.
Regeneration and Local Services,Economic Development and Housing,Construction work A908,908105,Construction work,01/05/2018,3430497-6177,"10,680.00",ST ASTIER LTD.
Regeneration and Local Services,Direct Services,Supplies and Services,338099,Services,01/05/2018,3430502-SA136-17,707.00,STRAY AID LTD.
Regeneration and Local Services,Culture & Sport,Supplies and Services,344033,Telephones,01/05/2018,3430517-5155,500.00,THE AUDIENCE AGENCY.
Regeneration and Local Services,Technical Services,Stock A926,926900,Stock in hand-Inventory system,01/05/2018,3430527-N/IN217434,"3,630.67",THOMAS OWEN & SONS (NEWCASTLE) LTD.
Regeneration and Local Services,Technical Services,Supplies and Services,304221,Equipment and Materials,01/05/2018,3430543-183294,906.56,TYNEDALE ROADSTONE LTD.
Regeneration and Local Services,Culture & Sport,Supplies and Services,338047,Services,01/05/2018,3430547-1784,"3,621.33",UNIQUE GRAVITY.
Regeneration and Local Services,Technical Services,Supplies and Services,304358,Equipment and Materials,01/05/2018,3430554-44959,"2,000.00",W MARLEY AGRICULTURAL CONTRACTORS LTD.
Regeneration and Local Services,Transport and Contracted Services,Third Party Payments 4THIRD,430106,Rendered by Private Contractors,01/05/2018,3430558-1454,"19,151.93",WEARDALE MOTOR SERVICES LTD.
Regeneration and Local Services,Technical Services,Supplies and Services,304358,Equipment and Materials,01/05/2018,3430571-6868,"1,420.00",YOULL CONSTRUCTION LTD.
Regeneration and Local Services,Technical Services,Supplies and Services,304358,Equipment and Materials,01/05/2018,3430571-6869,"1,004.00",YOULL CONSTRUCTION LTD.
Regeneration and Local Services,Technical Services,Supplies and Services,304358,Equipment and Materials,01/05/2018,3430571-7035,"1,404.00",YOULL CONSTRUCTION LTD.
Regeneration and Local Services,Technical Services,Supplies and Services,304358,Equipment and Materials,01/05/2018,3430571-7036,"1,101.75",YOULL CONSTRUCTION LTD.
Regeneration and Local Services,Technical Services,Supplies and Services,304358,Equipment and Materials,01/05/2018,3430571-7037,"1,512.00",YOULL CONSTRUCTION LTD.
Regeneration and Local Services,Technical Services,Supplies and Services,304358,Equipment and Materials,01/05/2018,3430571-7047,"1,512.00",YOULL CONSTRUCTION LTD.
Regeneration and Local Services,Technical Services,Supplies and Services,304358,Equipment and Materials,01/05/2018,3430571-7049,576.00,YOULL CONSTRUCTION LTD.
Regeneration and Local Services,Technical Services,Supplies and Services,304358,Equipment and Materials,01/05/2018,3430571-7052,"1,508.00",YOULL CONSTRUCTION LTD.
Resources,Legal & Democratic Services,Supplies and Services,338042,Services,01/05/2018,3430388-329510/INVRR67,600.00,MISS RAVINDER RANDHAWA.
Resources,Digital and Customer Services,Supplies and Services,304252,Equipment and Materials,01/05/2018,3430409-92426546,"2,390.86",NEOPOST LTD.
Resources,Legal & Democratic Services,Supplies and Services,338057,Services,01/05/2018,3430437-PPSLPMSMARCH2018,508.52,PATEL PATH SERVICES LTD.
Resources,Legal & Democratic Services,Supplies and Services,338042,Services,01/05/2018,3430537-243494,500.00,TRINITY CHAMBERS.
Transformation and Partnerships,Partnerships & Community Engagement Div.,Supplies and Services,308011,Furniture,01/05/2018,3430225-FUR005,"5,677.50",COUNTY DURHAM FURNITURE HELP SCHEME (CDFHS).
Adult and Health Services,Head of Adults,Employees,080025,Agency Staff,02/05/2018,3431438-1054391,"123,172.86",DE POEL MANAGED SERVICES LTD.
Adult and Health Services,Head of Adults,Transport,230005,Contract Hire,02/05/2018,3431473-2018/0024,590.00,ELLIOTTS OF TRIMDON.
Adult and Health Services,Head of Adults,Supplies and Services,338429,Services,02/05/2018,309603-1APRIL18,546.00,WEST HALL BOARDING KENNELS & LIVERY YARD.
Children and Young Peoples Services,Head of Education,Transport,230008,Contract Hire,02/05/2018,3431324-10/18A,"1,766.00",ADVANCE TRAVEL.
Children and Young Peoples Services,Head of Looked After Provision Permanence and Care Leavers,Third Party Payments 4THIRD,425041,Rendered by Voluntary Organisations,02/05/2018,3431335-ARC1718-174,"9,000.00",ARC ADOPTION NORTH EAST.
Children and Young Peoples Services,Head of Education,Supplies and Services,338001,Services,02/05/2018,3431343-18014660,"8,000.00",ATKINS GLOBAL.
Children and Young Peoples Services,Head of Early Help Assessment and Safeguarding,Third Party Payments 4THIRD,425023,Rendered by Voluntary Organisations,02/05/2018,3431386-4458,"34,583.00",CEDAR HOUSE & LOWGATE HOUSE SCHOOL LTD.
Children and Young Peoples Services,Head of Education,Transport,230008,Contract Hire,02/05/2018,3431397-INV016,"1,200.00",CLARE LYNSEY STEWART T/A K&C TAXIS.
Children and Young Peoples Services,Head of Looked After Provision Permanence and Care Leavers,Supplies and Services,384199,Miscellaneous Expenses,02/05/2018,3431459-0000042855,675.00,EAST DURHAM COLLEGE.
Children and Young Peoples Services,Head of Early Help Assessment and Safeguarding,Third Party Payments 4THIRD,425023,Rendered by Voluntary Organisations,02/05/2018,3431528-4140000810,"31,471.00",HURWORTH HOUSE PRIORY.
Children and Young Peoples Services,Head of Early Help Assessment and Safeguarding,Supplies and Services,338043,Services,02/05/2018,309550-BRO966,"2,765.40",MEIKLES SOLICITORS.
Children and Young Peoples Services,Head of Early Help Assessment and Safeguarding,Third Party Payments 4THIRD,425023,Rendered by Voluntary Organisations,02/05/2018,3431674-CHI035553,"13,833.33",S/C 200000 CAMBIAN CHILDCARE LTD.
Children and Young Peoples Services,Head of Looked After Provision Permanence and Care Leavers,Third Party Payments 4THIRD,425021,Rendered by Voluntary Organisations,02/05/2018,3431720-647,"54,596.16",TALBOT HOUSE SCHOOL.
Children and Young Peoples Services,Head of Early Help Assessment and Safeguarding,Third Party Payments 4THIRD,425023,Rendered by Voluntary Organisations,02/05/2018,3431720-646,"54,596.16",TALBOT HOUSE SCHOOL.
Children and Young Peoples Services,Head of Education,Transport,230008,Contract Hire,02/05/2018,3431759-GAPINVOICE103,616.00,TRIDENT TAXIS.
Children and Young Peoples Services,Head of Education,Transport,230008,Contract Hire,02/05/2018,3431780-GAP/28,720.00,WAYSIDE TAXIS.
Children and Young Peoples Services,Head of Looked After Provision Permanence and Care Leavers,Third Party Payments 4THIRD,425021,Rendered by Voluntary Organisations,02/05/2018,3431786-583,"70,609.00",WITHERSLACK GROUP LTD.
Children and Young Peoples Services,Head of Looked After Provision Permanence and Care Leavers,Third Party Payments 4THIRD,425021,Rendered by Voluntary Organisations,02/05/2018,3431786-584,"70,609.00",WITHERSLACK GROUP LTD.
Children and Young Peoples Services,Head of Looked After Provision Permanence and Care Leavers,Third Party Payments 4THIRD,425021,Rendered by Voluntary Organisations,02/05/2018,3431786-588,"70,609.00",WITHERSLACK GROUP LTD.
Children and Young Peoples Services,Head of Looked After Provision Permanence and Care Leavers,Third Party Payments 4THIRD,425021,Rendered by Voluntary Organisations,02/05/2018,3431786-614,"81,553.33",WITHERSLACK GROUP LTD.
Children and Young Peoples Services,Head of Early Help Assessment and Safeguarding,Third Party Payments 4THIRD,425023,Rendered by Voluntary Organisations,02/05/2018,3431786-107,"18,880.30",WITHERSLACK GROUP LTD.
Children and Young Peoples Services,Head of Early Help Assessment and Safeguarding,Third Party Payments 4THIRD,425023,Rendered by Voluntary Organisations,02/05/2018,3431786-581,"87,770.33",WITHERSLACK GROUP LTD.
Children and Young Peoples Services,Head of Early Help Assessment and Safeguarding,Third Party Payments 4THIRD,425023,Rendered by Voluntary Organisations,02/05/2018,3431786-607,"87,770.33",WITHERSLACK GROUP LTD.
Children and Young Peoples Services,Head of Early Help Assessment and Safeguarding,Third Party Payments 4THIRD,425023,Rendered by Voluntary Organisations,02/05/2018,3431786-686,"21,824.66",WITHERSLACK GROUP LTD.
Dedicated Schools Grant,DSG High Needs Block,Transfer Payments,510034,School Children,02/05/2018,309589-LACPP1718SPRING,"1,390.00",OXCLOSE COMMUNITY ACADEMY.
Dedicated Schools Grant,DSG High Needs Block,Supplies and Services,384199,Miscellaneous Expenses,02/05/2018,3431702-SP001672,"3,300.00",SPEECH LINK MULTIMEDIA LTD.
Dedicated Schools Grant,DSG High Needs Block,Supplies and Services,384199,Miscellaneous Expenses,02/05/2018,3431702-SP001674,"1,850.00",SPEECH LINK MULTIMEDIA LTD.
Dedicated Schools Grant,DSG High Needs Block,Supplies and Services,384199,Miscellaneous Expenses,02/05/2018,3431702-SP001675,"3,225.00",SPEECH LINK MULTIMEDIA LTD.
Dedicated Schools Grant,DSG High Needs Block,Supplies and Services,384199,Miscellaneous Expenses,02/05/2018,3431702-SP001678,"6,425.00",SPEECH LINK MULTIMEDIA LTD.
Dedicated Schools Grant,DSG High Needs Block,Supplies and Services,384199,Miscellaneous Expenses,02/05/2018,3431702-SP001679,"4,500.00",SPEECH LINK MULTIMEDIA LTD.
Regeneration and Local Services,Direct Services,Supplies and Services,304221,Equipment and Materials,02/05/2018,3431330-16701,"1,250.00",AMBIC LTD.
Regeneration and Local Services,Economic Development and Housing,Supplies and Services,384700,Miscellaneous Expenses,02/05/2018,3431349-RED-04-2018-203,500.00,BAKO NORTHERN AREA.
Regeneration and Local Services,Economic Development and Housing,Third Party Payments 4THIRD,460305,Contract Payments,02/05/2018,3431373-RED-04-2018-204,"2,913.26",BUSINESS & ENTERPRISE COMMERCIAL LTD T/A BE GROUP.
Regeneration and Local Services,Technical Services,Stock A926,926004,Stock,02/05/2018,3431401-400006577,"5,703.39",CLEVELAND POTASH LTD T/A ICL FERTILIZERS.
Regeneration and Local Services,Technical Services,Stock A926,926004,Stock,02/05/2018,3431401-400009397,875.07,CLEVELAND POTASH LTD T/A ICL FERTILIZERS.
Regeneration and Local Services,Technical Services,Supplies and Services,342033,Computers and Communications,02/05/2018,3431441-7402433988,"14,007.60",DELL COMPUTER CORPORATION LTD.
Regeneration and Local Services,Direct Services,Third Party Payments 4THIRD,430100,Rendered by Private Contractors,02/05/2018,3431443-96355356,526.88,DENNIS EAGLE LTD T/A TERBERG MATEC (UK) LTD.
Regeneration and Local Services,Direct Services,Third Party Payments 4THIRD,430100,Rendered by Private Contractors,02/05/2018,3431443-96355361,"1,304.83",DENNIS EAGLE LTD T/A TERBERG MATEC (UK) LTD.
Regeneration and Local Services,Direct Services,Supplies and Services,384956,Miscellaneous Expenses,02/05/2018,3431476-H00107579,870.00,ENVIRONMENT AGENCY.
Regeneration and Local Services,Direct Services,Stock A926,926004,Stock,02/05/2018,3431499-IN197954,"1,512.40",GB LUBRICANTS LTD.
Regeneration and Local Services,Technical Services,Supplies and Services,304358,Equipment and Materials,02/05/2018,3431502-73611,"3,603.75",GEORGE VARDY HAULAGE.
Regeneration and Local Services,Technical Services,Supplies and Services,304358,Equipment and Materials,02/05/2018,3431502-73824,"2,722.50",GEORGE VARDY HAULAGE.
Regeneration and Local Services,Technical Services,Supplies and Services,304358,Equipment and Materials,02/05/2018,3431502-73825,654.88,GEORGE VARDY HAULAGE.
Regeneration and Local Services,Economic Development and Housing,Premises,106080,Centrally Controlled Rep and Maint,02/05/2018,3431505-CD970160696,"10,961.69",GRAHAM ENVIRONMENTAL SERVICES.*
Regeneration and Local Services,Direct Services,Premises,106080,Centrally Controlled Rep and Maint,02/05/2018,3431505-CD970160697,"11,271.20",GRAHAM ENVIRONMENTAL SERVICES.*
Regeneration and Local Services,Economic Development and Housing,Premises,106080,Centrally Controlled Rep and Maint,02/05/2018,3431505-CD970160699,"6,693.72",GRAHAM ENVIRONMENTAL SERVICES.*
Regeneration and Local Services,Economic Development and Housing,Premises,106080,Centrally Controlled Rep and Maint,02/05/2018,3431505-CD970160700,"13,244.67",GRAHAM ENVIRONMENTAL SERVICES.*
Regeneration and Local Services,Economic Development and Housing,Premises,106080,Centrally Controlled Rep and Maint,02/05/2018,3431505-CD970160959,"9,190.41",GRAHAM ENVIRONMENTAL SERVICES.*
Regeneration and Local Services,Culture & Sport,Supplies and Services,332047,Printing Stationery and Gen Off Exps,02/05/2018,3431520-18985,"1,594.00",HI TECH SECURITY PRINT LTD.
Regeneration and Local Services,Direct Services,Third Party Payments 4THIRD,430100,Rendered by Private Contractors,02/05/2018,3431530-70757,977.50,IAN BRADLEY RECOVERY LTD.
Regeneration and Local Services,Technical Services,Construction work A908,908105,Construction work,02/05/2018,3431540-21610,976.31,JACK COUPE & SONS LTD T/A COUPE LINE.
Regeneration and Local Services,Technical Services,Third Party Payments 4THIRD,430100,Rendered by Private Contractors,02/05/2018,3431553-0000081405,"5,469.05",JOHN WADE (HAULAGE) LTD.
Regeneration and Local Services,Technical Services,Third Party Payments 4THIRD,430100,Rendered by Private Contractors,02/05/2018,3431553-0000081407,"3,667.01",JOHN WADE (HAULAGE) LTD.
Regeneration and Local Services,Technical Services,Third Party Payments 4THIRD,430127,Rendered by Private Contractors,02/05/2018,3431556-6099,"54,285.50",JR TIPLADY.
Regeneration and Local Services,Technical Services,Stock A926,926900,Stock in hand-Inventory system,02/05/2018,3431557-STI475794,539.55,JT DOVE LTD.
Regeneration and Local Services,Direct Services,Transport,230005,Contract Hire,02/05/2018,3431567-4449688,"2,340.00",LEEDS COMMERCIAL LTD.
Regeneration and Local Services,Direct Services,Transport,230005,Contract Hire,02/05/2018,3431567-4449722,846.00,LEEDS COMMERCIAL LTD.
Regeneration and Local Services,Direct Services,Transport,230005,Contract Hire,02/05/2018,3431567-4449889,"1,149.00",LEEDS COMMERCIAL LTD.
Regeneration and Local Services,Direct Services,Transport,210057,Repair and Maintenance of Vehicles,02/05/2018,3431581-31283,580.36,MAJOR & ASPINALL LTD.
Regeneration and Local Services,Technical Services,Third Party Payments 4THIRD,430127,Rendered by Private Contractors,02/05/2018,3431582-5580,"2,848.00",MAKEPEACE MOTORS.
Regeneration and Local Services,Technical Services,Third Party Payments 4THIRD,430127,Rendered by Private Contractors,02/05/2018,3431582-5581,"2,808.00",MAKEPEACE MOTORS.
Regeneration and Local Services,Technical Services,Third Party Payments 4THIRD,430127,Rendered by Private Contractors,02/05/2018,3431582-5584,"3,583.00",MAKEPEACE MOTORS.
Regeneration and Local Services,Technical Services,Third Party Payments 4THIRD,430127,Rendered by Private Contractors,02/05/2018,3431582-5585,"3,443.00",MAKEPEACE MOTORS.
Regeneration and Local Services,Technical Services,Third Party Payments 4THIRD,430127,Rendered by Private Contractors,02/05/2018,3431582-5595,"1,613.50",MAKEPEACE MOTORS.
Regeneration and Local Services,Technical Services,Third Party Payments 4THIRD,430127,Rendered by Private Contractors,02/05/2018,3431582-5596,"1,773.50",MAKEPEACE MOTORS.
Regeneration and Local Services,Technical Services,Third Party Payments 4THIRD,430127,Rendered by Private Contractors,02/05/2018,3431582-5598,"2,463.50",MAKEPEACE MOTORS.
Regeneration and Local Services,Technical Services,Third Party Payments 4THIRD,430127,Rendered by Private Contractors,02/05/2018,3431582-5599,"2,463.50",MAKEPEACE MOTORS.
Regeneration and Local Services,Technical Services,Third Party Payments 4THIRD,430127,Rendered by Private Contractors,02/05/2018,3431582-5601,"2,345.00",MAKEPEACE MOTORS.
Regeneration and Local Services,Technical Services,Third Party Payments 4THIRD,430128,Rendered by Private Contractors,02/05/2018,3431582-5582,"1,075.00",MAKEPEACE MOTORS.
Regeneration and Local Services,Technical Services,Third Party Payments 4THIRD,430100,Rendered by Private Contractors,02/05/2018,3431582-5594,"4,680.00",MAKEPEACE MOTORS.
Regeneration and Local Services,Spatial Policy Planning Assets & Environment,Cap Exp on Grants & Other Financial Assistance (REFCUS),918501,Exp assets not owned by authority,02/05/2018,3431584-1025,"57,716.77",MARSDEN AES LTD.
Regeneration and Local Services,Direct Services,Transport,230005,Contract Hire,02/05/2018,3431592-414359,722.40,MINSTER SELF DRIVE.
Regeneration and Local Services,Direct Services,Third Party Payments 4THIRD,430100,Rendered by Private Contractors,02/05/2018,3431619-IW03826151,"3,288.26",NORTHGATE VEHICLE HIRE LTD.
Regeneration and Local Services,Technical Services,Premises,120009,Energy Costs,02/05/2018,3431620-NNO739K5,"180,051.04",NPOWER.
Regeneration and Local Services,Direct Services,Supplies and Services,304259,Equipment and Materials,02/05/2018,3431621-84242,858.85,NSI (HQ) T/A PATROL STORE.
Regeneration and Local Services,Direct Services,Supplies and Services,304259,Equipment and Materials,02/05/2018,3431624-323188,524.79,OIL NRG LTD.
Regeneration and Local Services,Direct Services,Transport,215005,Running Costs of Vehicles,02/05/2018,3431624-319096,"1,984.61",OIL NRG LTD.
Regeneration and Local Services,Direct Services,Transport,215005,Running Costs of Vehicles,02/05/2018,3431624-323015,"17,906.33",OIL NRG LTD.
Regeneration and Local Services,Direct Services,Transport,215022,Running Costs of Vehicles,02/05/2018,3431624-319097,"1,047.88",OIL NRG LTD.
Regeneration and Local Services,Direct Services,Transport,215022,Running Costs of Vehicles,02/05/2018,3431624-323026,"1,084.86",OIL NRG LTD.
Regeneration and Local Services,Direct Services,Transport,215022,Running Costs of Vehicles,02/05/2018,3431624-323560,"4,205.60",OIL NRG LTD.
Regeneration and Local Services,Direct Services,Supplies and Services,304221,Equipment and Materials,02/05/2018,3431642-295766,623.81,PEW ELECTRICAL DISTRIBUTORS LTD.
Regeneration and Local Services,Technical Services,Third Party Payments 4THIRD,430128,Rendered by Private Contractors,02/05/2018,309590-9,"1,865.00",RE SHANN.
Regeneration and Local Services,Direct Services,Transport,210057,Repair and Maintenance of Vehicles,02/05/2018,3431673-335866,"1,048.96",S JENNINGS LTD.
Regeneration and Local Services,Direct Services,Transport,230005,Contract Hire,02/05/2018,3431690-10931562,664.26,SHB HIRE LTD.
Regeneration and Local Services,Direct Services,Transport,230005,Contract Hire,02/05/2018,3431690-10931563,664.26,SHB HIRE LTD.
Regeneration and Local Services,Direct Services,Transport,230005,Contract Hire,02/05/2018,3431690-10931564,775.00,SHB HIRE LTD.
Regeneration and Local Services,Direct Services,Transport,230005,Contract Hire,02/05/2018,3431690-10931565,775.00,SHB HIRE LTD.
Regeneration and Local Services,Direct Services,Transport,230005,Contract Hire,02/05/2018,3431690-10931566,632.50,SHB HIRE LTD.
Regeneration and Local Services,Direct Services,Transport,210057,Repair and Maintenance of Vehicles,02/05/2018,3431696-23114180,916.12,SIMON BAILES LTD.
Regeneration and Local Services,Direct Services,Transport,230710,Contract Hire,02/05/2018,3431701-105/18/9623,"1,600.00",SOCIETE GENERALE EQUIPMENT FINANCE LTD.
Regeneration and Local Services,Technical Services,Third Party Payments 4THIRD,430100,Rendered by Private Contractors,02/05/2018,3431706-6179,"7,700.00",ST ASTIER LTD.
Regeneration and Local Services,Technical Services,Third Party Payments 4THIRD,430100,Rendered by Private Contractors,02/05/2018,3431713-104511,"3,393.00",STONEGRAVE AGGREGATES LTD.
Regeneration and Local Services,Culture & Sport,Supplies and Services,338047,Services,02/05/2018,3431714-INV03623,729.17,STR ENTERPRISES LTD T/A THE MANOR HOUSE HOTEL.
Regeneration and Local Services,Technical Services,Supplies and Services,304221,Equipment and Materials,02/05/2018,3431721-9037850479,632.58,TARMAC TRADING LTD.
Regeneration and Local Services,Economic Development and Housing,Supplies and Services,384199,Miscellaneous Expenses,02/05/2018,3431746-03418,750.00,THE TOURISM BUSINESS.
Regeneration and Local Services,Direct Services,Supplies and Services,328041,Clothing uniforms and laundry E328,02/05/2018,3431748-N/IN214332,"1,756.33",THOMAS OWEN & SONS (NEWCASTLE) LTD.
Regeneration and Local Services,Direct Services,Supplies and Services,304221,Equipment and Materials,02/05/2018,3431752-114216,"1,500.00",TOMMY WARDLE.
Regeneration and Local Services,Technical Services,Supplies and Services,304221,Equipment and Materials,02/05/2018,3431767-184289,"1,014.19",TYNEDALE ROADSTONE LTD.
Regeneration and Local Services,Technical Services,Supplies and Services,304221,Equipment and Materials,02/05/2018,3431767-184467,"1,010.94",TYNEDALE ROADSTONE LTD.
Regeneration and Local Services,Technical Services,Supplies and Services,304221,Equipment and Materials,02/05/2018,3431767-184601,"1,021.09",TYNEDALE ROADSTONE LTD.
Regeneration and Local Services,Technical Services,Supplies and Services,304221,Equipment and Materials,02/05/2018,3431767-184773,"1,014.19",TYNEDALE ROADSTONE LTD.
Regeneration and Local Services,Technical Services,Supplies and Services,304221,Equipment and Materials,02/05/2018,3431767-184775,993.00,TYNEDALE ROADSTONE LTD.
Regeneration and Local Services,Technical Services,Supplies and Services,304221,Equipment and Materials,02/05/2018,3431767-185061,979.10,TYNEDALE ROADSTONE LTD.
Regeneration and Local Services,Technical Services,Supplies and Services,304221,Equipment and Materials,02/05/2018,3431767-185107,983.08,TYNEDALE ROADSTONE LTD.
Resources,Legal & Democratic Services,Supplies and Services,338025,Services,02/05/2018,3431405-S44995-01519,"1,570.00",CO-OPERATIVE FUNERAL CARE.
Resources,Digital and Customer Services,Supplies and Services,342033,Computers and Communications,02/05/2018,3431441-7402429824,"2,305.45",DELL COMPUTER CORPORATION LTD.
Resources,Digital and Customer Services,Supplies and Services,336005,Advertising E336,02/05/2018,3431481-SINV00165651,"1,091.00",EXTERION MEDIA (UK) LTD.
Resources,Digital and Customer Services,Supplies and Services,336005,Advertising E336,02/05/2018,3431481-SINV00165908,500.00,EXTERION MEDIA (UK) LTD.
Resources,Digital and Customer Services,Supplies and Services,336005,Advertising E336,02/05/2018,3431481-SINV00165909,"1,600.00",EXTERION MEDIA (UK) LTD.
Resources,Digital and Customer Services,Supplies and Services,336005,Advertising E336,02/05/2018,3431481-SINV00165910,"1,600.00",EXTERION MEDIA (UK) LTD.
Resources,Digital and Customer Services,Supplies and Services,338099,Services,02/05/2018,3431658-876,787.50,PROTECH CITY LTD.
Resources - C A C,Centrally Administered costs,Supplies and Services,338017,Services,02/05/2018,3431761-APIO5224,650.00,TRUECOMMERCE (OLDHAM) LTD.
Transformation and Partnerships,Partnerships & Community Engagement Div.,Supplies and Services,308011,Furniture,02/05/2018,3431420-FUR006,"11,096.00",COUNTY DURHAM FURNITURE HELP SCHEME (CDFHS).
Transformation and Partnerships,Partnerships & Community Engagement Div.,Supplies and Services,384086,Miscellaneous Expenses,02/05/2018,3431692-VOUCHER17NB-EDUR025,"1,400.00",SHOTTON PARTNERSHIP 2000 LTD.
Transformation and Partnerships,Partnerships & Community Engagement Div.,Cap Exp on Grants & Other Financial Assistance (REFCUS),918004,Contributions to other bodies 918004,02/05/2018,3431727-VOUCHER17NB-4TOG016,"2,577.98",TEAM WARRIOR TKO.
Adult and Health Services,Head of Adults,Transport,230005,Contract Hire,03/05/2018,3431812-0008,840.00,AIRPORT TAXIS 4U.
Adult and Health Services,Head of Adults,Supplies and Services,304516,Equipment and Materials,03/05/2018,3431846-INV-0129,591.00,BILL SCOTT TAXIS LTD.
Adult and Health Services,Head of Adults,Supplies and Services,308011,Furniture,03/05/2018,3431852-12772,"1,650.24",BLINDS ETCETERA.
Adult and Health Services,Head of Adults,Transport,230005,Contract Hire,03/05/2018,3431856-1499,990.00,BOBBY DOVE.
Adult and Health Services,Public Health,Third Party Payments 4THIRD,460802,Contract Payments,03/05/2018,3431887-A83050IUCDQ31718,"2,315.09",CESTRIA HEALTH CENTRE.
Adult and Health Services,Head of Adults,Transport,230005,Contract Hire,03/05/2018,3431928-TH1804,610.00,D IRVING T/A BJ TAXIS.
Adult and Health Services,Head of Adults,Supplies and Services,338066,Services,03/05/2018,3431946-2704201803052018,"1,414.31",DR IMRAN MUNIR.
Adult and Health Services,Head of Adults,Supplies and Services,338066,Services,03/05/2018,3431952-2704201803052018,545.99,DR STEPHEN WILKINSON.
Adult and Health Services,Head of Adults,Transport,230005,Contract Hire,03/05/2018,3432049-41-SED102,550.00,JOHN CRAKE & SONS MINI BUSES LTD.
Adult and Health Services,Head of Adults,Transport,230005,Contract Hire,03/05/2018,3432050-01042018,775.00,JOHN HUBBLE T/A HUBB`S TAXIS.
Adult and Health Services,Head of Adults,Transport,230005,Contract Hire,03/05/2018,3432073-1154,770.00,LD TAXIS.
Adult and Health Services,Public Health,Third Party Payments 4THIRD,460802,Contract Payments,03/05/2018,3432110-A836370IUCDQ31718,979.66,MIDDLE CHARE MEDICAL GROUP.
Adult and Health Services,Head of Adults,Transport,230005,Contract Hire,03/05/2018,3432122-010,721.00,MR NEIL LEONARD T/A LENNY`S TAXIS.
Adult and Health Services,Public Health,Third Party Payments 4THIRD,460802,Contract Payments,03/05/2018,3432335-A830030IUCDQ31718,"3,263.44",WILLINGTON MEDICAL GROUP.
Children and Young Peoples Services,Head of Education,Transport,230006,Contract Hire,03/05/2018,3431796-68134,525.00,A & C TAXIS.
Children and Young Peoples Services,Head of Education,Transport,230007,Contract Hire,03/05/2018,3431797-1APRIL2018,990.00,A & P TAXIS.
Children and Young Peoples Services,Head of Looked After Provision Permanence and Care Leavers,Supplies and Services,342053,Computers and Communications,03/05/2018,3431820-2018-122-141-003568,"1,496.94",AMERICAN EXPRESS SERVICES EUROPE LTD.
Children and Young Peoples Services,Head of Education,Supplies and Services,352001,Conference Expenses,03/05/2018,3431820-2018-122-141-003579,"5,202.91",AMERICAN EXPRESS SERVICES EUROPE LTD.
Children and Young Peoples Services,Head of Early Help Assessment and Safeguarding,Long Term Debtors,924001,Car loans,03/05/2018,3431826-113838,"1,210.00",ARRIVA DURHAM COUNTY LTD.
Children and Young Peoples Services,Head of Education,Transport,230008,Contract Hire,03/05/2018,3431831-300418,965.00,AVALON TAXIS.
Children and Young Peoples Services,Head of Education,Transport,230008,Contract Hire,03/05/2018,3431843-008-N062APR18,726.00,BG TAXIS.
Children and Young Peoples Services,Head of Education,Transport,230012,Contract Hire,03/05/2018,3431850-10,"1,100.00",BL CARS.
Children and Young Peoples Services,Head of Education,Transport,230008,Contract Hire,03/05/2018,3431856-7012,"1,641.00",BOBBY DOVE.
Children and Young Peoples Services,Head of Education,Transport,230008,Contract Hire,03/05/2018,3431856-7013,825.00,BOBBY DOVE.
Children and Young Peoples Services,Head of Education,Transport,230008,Contract Hire,03/05/2018,3431873-BIL0130,550.00,CA MUSGROVE.
Children and Young Peoples Services,Head of Education,Third Party Payments 4THIRD,440999,Other third party payments E440,03/05/2018,3431877-208,"3,567.24",CAPITAL 4 TRAINING LTD
Children and Young Peoples Services,Head of Education,Third Party Payments 4THIRD,440999,Other third party payments E440,03/05/2018,3431877-209,524.67,CAPITAL 4 TRAINING LTD
Children and Young Peoples Services,Head of Education,Transport,230007,Contract Hire,03/05/2018,3431902-1030,990.00,CLIVE HUBERY.
Children and Young Peoples Services,Head of Education,Transport,230007,Contract Hire,03/05/2018,3431905-C/10205,"1,853.50",COCHRANES T/A KELVIN TRAVEL.
Children and Young Peoples Services,Head of Education,Transport,230003,Contract Hire,03/05/2018,3431905-C/10204,"1,413.50",COCHRANES T/A KELVIN TRAVEL.
Children and Young Peoples Services,Head of Education,Transport,230008,Contract Hire,03/05/2018,3431906-007,935.00,COLIN HOLMES.
Children and Young Peoples Services,Head of Education,Transport,230008,Contract Hire,03/05/2018,3431909-1454,920.00,CONNORS MINI BUSES.*
Children and Young Peoples Services,Head of Education,Transport,230008,Contract Hire,03/05/2018,3431909-1455,880.00,CONNORS MINI BUSES.*
Children and Young Peoples Services,Head of Education,Transport,230008,Contract Hire,03/05/2018,3431909-1456,940.00,CONNORS MINI BUSES.*
Children and Young Peoples Services,Head of Education,Transport,230008,Contract Hire,03/05/2018,3431909-1457,"1,200.00",CONNORS MINI BUSES.*
Children and Young Peoples Services,Head of Education,Transport,230008,Contract Hire,03/05/2018,3431926-34,814.00,CUTHBERT CABS.
Children and Young Peoples Services,Head of Education,Transport,230008,Contract Hire,03/05/2018,3431927-08,660.00,D CROOK T/A CK TAXIS.
Children and Young Peoples Services,Head of Education,Transport,230008,Contract Hire,03/05/2018,3431928-HOW1804,550.00,D IRVING T/A BJ TAXIS.
Children and Young Peoples Services,Head of Early Help Assessment and Safeguarding,Supplies and Services,384899,Miscellaneous Expenses,03/05/2018,3431935-241429,"1,917.85",DEPARTMENT FOR WORK & PENSIONS.
Children and Young Peoples Services,Head of Education,Transport,230007,Contract Hire,03/05/2018,3431936-03/2018-3336,"1,214.40",DIANE GOOCH T/A COLLINS TAXIS.
Children and Young Peoples Services,Head of Education,Transport,230007,Contract Hire,03/05/2018,3431936-03/2018-3345,"2,018.80",DIANE GOOCH T/A COLLINS TAXIS.
Children and Young Peoples Services,Head of Education,Transport,230006,Contract Hire,03/05/2018,3431936-03/2018-F664,"1,646.40",DIANE GOOCH T/A COLLINS TAXIS.
Children and Young Peoples Services,Head of Education,Transport,230008,Contract Hire,03/05/2018,3431936-03/2018-W080,"2,451.40",DIANE GOOCH T/A COLLINS TAXIS.
Children and Young Peoples Services,Head of Education,Transport,230008,Contract Hire,03/05/2018,3431978-0748,770.00,EN ROUTE TRAVEL.
Children and Young Peoples Services,Head of Education,Transfer Payments,510028,School Children,03/05/2018,3431989-CAS-05-2018-007,"2,000.00",FIRST FOUR KIDZ CHILDCARE.
Children and Young Peoples Services,Head of Education,Transport,230008,Contract Hire,03/05/2018,3431999-000043,990.00,GP TAXIS.
Children and Young Peoples Services,Head of Education,Transport,230008,Contract Hire,03/05/2018,3432016-N054-APR18,630.00,HIPPY`S TAXI.
Children and Young Peoples Services,Head of Early Help Assessment and Safeguarding,Third Party Payments 4THIRD,425023,Rendered by Voluntary Organisations,03/05/2018,3432022-4140000739B,"7,867.75",HURWORTH HOUSE PRIORY.
Children and Young Peoples Services,Head of Education,Transport,230007,Contract Hire,03/05/2018,3432044-1293,770.00,JDS PRIVATE HIRE DURHAM.
Children and Young Peoples Services,Head of Education,Transport,230008,Contract Hire,03/05/2018,3432044-1292,"1,430.00",JDS PRIVATE HIRE DURHAM.
Children and Young Peoples Services,Head of Education,Transport,230008,Contract Hire,03/05/2018,3432044-1296,825.00,JDS PRIVATE HIRE DURHAM.
Children and Young Peoples Services,Head of Education,Transport,230008,Contract Hire,03/05/2018,3432044-1297,"1,100.00",JDS PRIVATE HIRE DURHAM.
Children and Young Peoples Services,Head of Education,Transport,230008,Contract Hire,03/05/2018,3432044-1298,"1,188.00",JDS PRIVATE HIRE DURHAM.
Children and Young Peoples Services,Head of Education,Transport,230008,Contract Hire,03/05/2018,3432044-1303,737.00,JDS PRIVATE HIRE DURHAM.
Children and Young Peoples Services,Head of Education,Transport,230008,Contract Hire,03/05/2018,3432044-1307,"1,560.00",JDS PRIVATE HIRE DURHAM.
Children and Young Peoples Services,Head of Education,Transport,230007,Contract Hire,03/05/2018,3432045-2758,"1,484.89",JEFF ANDERSON COACHES LTD.
Children and Young Peoples Services,Head of Education,Transport,230007,Contract Hire,03/05/2018,3432045-2759,"1,083.28",JEFF ANDERSON COACHES LTD.
Children and Young Peoples Services,Head of Education,Transport,230008,Contract Hire,03/05/2018,3432049-49,930.00,JOHN CRAKE & SONS MINI BUSES LTD.
Children and Young Peoples Services,Head of Education,Transport,230008,Contract Hire,03/05/2018,3432073-IV1155,770.00,LD TAXIS.
Children and Young Peoples Services,Head of Education,Transport,230006,Contract Hire,03/05/2018,3432081-3771,863.28,LINCAB TAXIS.
Children and Young Peoples Services,Head of Education,Transport,230008,Contract Hire,03/05/2018,3432093-40,880.00,MALCOLM CARR T/A CARLY CABS.
Children and Young Peoples Services,Head of Education,Transport,230006,Contract Hire,03/05/2018,3432103-143,550.00,MICHAEL COBB T/A HAIL TAXIS.
Children and Young Peoples Services,Head of Education,Transport,230006,Contract Hire,03/05/2018,3432108-0127,"1,004.50",MICKS TAXIS - MURTON.
Children and Young Peoples Services,Head of Education,Transport,230006,Contract Hire,03/05/2018,3432117-OC/04/17,594.00,MR J AGAR T/A PARK TAXIS.
Children and Young Peoples Services,Head of Education,Transport,230008,Contract Hire,03/05/2018,3432117-SFB/04/17A,924.00,MR J AGAR T/A PARK TAXIS.
Children and Young Peoples Services,Head of Education,Transport,230007,Contract Hire,03/05/2018,3432119-83,561.00,MR JOHN ALLINSON T/A AALPHA TAXIS.
Children and Young Peoples Services,Head of Education,Transport,230008,Contract Hire,03/05/2018,3432121-W046-APR,869.00,MR NEIL FRASER ELLIS T/A MILLENNIUM CABS.
Children and Young Peoples Services,Head of Education,Transport,230008,Contract Hire,03/05/2018,3432122-011,939.98,MR NEIL LEONARD T/A LENNY`S TAXIS.
Children and Young Peoples Services,Head of Education,Transport,230008,Contract Hire,03/05/2018,3432123-93,550.00,MR NORMAN STEVENSON T/A EXTREME TAXI`S.
Children and Young Peoples Services,Head of Education,Transport,230007,Contract Hire,03/05/2018,3432127-401/18,600.00,MR REES WILKINSON T/A B & L MINIBUS HIRE.
Children and Young Peoples Services,Head of Education,Transport,230008,Contract Hire,03/05/2018,3432128-AA404,770.00,MR T GUNN.
Children and Young Peoples Services,Head of Education,Transport,230007,Contract Hire,03/05/2018,3432140-1APRIL2018,570.00,NC TAXI`S.
Children and Young Peoples Services,Head of Education,Transport,230008,Contract Hire,03/05/2018,3432141-41,990.00,NEIL PASSMOOR T/A NEIL`S TAXI.
Children and Young Peoples Services,Head of Education,Transport,230008,Contract Hire,03/05/2018,3432141-941,660.00,NEIL PASSMOOR T/A NEIL`S TAXI.
Children and Young Peoples Services,Head of Education,Supplies and Services,338035,Services,03/05/2018,3432168-24948,540.00,ONE AWARDS.
Children and Young Peoples Services,Head of Education,Transport,230008,Contract Hire,03/05/2018,3432182-8,719.95,PAUL ROSE T/A PAUL`S TAXIS.
Children and Young Peoples Services,Head of Education,Transport,230008,Contract Hire,03/05/2018,3432189-578,690.00,PETERLEE EXECUTIVE CARS.
Children and Young Peoples Services,Head of Education,Transport,230012,Contract Hire,03/05/2018,3432204-1280,682.00,PODA TAXIS LTD.
Children and Young Peoples Services,Head of Education,Transport,230008,Contract Hire,03/05/2018,3432204-1281,"1,045.00",PODA TAXIS LTD.
Children and Young Peoples Services,Head of Education,Transport,230008,Contract Hire,03/05/2018,3432204-1282,660.00,PODA TAXIS LTD.
Children and Young Peoples Services,Head of Education,Transport,230007,Contract Hire,03/05/2018,3432212-08A,"2,222.00",RAYNERS COACHES.
Children and Young Peoples Services,Head of Education,Transport,230007,Contract Hire,03/05/2018,3432212-61A,704.00,RAYNERS COACHES.
Children and Young Peoples Services,Head of Education,Transport,230007,Contract Hire,03/05/2018,3432212-61C,"1,276.00",RAYNERS COACHES.
Children and Young Peoples Services,Head of Education,Transport,230008,Contract Hire,03/05/2018,3432212-08A-M008,880.00,RAYNERS COACHES.
Children and Young Peoples Services,Head of Education,Construction work A908,908105,Construction work,03/05/2018,3432233-3934,525.44,SAFE STRIP UK LTD.
Children and Young Peoples Services,Head of Education,Construction work A908,908105,Construction work,03/05/2018,3432233-3964,951.68,SAFE STRIP UK LTD.
Children and Young Peoples Services,Head of Early Help Assessment and Safeguarding,Premises,108099,Service Repairs and Maintenance,03/05/2018,3432233-3877,532.16,SAFE STRIP UK LTD.
Children and Young Peoples Services,Head of Education,Transport,230012,Contract Hire,03/05/2018,3432249-74155,880.00,SHOTTON PRIVATE HIRE.
Children and Young Peoples Services,Head of Education,Transport,230008,Contract Hire,03/05/2018,3432249-74154,"1,080.00",SHOTTON PRIVATE HIRE.
Children and Young Peoples Services,Head of Education,Transport,230009,Contract Hire,03/05/2018,3432270-30642-7303APR18,526.24,STANLEY TRAVEL (NORTH EAST) LTD.
Children and Young Peoples Services,Head of Education,Transport,230009,Contract Hire,03/05/2018,3432275-180452,550.00,STEVEN PRATT T/A PTL TAXIS DURHAM.
Children and Young Peoples Services,Head of Education,Transport,230008,Contract Hire,03/05/2018,3432275-180453,660.00,STEVEN PRATT T/A PTL TAXIS DURHAM.
Children and Young Peoples Services,Head of Education,Transport,230003,Contract Hire,03/05/2018,3432277-STNE0816,759.00,STYLE TRAVEL NORTH EAST.
Children and Young Peoples Services,Head of Education,Transport,230003,Contract Hire,03/05/2018,3432277-STNE0817,869.00,STYLE TRAVEL NORTH EAST.
Children and Young Peoples Services,Head of Early Help Assessment and Safeguarding,Supplies and Services,384071,Miscellaneous Expenses,03/05/2018,3432293-GT3344,695.00,THE GREENHOUSE COMPANY (GROUNDWORK) LTD.
Children and Young Peoples Services,Head of Education,Transport,230008,Contract Hire,03/05/2018,3432308-8-W033,858.00,TW TINKLER T/A TT TAXIS.
Children and Young Peoples Services,Head of Education,Transport,230007,Contract Hire,03/05/2018,3432330-6064,533.50,WEARDALE PRIVATE HIRE.
Children and Young Peoples Services,Head of Education,Transport,230007,Contract Hire,03/05/2018,3432330-6065-4042,988.90,WEARDALE PRIVATE HIRE.
Children and Young Peoples Services,Head of Education,Transport,230007,Contract Hire,03/05/2018,3432330-6065-4071,550.00,WEARDALE PRIVATE HIRE.
Children and Young Peoples Services,Head of Education,Transport,230008,Contract Hire,03/05/2018,3432330-6067,"1,391.50",WEARDALE PRIVATE HIRE.
Dedicated Schools Grant,DSG High Needs Block,Transport,230010,Contract Hire,03/05/2018,3431839-7-BL008,649.00,BENNETTS TAXIS.
Dedicated Schools Grant,DSG High Needs Block,Third Party Payments 4THIRD,440080,Other third party payments E440,03/05/2018,3431939-167/18/0709,"7,250.86",DISC LTD.
Dedicated Schools Grant,DSG High Needs Block,Transport,230010,Contract Hire,03/05/2018,3432044-1306,528.00,JDS PRIVATE HIRE DURHAM.
Dedicated Schools Grant,DSG High Needs Block,Transport,230010,Contract Hire,03/05/2018,3432088-85,778.00,LUMLEY TAXIS.
Dedicated Schools Grant,DSG High Needs Block,Transport,230010,Contract Hire,03/05/2018,3432125-0036,"1,100.00",MR PM MULLEN T/A CATHEDRAL TAXIS.
Dedicated Schools Grant,DSG High Needs Block,Third Party Payments 4THIRD,410037,Rendered by Other Local Authorities,03/05/2018,3432151-0000035375,"14,755.00",NORTH EAST AUTISM SOCIETY.
Dedicated Schools Grant,DSG High Needs Block,Transport,230009,Contract Hire,03/05/2018,3432180-22,990.00,PAUL B TAXIS.
Dedicated Schools Grant,DSG High Needs Block,Transport,230010,Contract Hire,03/05/2018,3432189-579,"1,180.00",PETERLEE EXECUTIVE CARS.
Dedicated Schools Grant,DSG High Needs Block,Third Party Payments 4THIRD,410037,Rendered by Other Local Authorities,03/05/2018,3432260-ES164,"10,059.00",SOUTH TYNESIDE COUNCIL.
Non-Service Specific,Insurances,Expenditure 8INSEX,810001,Insurance Expenditure,03/05/2018,3432345-407000001,"122,970.00",ZURICH INSURANCE PLC.
Regeneration and Local Services,Technical Services,Supplies and Services,304221,Equipment and Materials,03/05/2018,3431810-26361845,"1,018.65",AGGREGATE INDUSTRIES UK LTD.
Regeneration and Local Services,Technical Services,Supplies and Services,304221,Equipment and Materials,03/05/2018,3431810-26368235,"1,020.20",AGGREGATE INDUSTRIES UK LTD.
Regeneration and Local Services,Direct Services,Third Party Payments 4THIRD,430100,Rendered by Private Contractors,03/05/2018,3431811-SIN018662,670.00,AIREDALE GROUP T/A AIREDALE CATERING EQUIPMENT LTD.
Regeneration and Local Services,Direct Services,Third Party Payments 4THIRD,430100,Rendered by Private Contractors,03/05/2018,3431813-70757,977.50,ALAN SEWELL LTD.
Regeneration and Local Services,Culture & Sport,Supplies and Services,384199,Miscellaneous Expenses,03/05/2018,3431819-25/4/18,"1,025.00",AMANDA WOODS.
Regeneration and Local Services,Economic Development and Housing,Supplies and Services,384437,Miscellaneous Expenses,03/05/2018,3431820-2018-122-141-003588,788.75,AMERICAN EXPRESS SERVICES EUROPE LTD.
Regeneration and Local Services,Culture & Sport,Supplies and Services,384199,Miscellaneous Expenses,03/05/2018,3431820-2018-122-141-003558,"5,752.00",AMERICAN EXPRESS SERVICES EUROPE LTD.
Regeneration and Local Services,Culture & Sport,Supplies and Services,384199,Miscellaneous Expenses,03/05/2018,3431820-2018-122-141-003564,"6,002.00",AMERICAN EXPRESS SERVICES EUROPE LTD.
Regeneration and Local Services,Culture & Sport,Supplies and Services,384199,Miscellaneous Expenses,03/05/2018,3431820-2018-122-141-004239,"1,652.00",AMERICAN EXPRESS SERVICES EUROPE LTD.
Regeneration and Local Services,Technical Services,Third Party Payments 4THIRD,430128,Rendered by Private Contractors,03/05/2018,3431829-4100555169,"1,219.00",AST LEE & SON.
Regeneration and Local Services,Culture & Sport,Premises,145023,Cleaning and Domestic Supplies,03/05/2018,3431874-CN19650918,"2,041.01",CANNON HYGIENE LTD.
Regeneration and Local Services,Direct Services,Third Party Payments 4THIRD,430101,Rendered by Private Contractors,03/05/2018,3431938-IV981635,"1,968.56",DIRECT TYRE MANAGEMENT (DTM).
Regeneration and Local Services,Direct Services,Third Party Payments 4THIRD,430101,Rendered by Private Contractors,03/05/2018,3431938-IV986637,"2,074.70",DIRECT TYRE MANAGEMENT (DTM).
Regeneration and Local Services,Culture & Sport,Supplies and Services,384199,Miscellaneous Expenses,03/05/2018,3431976-4100616146,557.50,ELLIOT NELSON (THEATRE CONTRACTOR).
Regeneration and Local Services,Technical Services,Third Party Payments 4THIRD,430128,Rendered by Private Contractors,03/05/2018,3431983-238,920.00,F WARD FARM.
Regeneration and Local Services,Technical Services,Third Party Payments 4THIRD,430128,Rendered by Private Contractors,03/05/2018,3431983-239,980.00,F WARD FARM.
Regeneration and Local Services,Economic Development and Housing,Vehicles Equipment Furniture and Fittings,912529,Purchase-equipment,03/05/2018,3432002-GPS/368VELFAC,578.00,GREEN PROPERTY SERVICES LTD..
Regeneration and Local Services,Direct Services,Supplies and Services,304221,Equipment and Materials,03/05/2018,3432009-4591568,504.46,HEADLAM (FLOORCOVERING DISTRIBUTORS) LTD.
Regeneration and Local Services,Technical Services,Third Party Payments 4THIRD,430127,Rendered by Private Contractors,03/05/2018,3432025-2491,"1,051.50",IAN C LIDDLE.
Regeneration and Local Services,Technical Services,Third Party Payments 4THIRD,430127,Rendered by Private Contractors,03/05/2018,3432025-2492,"1,189.50",IAN C LIDDLE.
Regeneration and Local Services,Technical Services,Third Party Payments 4THIRD,430127,Rendered by Private Contractors,03/05/2018,3432036-0012/2018,"1,699.00",J & JG GILL & SONS LTD.
Regeneration and Local Services,Technical Services,Third Party Payments 4THIRD,430128,Rendered by Private Contractors,03/05/2018,3432036-0013/2018,567.50,J & JG GILL & SONS LTD.
Regeneration and Local Services,Transport and Contracted Services,Supplies and Services,338027,Services,03/05/2018,3432038-B2329700-001,"3,978.00",JACOBS UK LTD.
Regeneration and Local Services,Direct Services,Construction work A908,908105,Construction work,03/05/2018,3432048-00887,"1,611.60",JN KEARTON.
Regeneration and Local Services,Direct Services,Stock A926,926900,Stock in hand-Inventory system,03/05/2018,3432068-SI02-0178914,"1,758.95",KILLGERM CHEMICALS LTD.
Regeneration and Local Services,Technical Services,Third Party Payments 4THIRD,430127,Rendered by Private Contractors,03/05/2018,3432092-5600,"2,345.00",MAKEPEACE MOTORS.
Regeneration and Local Services,Culture & Sport,Supplies and Services,338099,Services,03/05/2018,3432097-4100615486,950.00,MARK IAN THOMPSON.
Regeneration and Local Services,Technical Services,Third Party Payments 4THIRD,430100,Rendered by Private Contractors,03/05/2018,3432105-292,"1,560.00",MICHAEL KELLY.
Regeneration and Local Services,Technical Services,Third Party Payments 4THIRD,430100,Rendered by Private Contractors,03/05/2018,3432156-DI20292065,"1,197.98",NORTHERN POWERGRID (NORTHEAST) LTD.
Regeneration and Local Services,Technical Services,Third Party Payments 4THIRD,430100,Rendered by Private Contractors,03/05/2018,3432156-DI20292066,"2,464.19",NORTHERN POWERGRID (NORTHEAST) LTD.
Regeneration and Local Services,Technical Services,Third Party Payments 4THIRD,430100,Rendered by Private Contractors,03/05/2018,3432156-DI20292068,"1,275.19",NORTHERN POWERGRID (NORTHEAST) LTD.
Regeneration and Local Services,Technical Services,Third Party Payments 4THIRD,430100,Rendered by Private Contractors,03/05/2018,3432156-DI20292069,"1,500.82",NORTHERN POWERGRID (NORTHEAST) LTD.
Regeneration and Local Services,Culture & Sport,Supplies and Services,338047,Services,03/05/2018,3432165-58700,"4,233.44",OFF THE KERB PRODUCTIONS LTD.
Regeneration and Local Services,Culture & Sport,Supplies and Services,338047,Services,03/05/2018,3432169-2/2018,"2,985.10",ORCHESTRA NORTH EAST.
Regeneration and Local Services,Technical Services,Third Party Payments 4THIRD,430127,Rendered by Private Contractors,03/05/2018,3432173-38,"29,614.50",P & EB ROBSON.
Regeneration and Local Services,Technical Services,Stock A926,926900,Stock in hand-Inventory system,03/05/2018,3432176-XL219612,"1,850.00",PARK ELECTRICAL DISTRIBUTORS LTD.
Regeneration and Local Services,Technical Services,Supplies and Services,304221,Equipment and Materials,03/05/2018,3432284-9037791256,539.28,TARMAC TRADING LTD.
Regeneration and Local Services,Technical Services,Supplies and Services,304221,Equipment and Materials,03/05/2018,3432310-1536,"6,538.00",TYNEDALE ROADSTONE LTD.
Regeneration and Local Services,Technical Services,Supplies and Services,304221,Equipment and Materials,03/05/2018,3432310-184867,816.14,TYNEDALE ROADSTONE LTD.
Regeneration and Local Services,Technical Services,Supplies and Services,304221,Equipment and Materials,03/05/2018,3432310-184995,693.44,TYNEDALE ROADSTONE LTD.
Regeneration and Local Services,Technical Services,Supplies and Services,304221,Equipment and Materials,03/05/2018,3432310-185135,991.82,TYNEDALE ROADSTONE LTD.
Regeneration and Local Services,Technical Services,Supplies and Services,304221,Equipment and Materials,03/05/2018,3432310-185137,979.10,TYNEDALE ROADSTONE LTD.
Regeneration and Local Services,Technical Services,Supplies and Services,304221,Equipment and Materials,03/05/2018,3432310-185195,"1,040.78",TYNEDALE ROADSTONE LTD.
Regeneration and Local Services,Technical Services,Supplies and Services,304221,Equipment and Materials,03/05/2018,3432310-185196,"1,021.34",TYNEDALE ROADSTONE LTD.
Regeneration and Local Services,Technical Services,Supplies and Services,304221,Equipment and Materials,03/05/2018,3432310-185197,"1,023.88",TYNEDALE ROADSTONE LTD.
Regeneration and Local Services,Technical Services,Supplies and Services,304221,Equipment and Materials,03/05/2018,3432310-185198,"1,029.79",TYNEDALE ROADSTONE LTD.
Regeneration and Local Services,Technical Services,Supplies and Services,304221,Equipment and Materials,03/05/2018,3432310-185200,864.13,TYNEDALE ROADSTONE LTD.
Regeneration and Local Services,Technical Services,Supplies and Services,304221,Equipment and Materials,03/05/2018,3432310-185204,869.08,TYNEDALE ROADSTONE LTD.
Regeneration and Local Services,Technical Services,Supplies and Services,304221,Equipment and Materials,03/05/2018,3432310-185389,717.10,TYNEDALE ROADSTONE LTD.
Resources,Digital and Customer Services,Supplies and Services,338027,Services,03/05/2018,3432020-3,900.00,HOWARD MAWSON T/A MAWSON TIMETABLE CONSULTANCY.
Resources,Legal & Democratic Services,Supplies and Services,338057,Services,03/05/2018,3432179-PPSLPMSMARCH2018-AMENDMENT,"4,576.68",PATEL PATH SERVICES LTD.
Resources,Digital and Customer Services,Supplies and Services,340001,Postages E340,03/05/2018,3432226-9056322777,"16,463.83",ROYAL MAIL GROUP PLC.
Resources,Digital and Customer Services,Supplies and Services,338099,Services,03/05/2018,3432279-RE70023342-18/19,"16,250.00",SUNDERLAND CITY COUNCIL.
Resources,Digital and Customer Services,Supplies and Services,338099,Services,03/05/2018,3432279-RE70025804-18/19,"6,500.00",SUNDERLAND CITY COUNCIL.
Transformation and Partnerships,Partnerships & Community Engagement Div.,Supplies and Services,308011,Furniture,03/05/2018,3431918-RID013,985.00,COUNTY DURHAM FURNITURE HELP SCHEME (CDFHS).
Transformation and Partnerships,Partnerships & Community Engagement Div.,Transport,235005,Public Transport,03/05/2018,3432053-FIU42,800.00,JOVIAL PRIVATE HIRE.
Adult and Health Services,Commissioning inc Supporting People,Third Party Payments 4THIRD,479111,Purchase of Care,04/05/2018,3432376-5043,"13,496.00",ASPIRE LEARNING SUPPORT & WELLBEING CIC.
Adult and Health Services,Head of Adults,Transport,230005,Contract Hire,04/05/2018,3432388-0005,504.00,BIRDS TAXIS LTD.
Adult and Health Services,Head of Adults,Transport,230005,Contract Hire,04/05/2018,3432388-0008,704.00,BIRDS TAXIS LTD.
Adult and Health Services,Head of Adults,Transport,230005,Contract Hire,04/05/2018,3432388-0009,560.00,BIRDS TAXIS LTD.
Adult and Health Services,Head of Adults,Transport,230005,Contract Hire,04/05/2018,3432396-BZ00257,560.00,BREZ`S TAXIS.
Adult and Health Services,Head of Adults,Transport,230005,Contract Hire,04/05/2018,3432411-008-DM171,640.00,CHRISTOPHER JEFFREY HALL T/A SODA TAXIS.
Adult and Health Services,Head of Adults,Transport,230005,Contract Hire,04/05/2018,3432482-100718,"1,224.00",G & P JOHNSON LTD T/A NIGHTINGALE COACHES.
Adult and Health Services,Head of Adults,Transport,230005,Contract Hire,04/05/2018,3432482-100722,"1,220.00",G & P JOHNSON LTD T/A NIGHTINGALE COACHES.
Adult and Health Services,Commissioning inc Supporting People,Third Party Payments 4THIRD,479111,Purchase of Care,04/05/2018,3432513-CES037,"2,833.33",HOMECARE SUPPORT LTD T/A THE HUMAN SUPPORT GROUP.
Adult and Health Services,Head of Adults,Transport,230005,Contract Hire,04/05/2018,3432517-IR1804006,840.00,I & R EXECUTIVE TRAVEL.
Adult and Health Services,Head of Adults,Transport,230005,Contract Hire,04/05/2018,3432530-1308,960.00,JDS PRIVATE HIRE DURHAM.
Adult and Health Services,Head of Adults,Transport,230005,Contract Hire,04/05/2018,3432532-DM150-APRIL,850.00,JMR TAXIS.
Adult and Health Services,Head of Adults,Transport,230005,Contract Hire,04/05/2018,3432575-791,768.00,MOLLYS TAXIS.
Adult and Health Services,Head of Adults,Transport,230005,Contract Hire,04/05/2018,3432576-CA104-18,734.80,MR CT WALKER T/A CW TAXIS.
Adult and Health Services,Head of Adults,Transport,230005,Contract Hire,04/05/2018,3432576-PG104-18,547.80,MR CT WALKER T/A CW TAXIS.
Adult and Health Services,Head of Adults,Transport,230005,Contract Hire,04/05/2018,3432583-201815,600.00,MR JR FORT T/A JRF TAXIS.
Adult and Health Services,Head of Adults,Third Party Payments 4THIRD,478151,Purchase of Care,04/05/2018,3432667-CE000613,"18,871.13",SANCTUARY CARE (ENGLAND) LTD.
Adult and Health Services,Head of Adults,Transport,230005,Contract Hire,04/05/2018,3432722-0001961,730.00,TONY RIDLEY T/A COLORS TAXIS LTD.
Children and Young Peoples Services,Head of Education,Transport,230006,Contract Hire,04/05/2018,3432352-HA220799,544.50,A MURRAY TRAVEL.
Children and Young Peoples Services,Head of Education,Transport,230008,Contract Hire,04/05/2018,3432352-EA220793,759.00,A MURRAY TRAVEL.
Children and Young Peoples Services,Head of Education,Transport,230008,Contract Hire,04/05/2018,3432352-GC007,544.50,A MURRAY TRAVEL.
Children and Young Peoples Services,Head of Education,Transport,230012,Contract Hire,04/05/2018,3432355-O381,968.00,ABC & OUSTON CABS.
Children and Young Peoples Services,Head of Education,Transport,230008,Contract Hire,04/05/2018,3432355-O382,737.00,ABC & OUSTON CABS.
Children and Young Peoples Services,Head of Education,Transport,230008,Contract Hire,04/05/2018,3432363-153958,972.50,ALAN SOUTHERN T/A ALANS TAXIS PELTON FELL.
Children and Young Peoples Services,Head of Education,Transport,230008,Contract Hire,04/05/2018,3432363-388958,937.50,ALAN SOUTHERN T/A ALANS TAXIS PELTON FELL.
Children and Young Peoples Services,Head of Education,Transport,230006,Contract Hire,04/05/2018,3432368-0054,700.00,ANDREW SIMPSON T/A ANDY`S CABS.
Children and Young Peoples Services,Head of Education,Transport,230008,Contract Hire,04/05/2018,3432369-143,770.00,ANDY CABS.
Children and Young Peoples Services,Head of Education,Transport,230008,Contract Hire,04/05/2018,3432375-1070,"1,192.29",ARRON GILBRAITH T/A BYRON TRAVEL.
Children and Young Peoples Services,Head of Education,Transport,230008,Contract Hire,04/05/2018,3432383-SMITH1/APRIL18,897.00,BEELINE PRIVATE HIRE.
Children and Young Peoples Services,Head of Education,Transport,230008,Contract Hire,04/05/2018,3432390-09,"1,548.00",BL CARS.
Children and Young Peoples Services,Head of Education,Transport,230008,Contract Hire,04/05/2018,3432396-BZ00256,539.00,BREZ`S TAXIS.
Children and Young Peoples Services,Head of Education,Transport,230007,Contract Hire,04/05/2018,3432407-14-5222,704.00,CHAPMAN TRAVEL.
Children and Young Peoples Services,Head of Education,Transport,230007,Contract Hire,04/05/2018,3432413-46272,"1,350.03",CHRISTOPHER JAMES GRIERSON T/A GRIERSONS COACHES.
Children and Young Peoples Services,Head of Education,Transport,230007,Contract Hire,04/05/2018,3432413-46274,"1,375.00",CHRISTOPHER JAMES GRIERSON T/A GRIERSONS COACHES.
Children and Young Peoples Services,Head of Education,Transport,230003,Contract Hire,04/05/2018,3432413-46271,"1,639.00",CHRISTOPHER JAMES GRIERSON T/A GRIERSONS COACHES.
Children and Young Peoples Services,Head of Education,Transport,230003,Contract Hire,04/05/2018,3432413-46273,"4,092.00",CHRISTOPHER JAMES GRIERSON T/A GRIERSONS COACHES.
Children and Young Peoples Services,Head of Education,Transport,230003,Contract Hire,04/05/2018,3432413-46275,"1,540.00",CHRISTOPHER JAMES GRIERSON T/A GRIERSONS COACHES.
Children and Young Peoples Services,Head of Education,Transport,230003,Contract Hire,04/05/2018,3432413-46276,"1,430.00",CHRISTOPHER JAMES GRIERSON T/A GRIERSONS COACHES.
Children and Young Peoples Services,Head of Education,Transport,230008,Contract Hire,04/05/2018,3432412-CJ008,"1,749.00",CJ COACHES.
Children and Young Peoples Services,Head of Education,Transport,230003,Contract Hire,04/05/2018,3432446-7535-SL01,"1,522.50",DURHAM CITY COACHES.
Children and Young Peoples Services,Head of Education,Transport,230003,Contract Hire,04/05/2018,3432446-7535-SL03,"1,683.25",DURHAM CITY COACHES.
Children and Young Peoples Services,Head of Education,Transport,230003,Contract Hire,04/05/2018,3432446-7535-SL04,"1,650.00",DURHAM CITY COACHES.
Children and Young Peoples Services,Head of Education,Transport,230003,Contract Hire,04/05/2018,3432446-7535-SL07,"1,526.25",DURHAM CITY COACHES.
Children and Young Peoples Services,Head of Education,Transport,230003,Contract Hire,04/05/2018,3432446-7535-SL08,"1,424.50",DURHAM CITY COACHES.
Children and Young Peoples Services,Head of Education,Transport,230003,Contract Hire,04/05/2018,3432446-7535-SL09,"1,424.50",DURHAM CITY COACHES.
Children and Young Peoples Services,Head of Education,Transport,230003,Contract Hire,04/05/2018,3432446-7535-SL11,"1,452.00",DURHAM CITY COACHES.
Children and Young Peoples Services,Head of Education,Transport,230003,Contract Hire,04/05/2018,3432446-7535-SL14,"1,408.50",DURHAM CITY COACHES.
Children and Young Peoples Services,Head of Education,Third Party Payments 4THIRD,440999,Other third party payments E440,04/05/2018,3432447-MAR18/07,"3,258.75",DURHAM COMMUNITY ACTION LTD.
Children and Young Peoples Services,Head of Looked After Provision Permanence and Care Leavers,Third Party Payments 4THIRD,425021,Rendered by Voluntary Organisations,04/05/2018,3432452-CD009,"17,357.14",DUTY OF CARE LTD.
Children and Young Peoples Services,Head of Looked After Provision Permanence and Care Leavers,Third Party Payments 4THIRD,425021,Rendered by Voluntary Organisations,04/05/2018,3432452-MP012,"12,857.14",DUTY OF CARE LTD.
Children and Young Peoples Services,Head of Early Help Assessment and Safeguarding,Supplies and Services,384491,Miscellaneous Expenses,04/05/2018,3432465-CRE18012501,"1,855.70",EMERALDS LITTLE GEMS DAYCARE LTD.
Children and Young Peoples Services,Head of Education,Transport,230008,Contract Hire,04/05/2018,3432482-100703,"1,190.00",G & P JOHNSON LTD T/A NIGHTINGALE COACHES.
Children and Young Peoples Services,Head of Education,Transport,230007,Contract Hire,04/05/2018,3432483-2066-2,600.00,G ANGHEL T/A A TAXI.
Children and Young Peoples Services,Head of Education,Transport,230007,Contract Hire,04/05/2018,3432486-20239,"1,529.00",GARNETTS LTD (COACHES).
Children and Young Peoples Services,Head of Education,Transport,230007,Contract Hire,04/05/2018,3432486-20240,"1,309.00",GARNETTS LTD (COACHES).
Children and Young Peoples Services,Head of Education,Transport,230007,Contract Hire,04/05/2018,3432486-20242,"1,298.00",GARNETTS LTD (COACHES).
Children and Young Peoples Services,Head of Education,Transport,230007,Contract Hire,04/05/2018,3432486-20244-4034,"1,262.80",GARNETTS LTD (COACHES).
Children and Young Peoples Services,Head of Education,Transport,230007,Contract Hire,04/05/2018,3432486-20244-4035,"1,262.80",GARNETTS LTD (COACHES).
Children and Young Peoples Services,Head of Education,Transport,230007,Contract Hire,04/05/2018,3432486-20244-4036,"1,262.80",GARNETTS LTD (COACHES).
Children and Young Peoples Services,Head of Education,Transport,230007,Contract Hire,04/05/2018,3432486-20244-4037,"2,525.60",GARNETTS LTD (COACHES).
Children and Young Peoples Services,Head of Education,Transport,230007,Contract Hire,04/05/2018,3432486-20244-4038,"1,262.80",GARNETTS LTD (COACHES).
Children and Young Peoples Services,Head of Education,Transport,230007,Contract Hire,04/05/2018,3432486-20248,"1,963.50",GARNETTS LTD (COACHES).
Children and Young Peoples Services,Head of Education,Transport,230007,Contract Hire,04/05/2018,3432486-20249,"1,281.50",GARNETTS LTD (COACHES).
Children and Young Peoples Services,Head of Education,Transport,230007,Contract Hire,04/05/2018,3432486-20250,"2,321.00",GARNETTS LTD (COACHES).
Children and Young Peoples Services,Head of Education,Transport,230003,Contract Hire,04/05/2018,3432486-20237-3301,"1,749.00",GARNETTS LTD (COACHES).
Children and Young Peoples Services,Head of Education,Transport,230003,Contract Hire,04/05/2018,3432486-20237-3303,"1,749.00",GARNETTS LTD (COACHES).
Children and Young Peoples Services,Head of Education,Transport,230003,Contract Hire,04/05/2018,3432486-20237-3335,"1,589.50",GARNETTS LTD (COACHES).
Children and Young Peoples Services,Head of Education,Transport,230003,Contract Hire,04/05/2018,3432486-20243-3004,"1,529.00",GARNETTS LTD (COACHES).
Children and Young Peoples Services,Head of Education,Transport,230003,Contract Hire,04/05/2018,3432486-20243-3008,"1,639.00",GARNETTS LTD (COACHES).
Children and Young Peoples Services,Head of Education,Transport,230003,Contract Hire,04/05/2018,3432486-20243-3203,"1,529.00",GARNETTS LTD (COACHES).
Children and Young Peoples Services,Head of Education,Transport,230003,Contract Hire,04/05/2018,3432486-20243-3333,"1,298.00",GARNETTS LTD (COACHES).
Children and Young Peoples Services,Head of Education,Transport,230008,Contract Hire,04/05/2018,3432486-20245,880.00,GARNETTS LTD (COACHES).
Children and Young Peoples Services,Head of Education,Transport,230008,Contract Hire,04/05/2018,3432517-IR1804002,"1,111.00",I & R EXECUTIVE TRAVEL.
Children and Young Peoples Services,Head of Education,Transport,230008,Contract Hire,04/05/2018,3432517-IR1804004,880.00,I & R EXECUTIVE TRAVEL.
Children and Young Peoples Services,Head of Education,Transport,230008,Contract Hire,04/05/2018,3432517-IR1804005,"1,045.00",I & R EXECUTIVE TRAVEL.
Children and Young Peoples Services,Head of Education,Transport,230007,Contract Hire,04/05/2018,3432530-1294,572.00,JDS PRIVATE HIRE DURHAM.
Children and Young Peoples Services,Head of Education,Transport,230007,Contract Hire,04/05/2018,3432530-1295,660.00,JDS PRIVATE HIRE DURHAM.
Children and Young Peoples Services,Head of Education,Transport,230008,Contract Hire,04/05/2018,3432530-1299,638.00,JDS PRIVATE HIRE DURHAM.
Children and Young Peoples Services,Head of Education,Transport,230008,Contract Hire,04/05/2018,3432530-1300,836.00,JDS PRIVATE HIRE DURHAM.
Children and Young Peoples Services,Head of Education,Transport,230008,Contract Hire,04/05/2018,3432530-1301,836.00,JDS PRIVATE HIRE DURHAM.
Children and Young Peoples Services,Head of Education,Transport,230008,Contract Hire,04/05/2018,3432530-1302,759.00,JDS PRIVATE HIRE DURHAM.
Children and Young Peoples Services,Head of Education,Transport,230008,Contract Hire,04/05/2018,3432545-1A-M005,"1,350.00",L & R PRIVATE HIRE.
Children and Young Peoples Services,Head of Education,Supplies and Services,384199,Miscellaneous Expenses,04/05/2018,3432549-5066,"2,529.00",LEE`S COACHES LTD.
Children and Young Peoples Services,Head of Education,Transport,230007,Contract Hire,04/05/2018,3432552-3773,654.50,LINCAB TAXIS.
Children and Young Peoples Services,Head of Education,Transport,230008,Contract Hire,04/05/2018,3432558-18,740.00,M&C`S CABS LTD.
Children and Young Peoples Services,Head of Education,Transport,230008,Contract Hire,04/05/2018,3432564-300418,665.00,MARK MUSGROVE T/A MARKS TAXIS.
Children and Young Peoples Services,Head of Education,Transport,230007,Contract Hire,04/05/2018,3432568-12,660.00,MILLIE`S TAXIS.
Children and Young Peoples Services,Head of Education,Transport,230008,Contract Hire,04/05/2018,3432572-KDC-010418,"1,265.00",MJ TIMNEY T/A KDC & C&M TAXIS.
Children and Young Peoples Services,Head of Education,Transport,230006,Contract Hire,04/05/2018,3432575-793,"1,210.00",MOLLYS TAXIS.
Children and Young Peoples Services,Head of Education,Transport,230008,Contract Hire,04/05/2018,3432575-790,"1,320.00",MOLLYS TAXIS.
Children and Young Peoples Services,Head of Education,Transport,230008,Contract Hire,04/05/2018,3432575-792,"1,210.00",MOLLYS TAXIS.
Children and Young Peoples Services,Head of Education,Transport,230008,Contract Hire,04/05/2018,3432576-EL0204-18,893.10,MR CT WALKER T/A CW TAXIS.
Children and Young Peoples Services,Head of Education,Transport,230008,Contract Hire,04/05/2018,3432576-EL104-18,675.05,MR CT WALKER T/A CW TAXIS.
Children and Young Peoples Services,Head of Education,Transport,230008,Contract Hire,04/05/2018,3432586-92,550.00,MR NORMAN STEVENSON T/A EXTREME TAXI`S.
Children and Young Peoples Services,Head of Education,Transport,230008,Contract Hire,04/05/2018,3432588-8A-N031,874.00,MR RAYMOND RENWICK T/A RAY`S TAXIS & MINIBUSES.
Children and Young Peoples Services,Head of Education,Transport,230008,Contract Hire,04/05/2018,3432588-8B-N043,880.00,MR RAYMOND RENWICK T/A RAY`S TAXIS & MINIBUSES.
Children and Young Peoples Services,Head of Early Help Assessment and Safeguarding,Third Party Payments 4THIRD,425023,Rendered by Voluntary Organisations,04/05/2018,3432605-0000036210,"14,755.00",NORTH EAST AUTISM SOCIETY.
Children and Young Peoples Services,Head of Early Help Assessment and Safeguarding,Third Party Payments 4THIRD,425023,Rendered by Voluntary Organisations,04/05/2018,3432605-0000036240,"23,363.60",NORTH EAST AUTISM SOCIETY.
Children and Young Peoples Services,Head of Early Help Assessment and Safeguarding,Third Party Payments 4THIRD,425023,Rendered by Voluntary Organisations,04/05/2018,3432605-0000036251,"24,023.61",NORTH EAST AUTISM SOCIETY.
Children and Young Peoples Services,Head of Looked After Provision Permanence and Care Leavers,Third Party Payments 4THIRD,425021,Rendered by Voluntary Organisations,04/05/2018,3432626-281120,"14,171.43",PEARTREE PROJECTS LTD.
Children and Young Peoples Services,Head of Looked After Provision Permanence and Care Leavers,Third Party Payments 4THIRD,425021,Rendered by Voluntary Organisations,04/05/2018,3432626-281121,"14,171.43",PEARTREE PROJECTS LTD.
Children and Young Peoples Services,Head of Education,Transport,230006,Contract Hire,04/05/2018,3432628-0637,792.00,PETER`S PRIVATE HIRE/PETER BEST.
Children and Young Peoples Services,Head of Education,Transport,230008,Contract Hire,04/05/2018,3432628-0636,"1,430.00",PETER`S PRIVATE HIRE/PETER BEST.
Children and Young Peoples Services,Head of Education,Transport,230008,Contract Hire,04/05/2018,3432628-0640,"1,138.00",PETER`S PRIVATE HIRE/PETER BEST.
Children and Young Peoples Services,Head of Education,Transport,230008,Contract Hire,04/05/2018,3432628-0641,924.00,PETER`S PRIVATE HIRE/PETER BEST.
Children and Young Peoples Services,Head of Education,Supplies and Services,384199,Miscellaneous Expenses,04/05/2018,3432647-INV-0045,"11,125.00",RAW DIGITAL TRAINING LTD.
Children and Young Peoples Services,Head of Education,Transport,230007,Contract Hire,04/05/2018,3432648-5230-APRIL,660.00,RAY WHITTLE.
Children and Young Peoples Services,Head of Education,Transport,230008,Contract Hire,04/05/2018,3432649-008,620.60,RAYMOND CHURNSIDE T/A S & L TAXI.
Children and Young Peoples Services,Head of Looked After Provision Permanence and Care Leavers,Third Party Payments 4THIRD,440038,Other third party payments E440,04/05/2018,3432653-4358,800.00,REACH OUT CARE SUPPORT SERVICES LTD.
Children and Young Peoples Services,Head of Education,Transport,230008,Contract Hire,04/05/2018,3432674-74156,"1,600.00",SHOTTON PRIVATE HIRE.
Children and Young Peoples Services,Head of Education,Transport,230008,Contract Hire,04/05/2018,3432674-74157,931.00,SHOTTON PRIVATE HIRE.
Children and Young Peoples Services,Head of Education,Transport,230007,Contract Hire,04/05/2018,3432689-30479,595.34,STANLEY TRAVEL (NORTH EAST) LTD.
Children and Young Peoples Services,Head of Education,Transport,230003,Contract Hire,04/05/2018,3432701-235-SL12,990.00,T MOORE & SON.
Children and Young Peoples Services,Head of Education,Transport,230003,Contract Hire,04/05/2018,3432701-235-SL13,"1,084.28",T MOORE & SON.
Children and Young Peoples Services,Head of Education,Transport,230008,Contract Hire,04/05/2018,3432703-04/2018/004,540.00,TARNS TAXIS LTD.
Children and Young Peoples Services,Head of Education,Transport,230008,Contract Hire,04/05/2018,3432703-04/2018/005,528.00,TARNS TAXIS LTD.
Children and Young Peoples Services,Head of Education,Transport,230007,Contract Hire,04/05/2018,3432708-10005,"1,375.00",TED WILFORD COACHES.
Children and Young Peoples Services,Head of Education,Transport,230003,Contract Hire,04/05/2018,3432708-10006,990.00,TED WILFORD COACHES.
Children and Young Peoples Services,Head of Education,Transport,230008,Contract Hire,04/05/2018,3432719-8,880.00,THOMAS GLEN.
Children and Young Peoples Services,Head of Education,Transport,230008,Contract Hire,04/05/2018,3432722-0001960,"1,060.00",TONY RIDLEY T/A COLORS TAXIS LTD.
Dedicated Schools Grant,DSG High Needs Block,Transport,230010,Contract Hire,04/05/2018,3432370-BC4/18,"1,100.00",ANDY`S TAXIS.
Dedicated Schools Grant,DSG High Needs Block,Transport,230010,Contract Hire,04/05/2018,3432410-BL008,990.00,CHIPPERS TAXIS.
Dedicated Schools Grant,DSG High Needs Block,Supplies and Services,384199,Miscellaneous Expenses,04/05/2018,3432466-72,"1,840.00",EMILY BACKES T/A TALKINDALES.
Dedicated Schools Grant,DSG High Needs Block,Transport,230010,Contract Hire,04/05/2018,3432519-BRIDGE008,"1,265.00",IAN SOULSBY.
Dedicated Schools Grant,DSG High Needs Block,Transport,230010,Contract Hire,04/05/2018,3432576-STF04-18,"1,812.90",MR CT WALKER T/A CW TAXIS.
Dedicated Schools Grant,DSG High Needs Block,Transport,230010,Contract Hire,04/05/2018,3432580-KDK/APR18,788.00,MR IAN KELSEY T/A KDK TAXIS.
Dedicated Schools Grant,DSG High Needs Block,Transport,230010,Contract Hire,04/05/2018,3432600-231,"1,400.00",NEVILLE FORBES T/A FORBES TAXIS.
Dedicated Schools Grant,DSG High Needs Block,Transport,230010,Contract Hire,04/05/2018,3432674-74169,792.00,SHOTTON PRIVATE HIRE.
Regeneration and Local Services,Technical Services,Supplies and Services,304221,Equipment and Materials,04/05/2018,3432360-26375557,758.35,AGGREGATE INDUSTRIES UK LTD.
Regeneration and Local Services,Direct Services,Third Party Payments 4THIRD,430100,Rendered by Private Contractors,04/05/2018,3432384-36105243,"1,825.20",BELL TRUCK SALES LTD T/A BELL TRUCK & VAN.
Regeneration and Local Services,Direct Services,Transport,210057,Repair and Maintenance of Vehicles,04/05/2018,3432384-15128369,650.75,BELL TRUCK SALES LTD T/A BELL TRUCK & VAN.
Regeneration and Local Services,Technical Services,Supplies and Services,338066,Services,04/05/2018,3432391-9969,"39,817.44",BLOOM PROCUREMENT SERVICES LTD (FORMERLY NEPRO LTD).
Regeneration and Local Services,Economic Development and Housing,Third Party Payments 4THIRD,460305,Contract Payments,04/05/2018,3432397-RED-05-2018-032,"11,048.17",BUSINESS & ENTERPRISE COMMERCIAL LTD T/A BE GROUP.
Regeneration and Local Services,Direct Services,Third Party Payments 4THIRD,430100,Rendered by Private Contractors,04/05/2018,3432403-4073,"2,950.00",CATHEDRAL LOCK & SAFE SERVICES LTD.
Regeneration and Local Services,Direct Services,Third Party Payments 4THIRD,430100,Rendered by Private Contractors,04/05/2018,3432438-96355646,"1,388.05",DENNIS EAGLE LTD T/A TERBERG MATEC (UK) LTD.
Regeneration and Local Services,Direct Services,Third Party Payments 4THIRD,430100,Rendered by Private Contractors,04/05/2018,3432439-323813,"1,994.40",DENNIS EAGLE LTD.
Regeneration and Local Services,Direct Services,Transport,210057,Repair and Maintenance of Vehicles,04/05/2018,3432439-DE11117813,500.54,DENNIS EAGLE LTD.
Regeneration and Local Services,Direct Services,Third Party Payments 4THIRD,430101,Rendered by Private Contractors,04/05/2018,3432441-IV981663,590.85,DIRECT TYRE MANAGEMENT (DTM).
Regeneration and Local Services,Economic Development and Housing,Supplies and Services,384199,Miscellaneous Expenses,04/05/2018,3432447-FEB18/01FDTL,"2,485.20",DURHAM COMMUNITY ACTION LTD.
Regeneration and Local Services,Economic Development and Housing,Supplies and Services,384199,Miscellaneous Expenses,04/05/2018,3432447-FEB18/02FDTL,"2,269.38",DURHAM COMMUNITY ACTION LTD.
Regeneration and Local Services,Direct Services,Transport,210057,Repair and Maintenance of Vehicles,04/05/2018,3432458-S198711,717.99,ECON ENGINEERING LTD.
Regeneration and Local Services,Economic Development and Housing,Vehicles Equipment Furniture and Fittings,912529,Purchase-equipment,04/05/2018,3432464-3126/2018,821.60,EFERGY TECHNOLOGIES LTD.
Regeneration and Local Services,Economic Development and Housing,Supplies and Services,384899,Miscellaneous Expenses,04/05/2018,3432468-14146,"2,500.00",ENTREPRENEURS FORUM.
Regeneration and Local Services,Technical Services,Third Party Payments 4THIRD,430127,Rendered by Private Contractors,04/05/2018,3432491-10052,"18,863.00",GJ CONTRACTORS.
Regeneration and Local Services,Economic Development and Housing,Supplies and Services,368008,Incentives to Industrialists,04/05/2018,3432497-12478,"4,006.77",GROUNDWORK NORTH EAST.
Regeneration and Local Services,Direct Services,Third Party Payments 4THIRD,430100,Rendered by Private Contractors,04/05/2018,3432536-65283406,650.12,JOHNSTON SWEEPERS LTD.
Regeneration and Local Services,Direct Services,Third Party Payments 4THIRD,430100,Rendered by Private Contractors,04/05/2018,3432548-208875107529,776.19,LEEDS GALVANISING & POWDER COATING LTD.
Regeneration and Local Services,Direct Services,Stock A926,926004,Stock,04/05/2018,3432553-146938,560.14,LONDONDERRY GARAGE (S.E) LTD.
Regeneration and Local Services,Direct Services,Third Party Payments 4THIRD,430105,Rendered by Private Contractors,04/05/2018,3432597-449,"3,432.08",NE GREEN WASTE RECYCLING LTD.
Regeneration and Local Services,Direct Services,Third Party Payments 4THIRD,430105,Rendered by Private Contractors,04/05/2018,3432597-453,"1,840.77",NE GREEN WASTE RECYCLING LTD.
Regeneration and Local Services,Direct Services,Third Party Payments 4THIRD,430105,Rendered by Private Contractors,04/05/2018,3432597-458,"1,957.39",NE GREEN WASTE RECYCLING LTD.
Regeneration and Local Services,Culture & Sport,Supplies and Services,338047,Services,04/05/2018,3432599-02/18,"1,000.00",NEIL ARMSTRONG..
Regeneration and Local Services,Direct Services,Third Party Payments 4THIRD,430100,Rendered by Private Contractors,04/05/2018,3432607-1401519,"1,703.43",NORTH EAST TRUCK & VAN LTD.
Regeneration and Local Services,Direct Services,Third Party Payments 4THIRD,430100,Rendered by Private Contractors,04/05/2018,3432607-21797253,"3,633.59",NORTH EAST TRUCK & VAN LTD.
Regeneration and Local Services,Direct Services,Transport,210057,Repair and Maintenance of Vehicles,04/05/2018,3432607-21797354,557.85,NORTH EAST TRUCK & VAN LTD.
Regeneration and Local Services,Direct Services,Third Party Payments 4THIRD,430100,Rendered by Private Contractors,04/05/2018,3432610-IW03860779,542.61,NORTHGATE VEHICLE HIRE LTD.
Regeneration and Local Services,Direct Services,Transport,215005,Running Costs of Vehicles,04/05/2018,3432613-324036,"14,123.20",OIL NRG LTD.
Regeneration and Local Services,Direct Services,Supplies and Services,304221,Equipment and Materials,04/05/2018,3432634-5075,"4,421.76",PINKNEY BUILDING CONTRACTORS LTD.
Regeneration and Local Services,Direct Services,Supplies and Services,304221,Equipment and Materials,04/05/2018,3432639-26042018,"1,980.00",PLANTSCAPE.
Regeneration and Local Services,Culture & Sport,Supplies and Services,338047,Services,04/05/2018,3432656-00313,504.41,RIBBON ROAD MUSIC.
Regeneration and Local Services,Direct Services,Third Party Payments 4THIRD,430100,Rendered by Private Contractors,04/05/2018,3432711-C20729,533.74,TH WHITE LTD.
Regeneration and Local Services,Direct Services,Third Party Payments 4THIRD,430100,Rendered by Private Contractors,04/05/2018,3432753-115599,"3,854.63",ZOELLER WASTE SYSTEMS LTD.
Regeneration and Local Services,Direct Services,Third Party Payments 4THIRD,430100,Rendered by Private Contractors,04/05/2018,3432753-115771,513.70,ZOELLER WASTE SYSTEMS LTD.
Regeneration and Local Services,Direct Services,Transport,210057,Repair and Maintenance of Vehicles,04/05/2018,3432753-115429,654.68,ZOELLER WASTE SYSTEMS LTD.
Regeneration and Local Services,Direct Services,Transport,210057,Repair and Maintenance of Vehicles,04/05/2018,3432753-115804,"1,509.02",ZOELLER WASTE SYSTEMS LTD.
Regeneration and Local Services,Culture & Sport,Supplies and Services,384199,Miscellaneous Expenses,08/05/2018,3433004-VOCALLESSONSGTSSJUNIORSPRINGSUMMER1,545.00,REDACTED - PAYMENT TO INDIVIDUAL
Adult and Health Services,Head of Adults,Transport,230005,Contract Hire,08/05/2018,3432758-41803,589.00,24/7 TAXI SERVICES LTD.
Adult and Health Services,Head of Adults,Transport,230005,Contract Hire,08/05/2018,3432787-DCC11APRIL18,960.00,ATLAS TAXIS BISHOP AUCKLAND.
Adult and Health Services,Head of Adults,Transport,230005,Contract Hire,08/05/2018,3432787-DCC14APRIL18,770.00,ATLAS TAXIS BISHOP AUCKLAND.
Adult and Health Services,Head of Adults,Transport,230005,Contract Hire,08/05/2018,3432787-DCC2APRIL18,"1,200.00",ATLAS TAXIS BISHOP AUCKLAND.
Adult and Health Services,Head of Adults,Transport,230005,Contract Hire,08/05/2018,3432787-DCCAPRIL18,600.00,ATLAS TAXIS BISHOP AUCKLAND.
Adult and Health Services,Head of Adults,Third Party Payments 4THIRD,479111,Purchase of Care,08/05/2018,3432803-201805,573.50,BLUE SKY TRUST.
Adult and Health Services,Head of Adults,Supplies and Services,338366,Services,08/05/2018,3432814-49167,618.45,CARE ABILITY.
Adult and Health Services,Head of Adults,Supplies and Services,338366,Services,08/05/2018,3432814-49168,"1,817.20",CARE ABILITY.
Adult and Health Services,Head of Adults,Third Party Payments 4THIRD,478151,Purchase of Care,08/05/2018,3432853-0000314749,"1,523.20",CREATIVE SUPPORT LTD.
Adult and Health Services,Head of Adults,Transport,230005,Contract Hire,08/05/2018,3432908-100822,"1,480.00",G & P JOHNSON LTD T/A NIGHTINGALE COACHES.
Adult and Health Services,Head of Adults,Transport,230005,Contract Hire,08/05/2018,3432908-100823,"1,224.00",G & P JOHNSON LTD T/A NIGHTINGALE COACHES.
Adult and Health Services,Head of Adults,Transport,230005,Contract Hire,08/05/2018,3432908-100824,784.00,G & P JOHNSON LTD T/A NIGHTINGALE COACHES.
Adult and Health Services,Head of Adults,Transport,230005,Contract Hire,08/05/2018,3432908-100825,780.00,G & P JOHNSON LTD T/A NIGHTINGALE COACHES.
Adult and Health Services,Public Health,Third Party Payments 4THIRD,460803,Contract Payments,08/05/2018,3432924-2510017552,"941,775.00",HARROGATE & DISTRICT NHS FOUNDATION TRUST.
Adult and Health Services,Head of Adults,Transport,230005,Contract Hire,08/05/2018,3432938-264,598.40,I CLYDESDALE T/A BURNOPFIELD TAXIS.
Adult and Health Services,Commissioning inc Supporting People,Third Party Payments 4THIRD,470111,Purchase of Care,08/05/2018,3432976-RINVTP/00472112,"3,710.00",LEONARD CHESHIRE DISABILITY.
Adult and Health Services,Commissioning inc Supporting People,Third Party Payments 4THIRD,470111,Purchase of Care,08/05/2018,3432976-RINVTP/00472369,"3,710.00",LEONARD CHESHIRE DISABILITY.
Adult and Health Services,Commissioning inc Supporting People,Third Party Payments 4THIRD,470111,Purchase of Care,08/05/2018,3432976-RINVTP/00476682,"4,107.50",LEONARD CHESHIRE DISABILITY.
Adult and Health Services,Commissioning inc Supporting People,Third Party Payments 4THIRD,470111,Purchase of Care,08/05/2018,3432976-RINVTP/00476687,"4,107.50",LEONARD CHESHIRE DISABILITY.
Adult and Health Services,Head of Adults,Transport,230005,Contract Hire,08/05/2018,3432995-0418,550.00,MR D DONNELLY.
Adult and Health Services,Head of Adults,Transport,230005,Contract Hire,08/05/2018,3433000-3021,"1,940.00",MR S BOWERS T/A DH7 TAXIS.
Children and Young Peoples Services,Head of Education,Transport,230007,Contract Hire,08/05/2018,3432758-41801,679.00,24/7 TAXI SERVICES LTD.
Children and Young Peoples Services,Head of Education,Transport,230008,Contract Hire,08/05/2018,3432758-41804,"1,350.00",24/7 TAXI SERVICES LTD.
Children and Young Peoples Services,Head of Education,Transport,230008,Contract Hire,08/05/2018,3432763-A220797,737.00,A MURRAY TRAVEL.
Children and Young Peoples Services,Head of Education,Transport,230008,Contract Hire,08/05/2018,3432764-1/4/18,770.00,ABA TAXIS.
Children and Young Peoples Services,Head of Looked After Provision Permanence and Care Leavers,Supplies and Services,338078,Services,08/05/2018,3432770-07428,"1,503.60",ALL EVENTS SECURITY LTD (AES).
Children and Young Peoples Services,Head of Looked After Provision Permanence and Care Leavers,Supplies and Services,338078,Services,08/05/2018,3432770-07437,"1,503.60",ALL EVENTS SECURITY LTD (AES).
Children and Young Peoples Services,Head of Looked After Provision Permanence and Care Leavers,Supplies and Services,338078,Services,08/05/2018,3432770-07446,"1,503.60",ALL EVENTS SECURITY LTD (AES).
Children and Young Peoples Services,Head of Education,Transport,230012,Contract Hire,08/05/2018,3432783-APRIL2018-02,619.40,ARMSTRONG`S TAXIS.
Children and Young Peoples Services,Head of Education,Transport,230008,Contract Hire,08/05/2018,3432783-APR2018-01,990.00,ARMSTRONG`S TAXIS.
Children and Young Peoples Services,Head of Education,Transport,230007,Contract Hire,08/05/2018,3432786-647,544.50,AT TAXIS LTD.
Children and Young Peoples Services,Head of Education,Transport,230008,Contract Hire,08/05/2018,3432786-646,961.20,AT TAXIS LTD.
Children and Young Peoples Services,Head of Education,Transport,230008,Contract Hire,08/05/2018,3432786-648,"1,078.00",AT TAXIS LTD.
Children and Young Peoples Services,Head of Education,Transport,230008,Contract Hire,08/05/2018,3432786-649,"1,199.00",AT TAXIS LTD.
Children and Young Peoples Services,Head of Education,Transport,230008,Contract Hire,08/05/2018,3432787-DCC12APRIL18,880.00,ATLAS TAXIS BISHOP AUCKLAND.
Children and Young Peoples Services,Head of Education,Transport,230008,Contract Hire,08/05/2018,3432787-DCC12MARCH18,"1,568.00",ATLAS TAXIS BISHOP AUCKLAND.
Children and Young Peoples Services,Head of Education,Transport,230006,Contract Hire,08/05/2018,3432800-F732-APRIL,697.60,BIG MAMA`S TAXI.
Children and Young Peoples Services,Head of Education,Transport,230008,Contract Hire,08/05/2018,3432807-8-A072,726.00,BRIAN PURVIS T/A BJ`S TAXIS.
Children and Young Peoples Services,Head of Education,Transport,230016,Contract Hire,08/05/2018,3432810-W153019,559.00,C & R TAXIS.
Children and Young Peoples Services,Head of Education,Transport,230008,Contract Hire,08/05/2018,3432810-A02808,715.00,C & R TAXIS.
Children and Young Peoples Services,Head of Education,Transport,230008,Contract Hire,08/05/2018,3432810-S02608,715.00,C & R TAXIS.
Children and Young Peoples Services,Head of Education,Transport,230008,Contract Hire,08/05/2018,3432810-WO7808,"1,320.00",C & R TAXIS.
Children and Young Peoples Services,Head of Education,Transport,230008,Contract Hire,08/05/2018,3432824-009,"1,265.00",CHANNER`S CABS.
Children and Young Peoples Services,Head of Education,Transport,230007,Contract Hire,08/05/2018,3432848-DCC/4003/APRIL18,"1,001.00",COUNTY COACHES.
Children and Young Peoples Services,Head of Education,Transport,230007,Contract Hire,08/05/2018,3432848-DCC/4118/APRIL18,"2,596.00",COUNTY COACHES.
Children and Young Peoples Services,Head of Education,Transport,230008,Contract Hire,08/05/2018,3432855-1574,825.00,DA TAXIS.
Children and Young Peoples Services,Head of Education,Transport,230008,Contract Hire,08/05/2018,3432855-1575,517.50,DA TAXIS.
Children and Young Peoples Services,Head of Education,Transport,230008,Contract Hire,08/05/2018,3432856-265,638.00,DA TRAVEL.
Children and Young Peoples Services,Head of Education,Transport,230008,Contract Hire,08/05/2018,3432856-266,682.00,DA TRAVEL.
Children and Young Peoples Services,Head of Education,Transport,230008,Contract Hire,08/05/2018,3432860-3283,510.00,DAVES MINIBUSES.
Children and Young Peoples Services,Head of Education,Transport,230008,Contract Hire,08/05/2018,3432860-3284,935.00,DAVES MINIBUSES.
Children and Young Peoples Services,Head of Education,Transport,230008,Contract Hire,08/05/2018,3432860-3285,726.00,DAVES MINIBUSES.
Children and Young Peoples Services,Head of Education,Transport,230008,Contract Hire,08/05/2018,3432860-3286,946.00,DAVES MINIBUSES.
Children and Young Peoples Services,Head of Education,Transport,230008,Contract Hire,08/05/2018,3432860-3287,858.00,DAVES MINIBUSES.
Children and Young Peoples Services,Head of Education,Transport,230008,Contract Hire,08/05/2018,3432860-3288,850.00,DAVES MINIBUSES.
Children and Young Peoples Services,Head of Education,Transport,230008,Contract Hire,08/05/2018,3432861-A63,"1,045.00",DAVES TAXIS.
Children and Young Peoples Services,Head of Education,Transport,230008,Contract Hire,08/05/2018,3432861-A64,715.00,DAVES TAXIS.
Children and Young Peoples Services,Head of Looked After Provision Permanence and Care Leavers,Employees,080025,Agency Staff,08/05/2018,3432863-1053383,"144,833.49",DE POEL MANAGED SERVICES LTD.
Children and Young Peoples Services,Head of Education,Transport,230008,Contract Hire,08/05/2018,3432865-E011/07,"1,155.00",DEXTERS PRIVATE HIRE.
Children and Young Peoples Services,Head of Education,Transport,230010,Contract Hire,08/05/2018,3432867-18/44,668.80,DMG PRIVATE HIRE.
Children and Young Peoples Services,Head of Education,Transport,230003,Contract Hire,08/05/2018,3432873-26147,"1,485.00",DURHAM CITY COACHES.
Children and Young Peoples Services,Head of Education,Transport,230008,Contract Hire,08/05/2018,3432902-0420,814.00,FMR SILVA PITA.
Children and Young Peoples Services,Head of Looked After Provision Permanence and Care Leavers,Third Party Payments 4THIRD,425021,Rendered by Voluntary Organisations,08/05/2018,3432903-422,"3,142.85",FOREVER CARE.
Children and Young Peoples Services,Head of Education,Transport,230007,Contract Hire,08/05/2018,3432908-100815,748.00,G & P JOHNSON LTD T/A NIGHTINGALE COACHES.
Children and Young Peoples Services,Head of Education,Transport,230008,Contract Hire,08/05/2018,3432938-263,"1,276.00",I CLYDESDALE T/A BURNOPFIELD TAXIS.
Children and Young Peoples Services,Head of Education,Transport,230007,Contract Hire,08/05/2018,3432946-2760,797.39,JEFF ANDERSON COACHES LTD.
Children and Young Peoples Services,Head of Education,Transport,230007,Contract Hire,08/05/2018,3432946-2761,"1,033.89",JEFF ANDERSON COACHES LTD.
Children and Young Peoples Services,Head of Education,Transport,230008,Contract Hire,08/05/2018,3432946-2756,896.39,JEFF ANDERSON COACHES LTD.
Children and Young Peoples Services,Head of Education,Transport,230008,Contract Hire,08/05/2018,3432946-2757,852.39,JEFF ANDERSON COACHES LTD.
Children and Young Peoples Services,Head of Education,Transport,230012,Contract Hire,08/05/2018,3432949-30/04/18F,660.00,JL EBDON. T/A DIAL-A-CAB.
Children and Young Peoples Services,Head of Education,Transport,230008,Contract Hire,08/05/2018,3432949-30/04/18A,"1,518.00",JL EBDON. T/A DIAL-A-CAB.
Children and Young Peoples Services,Head of Education,Transport,230008,Contract Hire,08/05/2018,3432949-30/04/18B,748.00,JL EBDON. T/A DIAL-A-CAB.
Children and Young Peoples Services,Head of Education,Transport,230008,Contract Hire,08/05/2018,3432949-30/04/18C,660.00,JL EBDON. T/A DIAL-A-CAB.
Children and Young Peoples Services,Head of Education,Transport,230008,Contract Hire,08/05/2018,3432949-30/04/18D,"1,078.00",JL EBDON. T/A DIAL-A-CAB.
Children and Young Peoples Services,Head of Education,Transport,230008,Contract Hire,08/05/2018,3432949-30/04/18E,968.00,JL EBDON. T/A DIAL-A-CAB.
Children and Young Peoples Services,Head of Education,Transport,230008,Contract Hire,08/05/2018,3432949-30/04/18G,"1,131.50",JL EBDON. T/A DIAL-A-CAB.
Children and Young Peoples Services,Head of Education,Transport,230008,Contract Hire,08/05/2018,3432949-30/04/18H,660.00,JL EBDON. T/A DIAL-A-CAB.
Children and Young Peoples Services,Head of Education,Transport,230009,Contract Hire,08/05/2018,3432953-723117,835.00,JOVIAL PRIVATE HIRE.
Children and Young Peoples Services,Head of Education,Transport,230008,Contract Hire,08/05/2018,3432953-M01508,649.00,JOVIAL PRIVATE HIRE.
Children and Young Peoples Services,Head of Education,Transport,230008,Contract Hire,08/05/2018,3432953-N05903,792.00,JOVIAL PRIVATE HIRE.
Children and Young Peoples Services,Head of Education,Transport,230008,Contract Hire,08/05/2018,3432956-010APR18,560.00,KDH TAXIS.
Children and Young Peoples Services,Head of Education,Transport,230006,Contract Hire,08/05/2018,3432971-IV1153,950.00,LD TAXIS.
Children and Young Peoples Services,Head of Education,Transport,230007,Contract Hire,08/05/2018,3432973-5082-4010,"3,300.00",LEE`S COACHES LTD.
Children and Young Peoples Services,Head of Education,Transport,230007,Contract Hire,08/05/2018,3432973-5082-4226,"2,200.00",LEE`S COACHES LTD.
Children and Young Peoples Services,Head of Education,Transport,230007,Contract Hire,08/05/2018,3432973-5082-4227,"1,595.00",LEE`S COACHES LTD.
Children and Young Peoples Services,Head of Education,Transport,230012,Contract Hire,08/05/2018,3432977-3776,747.70,LINCAB TAXIS.
Children and Young Peoples Services,Head of Education,Transport,230008,Contract Hire,08/05/2018,3432977-3775,"1,205.00",LINCAB TAXIS.
Children and Young Peoples Services,Head of Education,Transport,230008,Contract Hire,08/05/2018,3432982-115,660.00,M BUTCHER T/A M & M`S TAXIS.
Children and Young Peoples Services,Head of Education,Transport,230008,Contract Hire,08/05/2018,3433000-3020,"2,078.00",MR S BOWERS T/A DH7 TAXIS.
Children and Young Peoples Services,Head of Early Help Assessment and Safeguarding,Third Party Payments 4THIRD,425023,Rendered by Voluntary Organisations,08/05/2018,3433020-0000036261,"7,540.00",NORTH EAST AUTISM SOCIETY.
Children and Young Peoples Services,Head of Early Help Assessment and Safeguarding,Third Party Payments 4THIRD,425023,Rendered by Voluntary Organisations,08/05/2018,3433021-1966,"14,013.55",NORTH LAKES CHILDREN`S SERVICES LTD.
Children and Young Peoples Services,Head of Education,Transport,230008,Contract Hire,08/05/2018,3433035-SC-315,880.00,PAUL BURRELL T/A PAUL BURRELL TAXIS.
Children and Young Peoples Services,Head of Education,Transport,230008,Contract Hire,08/05/2018,3433040-810-E004,"1,045.00",PG TRIPS.
Children and Young Peoples Services,Head of Education,Transport,230008,Contract Hire,08/05/2018,3433040-810-M014,935.00,PG TRIPS.
Children and Young Peoples Services,Head of Education,Transport,230006,Contract Hire,08/05/2018,3433071-1467,528.00,ROAD RUNNERS (NE) LTD.
Children and Young Peoples Services,Head of Education,Transport,230016,Contract Hire,08/05/2018,3433071-1457,715.00,ROAD RUNNERS (NE) LTD.
Children and Young Peoples Services,Head of Education,Transport,230008,Contract Hire,08/05/2018,3433071-1460,770.00,ROAD RUNNERS (NE) LTD.
Children and Young Peoples Services,Head of Education,Transport,230008,Contract Hire,08/05/2018,3433071-1462,"1,568.00",ROAD RUNNERS (NE) LTD.
Children and Young Peoples Services,Head of Education,Transport,230008,Contract Hire,08/05/2018,3433071-1478,594.00,ROAD RUNNERS (NE) LTD.
Children and Young Peoples Services,Head of Education,Transport,230007,Contract Hire,08/05/2018,3433073-171015,"1,512.50",ROBERTS TOURS.
Children and Young Peoples Services,Head of Education,Transport,230007,Contract Hire,08/05/2018,3433073-171016,"1,262.25",ROBERTS TOURS.
Children and Young Peoples Services,Head of Education,Transport,230007,Contract Hire,08/05/2018,3433073-171017,"1,595.00",ROBERTS TOURS.
Children and Young Peoples Services,Head of Education,Transport,230008,Contract Hire,08/05/2018,3433075-0050,"1,045.00",RONS TAXI (CHESTER LE ST).
Children and Young Peoples Services,Head of Education,Transport,230003,Contract Hire,08/05/2018,3433079-3208/19,979.00,S & S TRAVEL LTD.
Children and Young Peoples Services,Head of Education,Transport,230006,Contract Hire,08/05/2018,3433079-F725/08,"1,100.00",S & S TRAVEL LTD.
Children and Young Peoples Services,Head of Education,Transport,230008,Contract Hire,08/05/2018,3433079-S017/19,924.00,S & S TRAVEL LTD.
Children and Young Peoples Services,Head of Education,Transport,230008,Contract Hire,08/05/2018,3433079-S020/08,"1,045.00",S & S TRAVEL LTD.
Children and Young Peoples Services,Head of Education,Transport,230008,Contract Hire,08/05/2018,3433079-W048/19,979.00,S & S TRAVEL LTD.
Children and Young Peoples Services,Head of Education,Transport,230008,Contract Hire,08/05/2018,3433079-W052/19A,"1,045.00",S & S TRAVEL LTD.
Children and Young Peoples Services,Head of Education,Transport,230008,Contract Hire,08/05/2018,3433079-W056/19,924.00,S & S TRAVEL LTD.
Children and Young Peoples Services,Head of Early Help Assessment and Safeguarding,Third Party Payments 4THIRD,425023,Rendered by Voluntary Organisations,08/05/2018,3433082-CHI036193,"13,833.33",S/C 200000 CAMBIAN CHILDCARE LTD.
Children and Young Peoples Services,Head of Education,Supplies and Services,304083,Equipment and Materials,08/05/2018,3433092-0400766,"1,076.08",SERVICELINE.
Children and Young Peoples Services,Head of Education,Transport,230008,Contract Hire,08/05/2018,3433099-74158,"1,026.00",SHOTTON PRIVATE HIRE.
Children and Young Peoples Services,Head of Education,Transport,230016,Contract Hire,08/05/2018,3433106-167,594.00,SIMONS TAXIS.
Children and Young Peoples Services,Head of Education,Transport,230008,Contract Hire,08/05/2018,3433106-165,605.00,SIMONS TAXIS.
Children and Young Peoples Services,Head of Education,Transport,230008,Contract Hire,08/05/2018,3433106-166,"1,199.00",SIMONS TAXIS.
Children and Young Peoples Services,Head of Looked After Provision Permanence and Care Leavers,Third Party Payments 4THIRD,425041,Rendered by Voluntary Organisations,08/05/2018,3433112-SACS2018/02/82332,"18,000.00",ST ANDREWS CHILDREN`S SOCIETY LTD.
Children and Young Peoples Services,Head of Education,Transport,230008,Contract Hire,08/05/2018,3433119-180448,990.00,STEVEN PRATT T/A PTL TAXIS DURHAM.
Children and Young Peoples Services,Head of Education,Transport,230008,Contract Hire,08/05/2018,3433127-08,506.00,SWIFT TAXIS.
Children and Young Peoples Services,Head of Looked After Provision Permanence and Care Leavers,Supplies and Services,384534,Miscellaneous Expenses,08/05/2018,3433140-22678,"4,057.32",THE FOSTERING NETWORK.
Children and Young Peoples Services,Head of Education,Transport,230008,Contract Hire,08/05/2018,3433151-08,550.00,TRIDENT TAXIS.
Children and Young Peoples Services,Head of Education,Transport,230008,Contract Hire,08/05/2018,3433151-1,720.00,TRIDENT TAXIS.
Dedicated Schools Grant,DSG High Needs Block,Transport,230010,Contract Hire,08/05/2018,3432800-B013-APRIL,"1,130.00",BIG MAMA`S TAXI.
Dedicated Schools Grant,DSG High Needs Block,Transport,230010,Contract Hire,08/05/2018,3432804-69,770.00,BOBS TAXIS.
Dedicated Schools Grant,DSG High Needs Block,Transport,230010,Contract Hire,08/05/2018,3432977-3777,"2,345.00",LINCAB TAXIS.
Dedicated Schools Grant,DSG High Needs Block,Transport,230010,Contract Hire,08/05/2018,3433071-1466,"1,227.00",ROAD RUNNERS (NE) LTD.
Dedicated Schools Grant,DSG High Needs Block,Transport,230010,Contract Hire,08/05/2018,3433071-1474,792.00,ROAD RUNNERS (NE) LTD.
Regeneration and Local Services,Technical Services,Supplies and Services,304221,Equipment and Materials,08/05/2018,3432768-26382535,774.67,AGGREGATE INDUSTRIES UK LTD.
Regeneration and Local Services,Technical Services,Supplies and Services,304221,Equipment and Materials,08/05/2018,3432768-26389425,767.68,AGGREGATE INDUSTRIES UK LTD.
Regeneration and Local Services,Culture & Sport,Supplies and Services,384199,Miscellaneous Expenses,08/05/2018,3432772-4100616776,"2,225.00",AMANDA WOODS.
Regeneration and Local Services,Culture & Sport,Supplies and Services,312013,Newspapers books and periodicals E312,08/05/2018,3432784-5712318,549.45,ASKEWS & HOLTS LIBRARY SERVICES LTD.
Regeneration and Local Services,Culture & Sport,Supplies and Services,312013,Newspapers books and periodicals E312,08/05/2018,3432784-5712342,614.91,ASKEWS & HOLTS LIBRARY SERVICES LTD.
Regeneration and Local Services,Culture & Sport,Supplies and Services,312013,Newspapers books and periodicals E312,08/05/2018,3432784-5715539,772.00,ASKEWS & HOLTS LIBRARY SERVICES LTD.
Regeneration and Local Services,Technical Services,Supplies and Services,304358,Equipment and Materials,08/05/2018,3432790-MG05884,650.00,BAILEY CONCRETE PUMPING LTD.
Regeneration and Local Services,Technical Services,Supplies and Services,304358,Equipment and Materials,08/05/2018,3432790-MG05885,650.00,BAILEY CONCRETE PUMPING LTD.
Regeneration and Local Services,Technical Services,Supplies and Services,304358,Equipment and Materials,08/05/2018,3432802-NC/024/BW,"2,035.00",BISHOP MIDDLEHAM PLANT & RECYCLING LTD.
Regeneration and Local Services,Direct Services,Supplies and Services,304259,Equipment and Materials,08/05/2018,3432811-CN19671881,632.76,CANNON HYGIENE LTD.
Regeneration and Local Services,Direct Services,Premises,106082,Centrally Controlled Rep and Maint,08/05/2018,3432820-4185,"2,581.10",CATHEDRAL LOCK & SAFE SERVICES LTD.
Regeneration and Local Services,Economic Development and Housing,Supplies and Services,368008,Incentives to Industrialists,08/05/2018,3432849-RED-05-2018-038,"3,101.37",COUNTY DURHAM ENGINEERING & MANUFACTURING NETWORK LTD (CDEMN).
Regeneration and Local Services,Direct Services,Third Party Payments 4THIRD,430101,Rendered by Private Contractors,08/05/2018,3432866-IV977562,"1,535.75",DIRECT TYRE MANAGEMENT (DTM).
Regeneration and Local Services,Direct Services,Supplies and Services,304221,Equipment and Materials,08/05/2018,3432883-059-221653,"9,728.10",EDMUNDSON ELECTRICAL LTD.
Regeneration and Local Services,Direct Services,Premises,108099,Service Repairs and Maintenance,08/05/2018,3432888-74282,654.50,EIAT UK LTD.
Regeneration and Local Services,Direct Services,Supplies and Services,304221,Equipment and Materials,08/05/2018,3432896-ES3796,"1,917.00",EVERSHED PRODUCTS.
Regeneration and Local Services,Technical Services,Supplies and Services,304358,Equipment and Materials,08/05/2018,3432909-24327,808.50,GA SMITH LTD (PLANT HIRE).
Regeneration and Local Services,Direct Services,Vehicles Equipment Furniture and Fittings,912529,Purchase-equipment,08/05/2018,3432920-057210,"50,295.00",HAGS-SMP LTD.
Regeneration and Local Services,Culture & Sport,Premises,106080,Centrally Controlled Rep and Maint,08/05/2018,3432945-16992,"1,430.00",JC MAINTENANCE SERVICES LTD.
Regeneration and Local Services,Technical Services,Supplies and Services,304358,Equipment and Materials,08/05/2018,3432960-2138,782.00,KEVIN SNOWDON GROUNDWORKS LTD.
Regeneration and Local Services,Technical Services,Supplies and Services,304358,Equipment and Materials,08/05/2018,3432960-2146,707.50,KEVIN SNOWDON GROUNDWORKS LTD.
Regeneration and Local Services,Technical Services,Supplies and Services,304358,Equipment and Materials,08/05/2018,3432960-2151,889.50,KEVIN SNOWDON GROUNDWORKS LTD.
Regeneration and Local Services,Technical Services,Supplies and Services,304358,Equipment and Materials,08/05/2018,3432960-2155,"1,139.00",KEVIN SNOWDON GROUNDWORKS LTD.
Regeneration and Local Services,Technical Services,Supplies and Services,304358,Equipment and Materials,08/05/2018,3432960-2156,839.50,KEVIN SNOWDON GROUNDWORKS LTD.
Regeneration and Local Services,Technical Services,Supplies and Services,304358,Equipment and Materials,08/05/2018,3432960-2160,703.00,KEVIN SNOWDON GROUNDWORKS LTD.
Regeneration and Local Services,Technical Services,Supplies and Services,304358,Equipment and Materials,08/05/2018,3432960-2161,703.00,KEVIN SNOWDON GROUNDWORKS LTD.
Regeneration and Local Services,Technical Services,Supplies and Services,304358,Equipment and Materials,08/05/2018,3432960-2162,755.00,KEVIN SNOWDON GROUNDWORKS LTD.
Regeneration and Local Services,Technical Services,Supplies and Services,304358,Equipment and Materials,08/05/2018,3432960-2163,"2,023.50",KEVIN SNOWDON GROUNDWORKS LTD.
Regeneration and Local Services,Technical Services,Supplies and Services,304358,Equipment and Materials,08/05/2018,3432960-2164,"2,214.00",KEVIN SNOWDON GROUNDWORKS LTD.
Regeneration and Local Services,Technical Services,Supplies and Services,304358,Equipment and Materials,08/05/2018,3432960-2165,755.00,KEVIN SNOWDON GROUNDWORKS LTD.
Regeneration and Local Services,Technical Services,Supplies and Services,304358,Equipment and Materials,08/05/2018,3432960-2166,755.00,KEVIN SNOWDON GROUNDWORKS LTD.
Regeneration and Local Services,Technical Services,Supplies and Services,304358,Equipment and Materials,08/05/2018,3432960-2167,"2,214.00",KEVIN SNOWDON GROUNDWORKS LTD.
Regeneration and Local Services,Technical Services,Supplies and Services,304358,Equipment and Materials,08/05/2018,3432960-2168,"2,023.50",KEVIN SNOWDON GROUNDWORKS LTD.
Regeneration and Local Services,Technical Services,Supplies and Services,304358,Equipment and Materials,08/05/2018,3432960-2169,755.00,KEVIN SNOWDON GROUNDWORKS LTD.
Regeneration and Local Services,Technical Services,Supplies and Services,304358,Equipment and Materials,08/05/2018,3432960-2170,755.00,KEVIN SNOWDON GROUNDWORKS LTD.
Regeneration and Local Services,Technical Services,Supplies and Services,304358,Equipment and Materials,08/05/2018,3432960-2171,"2,023.50",KEVIN SNOWDON GROUNDWORKS LTD.
Regeneration and Local Services,Direct Services,Premises,106082,Centrally Controlled Rep and Maint,08/05/2018,3432981-68169,500.00,LUCION ENVIRONMENTAL LLP LTD.
Regeneration and Local Services,Culture & Sport,Supplies and Services,384199,Miscellaneous Expenses,08/05/2018,3432985-4100616737-4/5/18,"1,675.00",MARK IAN THOMPSON.
Regeneration and Local Services,Technical Services,Third Party Payments 4THIRD,430100,Rendered by Private Contractors,08/05/2018,3432989-291,"2,025.00",MICHAEL KELLY.
Regeneration and Local Services,EnvironmentHealth & Consumer Protection,Supplies and Services,338045,Services,08/05/2018,3433001-107827,"1,245.00",MR SAM FAULKS (BARRISTER).
Regeneration and Local Services,Culture & Sport,Supplies and Services,312013,Newspapers books and periodicals E312,08/05/2018,3433013-006167,593.00,NEWSMARKET.
Regeneration and Local Services,Direct Services,Transport,215005,Running Costs of Vehicles,08/05/2018,3433026-321132,"3,004.80",OIL NRG LTD.
Regeneration and Local Services,Direct Services,Transport,215005,Running Costs of Vehicles,08/05/2018,3433026-322624,"14,870.49",OIL NRG LTD.
Regeneration and Local Services,Direct Services,Transport,215022,Running Costs of Vehicles,08/05/2018,3433026-321133,540.50,OIL NRG LTD.
Regeneration and Local Services,Direct Services,Transport,215022,Running Costs of Vehicles,08/05/2018,3433026-322625,"1,591.66",OIL NRG LTD.
Regeneration and Local Services,Technical Services,Third Party Payments 4THIRD,430100,Rendered by Private Contractors,08/05/2018,3433046-5104,"4,712.50",PINKNEY BUILDING CONTRACTORS LTD.
Regeneration and Local Services,Technical Services,Third Party Payments 4THIRD,430100,Rendered by Private Contractors,08/05/2018,3433046-5105,"6,471.50",PINKNEY BUILDING CONTRACTORS LTD.
Regeneration and Local Services,Direct Services,Third Party Payments 4THIRD,430100,Rendered by Private Contractors,08/05/2018,3433050-900808964,"1,754.12",PORTAKABIN LTD.
Regeneration and Local Services,Economic Development and Housing,Supplies and Services,352001,Conference Expenses,08/05/2018,3433154-3920537,"4,000.00",REACH PUBLISHING SERVICES LTD.
Regeneration and Local Services,Spatial Policy Planning Assets & Environment,Supplies and Services,338027,Services,08/05/2018,3433074-INV-0744,799.00,ROBSON & LIDDLE CHARTERED SURVEYORS.
Regeneration and Local Services,Direct Services,Third Party Payments 4THIRD,430100,Rendered by Private Contractors,08/05/2018,3433125-180125,"1,908.00",SUPATINT LTD T/A SUPATINT WINDOW FILMS & BLINDS.
Regeneration and Local Services,Technical Services,Supplies and Services,304358,Equipment and Materials,08/05/2018,3433143-31428,"1,245.00",TODDS HIGHWAY MAINTENANCE LTD.
Regeneration and Local Services,Direct Services,Supplies and Services,304221,Equipment and Materials,08/05/2018,3433144-114177,612.42,TOMMY WARDLE.
Regeneration and Local Services,Technical Services,Supplies and Services,304221,Equipment and Materials,08/05/2018,3433160-185560,"1,106.75",TYNEDALE ROADSTONE LTD.
Regeneration and Local Services,Technical Services,Supplies and Services,304221,Equipment and Materials,08/05/2018,3433160-185600,"1,106.75",TYNEDALE ROADSTONE LTD.
Regeneration and Local Services,Technical Services,Supplies and Services,304358,Equipment and Materials,08/05/2018,3433169-44899,"3,800.00",W MARLEY AGRICULTURAL CONTRACTORS LTD.
Regeneration and Local Services,Technical Services,Supplies and Services,304358,Equipment and Materials,08/05/2018,3433169-44961,"2,002.50",W MARLEY AGRICULTURAL CONTRACTORS LTD.
Regeneration and Local Services,EnvironmentHealth & Consumer Protection,Third Party Payments 4THIRD,430100,Rendered by Private Contractors,08/05/2018,3433179-1-7452,820.35,WILSON VETERINARY GROUP.
Regeneration and Local Services,Technical Services,Supplies and Services,304358,Equipment and Materials,08/05/2018,3433182-7062,"1,101.75",YOULL CONSTRUCTION LTD.
Transformation and Partnerships,Partnerships & Community Engagement Div.,Supplies and Services,384086,Miscellaneous Expenses,08/05/2018,3432818-BLAJ01-18,500.00,CASSOP COMMUNITY CENTRE.
Transformation and Partnerships,Partnerships & Community Engagement Div.,Supplies and Services,384086,Miscellaneous Expenses,08/05/2018,3432894-MCGM03-18-SIMA03-18,999.00,ESH VILLAGE RESIDENTS ASSOCIATION.
Transformation and Partnerships,Partnerships & Community Engagement Div.,Supplies and Services,384086,Miscellaneous Expenses,08/05/2018,3432897-SIMM01-18-WILK01-18,550.00,EXCEL ACADEMY PARTNERSHIP T/A FRAMWELLGATE SCHOOL DURHAM.
Transformation and Partnerships,Partnerships & Community Engagement Div.,Supplies and Services,384086,Miscellaneous Expenses,08/05/2018,3432925-COCI01-18-HUNE02-18,750.00,HASWELL & DISTRICT MENCAP SOCIETY.
Transformation and Partnerships,Partnerships & Community Engagement Div.,Supplies and Services,384086,Miscellaneous Expenses,08/05/2018,3432936-CLAJ03-18-MCLI02-18,500.00,HORDEN PARISH COUNCIL.
Transformation and Partnerships,Partnerships & Community Engagement Div.,Supplies and Services,384086,Miscellaneous Expenses,08/05/2018,3432959-BLAJ02-18,500.00,KELLOE COMMUNITY ASSOCIATION.
Transformation and Partnerships,Partnerships & Community Engagement Div.,Cap Exp on Grants & Other Financial Assistance (REFCUS),918004,Contributions to other bodies 918004,08/05/2018,3433091-VOUCHER16NB-EDUR092,"61,152.69",SEAHAM TOWN COUNCIL.
Transformation and Partnerships,Partnerships & Community Engagement Div.,Supplies and Services,384086,Miscellaneous Expenses,08/05/2018,3433097-NICH01-18-QUIS01-18,500.00,SHILDON TOWN COUNCIL.
Transformation and Partnerships,Partnerships & Community Engagement Div.,Supplies and Services,384086,Miscellaneous Expenses,08/05/2018,3433153-BROP06-18-HOVL04-18,500.00,TRIMDON VILLAGE HALL.
Adult and Health Services,Commissioning inc Supporting People,Third Party Payments 4THIRD,442002,Supporting People E442,09/05/2018,3433206-1967633,"16,448.04",BID SERVICES WITH DEAF PEOPLE.
Adult and Health Services,Head of Adults,Supplies and Services,338366,Services,09/05/2018,3433225-49040-2018,"5,952.60",CARE ABILITY.
Adult and Health Services,Public Health,Third Party Payments 4THIRD,460802,Contract Payments,09/05/2018,3433240-A83011Q4/2017-2018CHLAMYDIA,"1,010.00",CLAYPATH & UNIVERSITY MEDICAL GROUP.
Adult and Health Services,Commissioning inc Supporting People,Third Party Payments 4THIRD,442002,Supporting People E442,09/05/2018,3433252-1967719,"50,380.79",CREATIVE SUPPORT LTD.
Adult and Health Services,Head of Adults,Third Party Payments 4THIRD,472101,Purchase of Care,09/05/2018,3433254-5245,631.20,DCS & D LTD T/A HERITAGE HEALTHCARE.
Adult and Health Services,Head of Adults,Third Party Payments 4THIRD,472101,Purchase of Care,09/05/2018,3433254-5246,"1,367.60",DCS & D LTD T/A HERITAGE HEALTHCARE.
Adult and Health Services,Head of Adults,Third Party Payments 4THIRD,472101,Purchase of Care,09/05/2018,3433254-5247,"1,367.60",DCS & D LTD T/A HERITAGE HEALTHCARE.
Adult and Health Services,Commissioning inc Supporting People,Third Party Payments 4THIRD,442002,Supporting People E442,09/05/2018,3433258-1967623,"5,668.48",DISC LTD.
Adult and Health Services,Commissioning inc Supporting People,Third Party Payments 4THIRD,442002,Supporting People E442,09/05/2018,3433258-1967655,"27,885.68",DISC LTD.
Adult and Health Services,Commissioning inc Supporting People,Third Party Payments 4THIRD,441001,Supporting People E441,09/05/2018,3433270-1967658,"20,819.76",DURHAM ACTION ON SINGLE HOUSING.
Adult and Health Services,Commissioning inc Supporting People,Third Party Payments 4THIRD,443001,Supporting People E443,09/05/2018,3433270-1967663,"5,561.06",DURHAM ACTION ON SINGLE HOUSING.
Adult and Health Services,Commissioning inc Supporting People,Third Party Payments 4THIRD,441001,Supporting People E441,09/05/2018,3433275-1967627,"5,483.40",EAST DURHAM COMMUNITY INITIATIVES LTD.
Adult and Health Services,Commissioning inc Supporting People,Third Party Payments 4THIRD,442002,Supporting People E442,09/05/2018,3433296-1967619,"2,863.28",FOUNDATION.
Adult and Health Services,Commissioning inc Supporting People,Third Party Payments 4THIRD,442002,Supporting People E442,09/05/2018,3433296-1967657,"19,776.44",FOUNDATION.
Adult and Health Services,Commissioning inc Supporting People,Third Party Payments 4THIRD,442002,Supporting People E442,09/05/2018,3433297-1967618,"32,194.64",FOUR HOUSING GROUP & CARE & REPAIR HANDYPERSON SERVICE.
Adult and Health Services,Commissioning inc Supporting People,Third Party Payments 4THIRD,442002,Supporting People E442,09/05/2018,3433312-1967668,"3,297.48",HANOVER HOUSING ASSOCIATION.
Adult and Health Services,Commissioning inc Supporting People,Third Party Payments 4THIRD,441001,Supporting People E441,09/05/2018,3433313-1967624,"18,082.80",HARBOUR SUPPORT SERVICES.
Adult and Health Services,Public Health,Third Party Payments 4THIRD,460803,Contract Payments,09/05/2018,3433315-2510017875,"941,775.00",HARROGATE & DISTRICT NHS FOUNDATION TRUST.
Adult and Health Services,Commissioning inc Supporting People,Third Party Payments 4THIRD,442002,Supporting People E442,09/05/2018,3433364-1967625,"5,469.72",MENTAL HEALTH MATTERS.
Adult and Health Services,Commissioning inc Supporting People,Third Party Payments 4THIRD,442002,Supporting People E442,09/05/2018,3433371-1967669,"2,620.48",MOVING ON.
Adult and Health Services,Commissioning inc Supporting People,Third Party Payments 4THIRD,441001,Supporting People E441,09/05/2018,3433429-1967715,"23,896.27",RICHMOND FELLOWSHIP.
Adult and Health Services,Commissioning inc Supporting People,Third Party Payments 4THIRD,442002,Supporting People E442,09/05/2018,3433429-1967678,"18,654.54",RICHMOND FELLOWSHIP.
Adult and Health Services,Commissioning inc Supporting People,Third Party Payments 4THIRD,444002,Supporting People E444,09/05/2018,3433429-1967681,"9,668.69",RICHMOND FELLOWSHIP.
Adult and Health Services,Commissioning inc Supporting People,Third Party Payments 4THIRD,442002,Supporting People E442,09/05/2018,3433443-1967659,"6,331.08",SHAID LTD.
Adult and Health Services,Commissioning inc Supporting People,Third Party Payments 4THIRD,441001,Supporting People E441,09/05/2018,3433461-1967629,"54,465.72",STONHAM HOUSING ASSOCIATION LTD.
Adult and Health Services,Commissioning inc Supporting People,Third Party Payments 4THIRD,441001,Supporting People E441,09/05/2018,3433461-1967677,"15,342.48",STONHAM HOUSING ASSOCIATION LTD.
Adult and Health Services,Commissioning inc Supporting People,Third Party Payments 4THIRD,442002,Supporting People E442,09/05/2018,3433461-1967622,"113,942.68",STONHAM HOUSING ASSOCIATION LTD.
Adult and Health Services,Commissioning inc Supporting People,Third Party Payments 4THIRD,442002,Supporting People E442,09/05/2018,3433461-1967676,"27,962.72",STONHAM HOUSING ASSOCIATION LTD.
Adult and Health Services,Commissioning inc Supporting People,Third Party Payments 4THIRD,443001,Supporting People E443,09/05/2018,3433461-1967630,"11,506.84",STONHAM HOUSING ASSOCIATION LTD.
Adult and Health Services,Commissioning inc Supporting People,Third Party Payments 4THIRD,443001,Supporting People E443,09/05/2018,3433461-1967636,900.48,STONHAM HOUSING ASSOCIATION LTD.
Adult and Health Services,Commissioning inc Supporting People,Third Party Payments 4THIRD,441001,Supporting People E441,09/05/2018,3433474-1967634,"19,231.20",THE CYRENIANS LTD T/A CHANGING LIVES.
Adult and Health Services,Commissioning inc Supporting People,Third Party Payments 4THIRD,441001,Supporting People E441,09/05/2018,3433507-1967631,"2,367.20",WADDINGTON STREET CENTRE LTD.
Adult and Health Services,Commissioning inc Supporting People,Third Party Payments 4THIRD,444002,Supporting People E444,09/05/2018,3433507-1967652,567.36,WADDINGTON STREET CENTRE LTD.
Adult and Health Services,Commissioning inc Supporting People,Third Party Payments 4THIRD,441001,Supporting People E441,09/05/2018,3433510-1967626,"7,657.00",WEAR VALLEY WOMENS AID.
Children and Young Peoples Services,Head of Education,Transport,230008,Contract Hire,09/05/2018,309611-N010/08,770.00,C STEWART.
Children and Young Peoples Services,Head of Looked After Provision Permanence and Care Leavers,Supplies and Services,384534,Miscellaneous Expenses,09/05/2018,3433248-LIC142951,"3,213.00",CORAMBAAF LTD T/A CORAM ACADEMY LTD.*
Children and Young Peoples Services,Head of Early Help Assessment and Safeguarding,Third Party Payments 4THIRD,440014,Other third party payments E440,09/05/2018,3433261-JLS/SW/59383/1,541.85,DMA LAW.
Children and Young Peoples Services,Head of Early Help Assessment and Safeguarding,Third Party Payments 4THIRD,425023,Rendered by Voluntary Organisations,09/05/2018,3433318-DU01/548/032018,"2,316.84",HILLSIDE SCHOOL (ABERDOUR) LTD.
Children and Young Peoples Services,Head of Education,Supplies and Services,384199,Miscellaneous Expenses,09/05/2018,309645-GALA27-29MARCH18,"1,020.00",PETER WATKINSON.
Children and Young Peoples Services,Head of Looked After Provision Permanence and Care Leavers,Supplies and Services,338099,Services,09/05/2018,3433409-ASS201801,500.00,PHILIP CARMEDY-PYE T/A PCP TRAINING SERVICES.
Regeneration and Local Services,Technical Services,Supplies and Services,304221,Equipment and Materials,09/05/2018,3433191-12490,"2,484.00",ALSTON NATURAL STONE LTD.
Regeneration and Local Services,EnvironmentHealth & Consumer Protection,Supplies and Services,304516,Equipment and Materials,09/05/2018,309610-21499,"1,110.00",ASSISTIVE TECHNOLOGY & TRAINING LTD.
Regeneration and Local Services,Direct Services,Premises,145009,Cleaning and Domestic Supplies,09/05/2018,3433238-CC113937,946.00,CITY CLEAN NORTHERN LTD.
Regeneration and Local Services,Technical Services,Premises,150015,Apportioned Exps of Operational Blds,09/05/2018,3433242-88232,800.00,CLEE HILL PLANT LTD.
Regeneration and Local Services,Technical Services,Premises,150015,Apportioned Exps of Operational Blds,09/05/2018,3433242-90174,903.54,CLEE HILL PLANT LTD.
Regeneration and Local Services,Technical Services,Premises,150015,Apportioned Exps of Operational Blds,09/05/2018,3433242-90175,903.54,CLEE HILL PLANT LTD.
Regeneration and Local Services,Technical Services,Premises,150015,Apportioned Exps of Operational Blds,09/05/2018,3433242-90176,903.54,CLEE HILL PLANT LTD.
Regeneration and Local Services,Technical Services,Premises,150015,Apportioned Exps of Operational Blds,09/05/2018,3433242-90177,"1,100.00",CLEE HILL PLANT LTD.
Regeneration and Local Services,Direct Services,Supplies and Services,304221,Equipment and Materials,09/05/2018,3433279-059-222419,503.76,EDMUNDSON ELECTRICAL LTD.
Regeneration and Local Services,Technical Services,Supplies and Services,338027,Services,09/05/2018,3433282-NEI-EXP-05-2018-001,"1,210.00",ENVIRONMENT AGENCY.
Regeneration and Local Services,Technical Services,Fees,901004,Capital - Detailed Design,09/05/2018,309620-NEI-EXP-05-2018-004,580.00,GEORGE F WHITE.
Regeneration and Local Services,Technical Services,Fees,901004,Capital - Detailed Design,09/05/2018,3433302-NEI-EXP-05-2018-003,608.25,GEORGE F WHITE.
Regeneration and Local Services,Spatial Policy Planning Assets & Environment,Supplies and Services,338066,Services,09/05/2018,3433304-2668,"1,275.00",GLENN NATTRASS ELECTRICAL LTD.
Regeneration and Local Services,Culture & Sport,Premises,145023,Cleaning and Domestic Supplies,09/05/2018,3433308-06/732918,567.60,GREENHAM TRADING LTD.
Regeneration and Local Services,Culture & Sport,Supplies and Services,338047,Services,09/05/2018,3433310-FBC727,600.00,GROWLING CLOWN.
Regeneration and Local Services,Transport and Contracted Services,Construction work A908,908105,Construction work,09/05/2018,3433329-21514,611.96,JACK COUPE & SONS LTD T/A COUPE LINE.
Regeneration and Local Services,Direct Services,Third Party Payments 4THIRD,430100,Rendered by Private Contractors,09/05/2018,3433332-6276,"1,910.00",JAMES INGLEFORD SCAFFOLDING LTD.
Regeneration and Local Services,Technical Services,Premises,150015,Apportioned Exps of Operational Blds,09/05/2018,3433338-2077645,773.30,JOHN NIXON LTD.
Regeneration and Local Services,Technical Services,Premises,150015,Apportioned Exps of Operational Blds,09/05/2018,3433338-2077646,773.30,JOHN NIXON LTD.
Regeneration and Local Services,Technical Services,Third Party Payments 4THIRD,430100,Rendered by Private Contractors,09/05/2018,3433342-30477,"2,224.27",KAEFER LTD.
Regeneration and Local Services,Transport and Contracted Services,Supplies and Services,304259,Equipment and Materials,09/05/2018,3433349-1137022568,"7,690.40",KONICA MINOLTA BUSINESS SOLUTIONS (UK) LTD.
Regeneration and Local Services,Culture & Sport,Supplies and Services,384199,Miscellaneous Expenses,09/05/2018,3433381-000115,"1,651.20",NERAMS LTD.
Regeneration and Local Services,Technical Services,Third Party Payments 4THIRD,430100,Rendered by Private Contractors,09/05/2018,3433388-DI20289317,"1,072.24",NORTHERN POWERGRID (NORTHEAST) LTD.
Regeneration and Local Services,Technical Services,Third Party Payments 4THIRD,430100,Rendered by Private Contractors,09/05/2018,3433388-DI20289318,952.54,NORTHERN POWERGRID (NORTHEAST) LTD.
Regeneration and Local Services,Direct Services,Transport,215005,Running Costs of Vehicles,09/05/2018,3433393-324756,"15,132.00",OIL NRG LTD.
Regeneration and Local Services,Direct Services,Transport,215005,Running Costs of Vehicles,09/05/2018,3433393-324760,"6,073.76",OIL NRG LTD.
Regeneration and Local Services,Direct Services,Transport,215005,Running Costs of Vehicles,09/05/2018,3433393-324762,"2,056.57",OIL NRG LTD.
Regeneration and Local Services,Direct Services,Transport,215022,Running Costs of Vehicles,09/05/2018,3433393-324759,"1,658.10",OIL NRG LTD.
Regeneration and Local Services,Direct Services,Supplies and Services,304221,Equipment and Materials,09/05/2018,3433444-CD970597536,550.00,SHERRIFF AMENITY.
Regeneration and Local Services,Direct Services,Supplies and Services,304221,Equipment and Materials,09/05/2018,3433448-49814,895.00,SMART DIRECT (EUROPE) LTD.
Regeneration and Local Services,Culture & Sport,Supplies and Services,338047,Services,09/05/2018,3433462-60193264,"2,201.36",STUDIOCANAL LTD.
Regeneration and Local Services,Direct Services,Third Party Payments 4THIRD,430103,Rendered by Private Contractors,09/05/2018,3433471-NEI-EXP-05-2018-002,"12,374.57",TEESDALE CONSERVATION VOLUNTEERS.
Regeneration and Local Services,Direct Services,Supplies and Services,304221,Equipment and Materials,09/05/2018,3433478-316502,543.80,THE HELPING HAND CO (LEDBURY) LTD.
Regeneration and Local Services,Technical Services,Supplies and Services,304221,Equipment and Materials,09/05/2018,3433497-185133,"2,613.30",TYNEDALE ROADSTONE LTD.
Regeneration and Local Services,Technical Services,Supplies and Services,304221,Equipment and Materials,09/05/2018,3433497-185684,"1,106.75",TYNEDALE ROADSTONE LTD.
Regeneration and Local Services,Technical Services,Supplies and Services,304221,Equipment and Materials,09/05/2018,3433497-185688,789.44,TYNEDALE ROADSTONE LTD.
Regeneration and Local Services,Technical Services,Supplies and Services,304221,Equipment and Materials,09/05/2018,3433497-185689,963.20,TYNEDALE ROADSTONE LTD.
Regeneration and Local Services,Culture & Sport,Supplies and Services,372009,Subscriptions E372,09/05/2018,3433498-UKAPPL/105727,"1,041.38",UKACTIVE.
Regeneration and Local Services,Culture & Sport,Supplies and Services,372009,Subscriptions E372,09/05/2018,3433498-UKAPPL/105730,"1,177.03",UKACTIVE.
Regeneration and Local Services,Direct Services,Third Party Payments 4THIRD,430100,Rendered by Private Contractors,09/05/2018,3433509-INV-0906,794.00,WATER SOLUTIONS (EUROPE) LTD.
Regeneration and Local Services,Direct Services,Third Party Payments 4THIRD,430100,Rendered by Private Contractors,09/05/2018,3433509-INV-0914,799.00,WATER SOLUTIONS (EUROPE) LTD.
Regeneration and Local Services,Direct Services,Premises,150015,Apportioned Exps of Operational Blds,09/05/2018,3433511-677726,664.95,WERNICK HIRE LTD.
Regeneration and Local Services,Technical Services,Premises,150015,Apportioned Exps of Operational Blds,09/05/2018,3433511-707284,660.66,WERNICK HIRE LTD.
Regeneration and Local Services,Technical Services,Premises,150015,Apportioned Exps of Operational Blds,09/05/2018,3433511-745604,587.44,WERNICK HIRE LTD.
Resources,Legal & Democratic Services,Supplies and Services,338025,Services,09/05/2018,3433255-00000450,"1,050.00",DERWENTSIDE FUNERAL SERVICE.
Resources,Finance & Transactional Services,Supplies and Services,384180,Miscellaneous Expenses,09/05/2018,3433355-0130722,"5,937.01",LOOMIS UK LTD.
Transformation and Partnerships,Comms & Information Management,Supplies and Services,332029,Printing Stationery and Gen Off Exps,09/05/2018,3433185-60600,"6,136.71",ACORN WEB OFFSET LTD.
Transformation and Partnerships,Redundant Cost Centres - ACE,Construction work A908,908105,Construction work,09/05/2018,3433237-RED-05-2018-051,"64,000.00",CITIZENS HOUSE.
Adult and Health Services,Public Health,Third Party Payments 4THIRD,460802,Contract Payments,10/05/2018,3434313-3980028375,"368,605.00",CO DURHAM & DARLINGTON NHS FOUNDATION TRUST.
Adult and Health Services,Head of Adults,Transport,230005,Contract Hire,10/05/2018,3434326-107688,"1,825.40",CROFT BUSINESS SERVICES (UK) LTD T/A CROFT TAXIS.
Adult and Health Services,Head of Adults,Transport,230005,Contract Hire,10/05/2018,3434370-12084/R-DW123,"1,824.00",GATESHEAD CENTRAL TAXIS LTD.
Adult and Health Services,Head of Adults,Transport,230005,Contract Hire,10/05/2018,3434370-12084/R-NCL014,"2,660.00",GATESHEAD CENTRAL TAXIS LTD.
Adult and Health Services,Public Health,Third Party Payments 4THIRD,460803,Contract Payments,10/05/2018,3434381-DCC040,"5,250.00",HARBOUR SUPPORT SERVICES.
Adult and Health Services,Public Health,Third Party Payments 4THIRD,460803,Contract Payments,10/05/2018,3434381-DCC041,"41,666.00",HARBOUR SUPPORT SERVICES.
Adult and Health Services,Public Health,Third Party Payments 4THIRD,460803,Contract Payments,10/05/2018,3434381-DCC042,"41,251.83",HARBOUR SUPPORT SERVICES.
Adult and Health Services,Head of Adults,Transport,230005,Contract Hire,10/05/2018,3434401-5085,550.00,J YOUNG T/A VIP TAXIS.
Adult and Health Services,Head of Adults,Transport,230005,Contract Hire,10/05/2018,3434454-KW856,600.00,MARK O`NEILL T/A KWIK CABS.
Adult and Health Services,Head of Adults,Transport,230005,Contract Hire,10/05/2018,3434587-DCC107/SLD005,"1,638.00",STEPHEN COXON.
Adult and Health Services,Head of Adults,Transport,230005,Contract Hire,10/05/2018,3434587-DCC108/SLD005,858.00,STEPHEN COXON.
Adult and Health Services,Head of Adults,Transport,230005,Contract Hire,10/05/2018,3434597-B941,"1,500.00",TALBOTS TRAVEL LTD.
Adult and Health Services,Head of Adults,Transport,230005,Contract Hire,10/05/2018,3434643-NCL017/08,"1,475.00",WAYSIDE TAXIS.
Children and Young Peoples Services,Head of Education,Transport,230006,Contract Hire,10/05/2018,3434248-APRIL04,575.00,A & P TAXIS.
Children and Young Peoples Services,Head of Education,Transport,230007,Contract Hire,10/05/2018,3434251-L5/SD,"1,045.00",AABAT TAXIS.
Children and Young Peoples Services,Head of Education,Transport,230012,Contract Hire,10/05/2018,3434251-L15/SS,704.00,AABAT TAXIS.
Children and Young Peoples Services,Head of Education,Transport,230008,Contract Hire,10/05/2018,3434251-L10/SL,"1,045.00",AABAT TAXIS.
Children and Young Peoples Services,Head of Education,Transport,230008,Contract Hire,10/05/2018,3434251-L13/SP,"1,320.00",AABAT TAXIS.
Children and Young Peoples Services,Head of Education,Transport,230008,Contract Hire,10/05/2018,3434251-L14/SQ,950.00,AABAT TAXIS.
Children and Young Peoples Services,Head of Education,Transport,230008,Contract Hire,10/05/2018,3434251-L16/ST-W145APR18,"1,408.00",AABAT TAXIS.
Children and Young Peoples Services,Head of Education,Transport,230008,Contract Hire,10/05/2018,3434251-L2/SA,"1,320.00",AABAT TAXIS.
Children and Young Peoples Services,Head of Education,Transport,230008,Contract Hire,10/05/2018,3434251-L3/SB,661.50,AABAT TAXIS.
Children and Young Peoples Services,Head of Education,Transport,230008,Contract Hire,10/05/2018,3434251-L7/SH-W021APR18,"1,080.00",AABAT TAXIS.
Children and Young Peoples Services,Head of Education,Transport,230008,Contract Hire,10/05/2018,3434251-L9/SK,825.00,AABAT TAXIS.
Children and Young Peoples Services,Head of Education,Transport,230008,Contract Hire,10/05/2018,3434252-O383,"1,111.00",ABC & OUSTON CABS.
Children and Young Peoples Services,Head of Education,Third Party Payments 4THIRD,440999,Other third party payments E440,10/05/2018,3434259-YEI33/11,"19,439.91",AMACUS LTD.
Children and Young Peoples Services,Head of Education,Transport,230007,Contract Hire,10/05/2018,3434260-182AT,550.00,AMBER TRAVEL.
Children and Young Peoples Services,Head of Education,Transport,230006,Contract Hire,10/05/2018,3434269-3-F721,"1,009.40",AXLE TAXIS.
Children and Young Peoples Services,Head of Education,Transport,230006,Contract Hire,10/05/2018,3434269-4-F721,539.00,AXLE TAXIS.
Children and Young Peoples Services,Head of Education,Transport,230008,Contract Hire,10/05/2018,3434278-768,824.23,BEELINE MINI BUSES.
Children and Young Peoples Services,Head of Education,Transport,230007,Contract Hire,10/05/2018,3434284-53-3277APR18,660.00,BL TAXIS.
Children and Young Peoples Services,Head of Education,Fees,901002,Professional fees,10/05/2018,3434285-10013,"136,618.47",BLOOM PROCUREMENT SERVICES LTD (FORMERLY NEPRO LTD).
Children and Young Peoples Services,Head of Education,Transport,230009,Contract Hire,10/05/2018,3434326-107680,511.50,CROFT BUSINESS SERVICES (UK) LTD T/A CROFT TAXIS.
Children and Young Peoples Services,Head of Education,Transport,230009,Contract Hire,10/05/2018,3434326-107681,"2,222.42",CROFT BUSINESS SERVICES (UK) LTD T/A CROFT TAXIS.
Children and Young Peoples Services,Head of Education,Transport,230009,Contract Hire,10/05/2018,3434326-107682,"1,080.31",CROFT BUSINESS SERVICES (UK) LTD T/A CROFT TAXIS.
Children and Young Peoples Services,Head of Education,Transport,230006,Contract Hire,10/05/2018,3434326-107692,652.52,CROFT BUSINESS SERVICES (UK) LTD T/A CROFT TAXIS.
Children and Young Peoples Services,Head of Education,Transport,230008,Contract Hire,10/05/2018,3434326-107683,998.70,CROFT BUSINESS SERVICES (UK) LTD T/A CROFT TAXIS.
Children and Young Peoples Services,Head of Education,Transport,230008,Contract Hire,10/05/2018,3434326-107685,"2,076.03",CROFT BUSINESS SERVICES (UK) LTD T/A CROFT TAXIS.
Children and Young Peoples Services,Head of Education,Transport,230008,Contract Hire,10/05/2018,3434326-107690,975.81,CROFT BUSINESS SERVICES (UK) LTD T/A CROFT TAXIS.
Children and Young Peoples Services,Head of Education,Transport,230008,Contract Hire,10/05/2018,3434326-107693,625.57,CROFT BUSINESS SERVICES (UK) LTD T/A CROFT TAXIS.
Children and Young Peoples Services,Head of Education,Transport,230008,Contract Hire,10/05/2018,3434326-107695,971.41,CROFT BUSINESS SERVICES (UK) LTD T/A CROFT TAXIS.
Children and Young Peoples Services,Head of Education,Transport,230008,Contract Hire,10/05/2018,3434329-267,693.00,DA TRAVEL.
Children and Young Peoples Services,Head of Education,Transport,230007,Contract Hire,10/05/2018,3434331-SCEAAPR1801,880.00,DALELINK PRIVATE HIRE.
Children and Young Peoples Services,Head of Education,Transport,230008,Contract Hire,10/05/2018,3434333-0046,"1,950.00",DAVID WALKER TAXIS.
Children and Young Peoples Services,Head of Education,Transport,230016,Contract Hire,10/05/2018,3434366-100813,979.00,G & P JOHNSON LTD T/A NIGHTINGALE COACHES.
Children and Young Peoples Services,Head of Education,Transport,230008,Contract Hire,10/05/2018,3434366-100807,641.00,G & P JOHNSON LTD T/A NIGHTINGALE COACHES.
Children and Young Peoples Services,Head of Education,Transport,230008,Contract Hire,10/05/2018,3434366-100808,884.00,G & P JOHNSON LTD T/A NIGHTINGALE COACHES.
Children and Young Peoples Services,Head of Education,Transport,230008,Contract Hire,10/05/2018,3434366-100810,935.00,G & P JOHNSON LTD T/A NIGHTINGALE COACHES.
Children and Young Peoples Services,Head of Education,Transport,230008,Contract Hire,10/05/2018,3434366-100811,858.00,G & P JOHNSON LTD T/A NIGHTINGALE COACHES.
Children and Young Peoples Services,Head of Education,Transport,230008,Contract Hire,10/05/2018,3434366-100812,638.00,G & P JOHNSON LTD T/A NIGHTINGALE COACHES.
Children and Young Peoples Services,Head of Education,Transport,230008,Contract Hire,10/05/2018,3434366-100817,770.00,G & P JOHNSON LTD T/A NIGHTINGALE COACHES.
Children and Young Peoples Services,Head of Education,Transport,230008,Contract Hire,10/05/2018,3434366-100817-N026,539.00,G & P JOHNSON LTD T/A NIGHTINGALE COACHES.
Children and Young Peoples Services,Head of Education,Transport,230008,Contract Hire,10/05/2018,3434366-100818,616.00,G & P JOHNSON LTD T/A NIGHTINGALE COACHES.
Children and Young Peoples Services,Head of Education,Transport,230008,Contract Hire,10/05/2018,3434366-100819,856.00,G & P JOHNSON LTD T/A NIGHTINGALE COACHES.
Children and Young Peoples Services,Head of Education,Transport,230008,Contract Hire,10/05/2018,3434366-100820,880.00,G & P JOHNSON LTD T/A NIGHTINGALE COACHES.
Children and Young Peoples Services,Head of Education,Transport,230008,Contract Hire,10/05/2018,3434366-100821,737.00,G & P JOHNSON LTD T/A NIGHTINGALE COACHES.
Children and Young Peoples Services,Head of Education,Transport,230008,Contract Hire,10/05/2018,3434369-M008,962.50,GARY MCGOWAN T/A MACKA`S PRIVATE HIRE.
Children and Young Peoples Services,Head of Education,Transport,230008,Contract Hire,10/05/2018,3434370-12084/R-A004,"2,520.00",GATESHEAD CENTRAL TAXIS LTD.
Children and Young Peoples Services,Head of Education,Transport,230008,Contract Hire,10/05/2018,3434370-12084/R-A016,"1,292.00",GATESHEAD CENTRAL TAXIS LTD.
Children and Young Peoples Services,Head of Education,Transport,230008,Contract Hire,10/05/2018,3434370-12084/R-A056,"2,432.00",GATESHEAD CENTRAL TAXIS LTD.
Children and Young Peoples Services,Head of Education,Transport,230003,Contract Hire,10/05/2018,3434372-4427,877.03,GEM TRAVEL.
Children and Young Peoples Services,Head of Education,Transport,230008,Contract Hire,10/05/2018,3434374-062,770.00,GMC TAXIS NORTH EAST.
Children and Young Peoples Services,Head of Education,Transport,230007,Contract Hire,10/05/2018,3434388-507,880.00,HEPWORTHS LUXURY TRAVEL.
Children and Young Peoples Services,Head of Education,Transport,230008,Contract Hire,10/05/2018,3434388-506,"1,210.00",HEPWORTHS LUXURY TRAVEL.
Children and Young Peoples Services,Head of Education,Transport,230006,Contract Hire,10/05/2018,3434391-INV190,707.00,HORNDALE TAXIS LTD.
Children and Young Peoples Services,Head of Education,Transport,230008,Contract Hire,10/05/2018,3434391-INV191,858.00,HORNDALE TAXIS LTD.
Children and Young Peoples Services,Head of Education,Transport,230008,Contract Hire,10/05/2018,3434401-5086,528.00,J YOUNG T/A VIP TAXIS.
Children and Young Peoples Services,Head of Education,Transport,230008,Contract Hire,10/05/2018,3434401-5087,693.00,J YOUNG T/A VIP TAXIS.
Children and Young Peoples Services,Head of Education,Transport,230008,Contract Hire,10/05/2018,3434401-5089,616.00,J YOUNG T/A VIP TAXIS.
Children and Young Peoples Services,Head of Education,Transport,230006,Contract Hire,10/05/2018,3434403-F733H-APRIL,680.00,JAFFAS TAXIS.
Children and Young Peoples Services,Head of Education,Transport,230008,Contract Hire,10/05/2018,3434403-A088H-APRIL,770.00,JAFFAS TAXIS.
Children and Young Peoples Services,Head of Education,Transport,230008,Contract Hire,10/05/2018,3434415-M00908,715.00,JOVIAL PRIVATE HIRE.
Children and Young Peoples Services,Head of Education,Transport,230008,Contract Hire,10/05/2018,3434419-N071-APRIL,"1,364.00",K & R TAXIS (STANLEY).
Children and Young Peoples Services,Head of Education,Transport,230008,Contract Hire,10/05/2018,3434424-S027-APRIL,"1,045.00",KEITH GIBSON T/A KEITH`S TAXIS.
Children and Young Peoples Services,Head of Education,Transport,230008,Contract Hire,10/05/2018,3434425-010418,"1,350.00",KEVIN EDMUNDSON.
Children and Young Peoples Services,Head of Education,Transport,230003,Contract Hire,10/05/2018,3434436-5092-SL02,"1,485.00",LEE`S COACHES LTD.
Children and Young Peoples Services,Head of Education,Transport,230003,Contract Hire,10/05/2018,3434436-5092-SL05,"1,419.00",LEE`S COACHES LTD.
Children and Young Peoples Services,Head of Education,Transport,230003,Contract Hire,10/05/2018,3434436-5092-SL06,"1,419.00",LEE`S COACHES LTD.
Children and Young Peoples Services,Head of Education,Transport,230003,Contract Hire,10/05/2018,3434436-5092-SL15,"1,309.00",LEE`S COACHES LTD.
Children and Young Peoples Services,Head of Education,Transport,230008,Contract Hire,10/05/2018,3434437-215,"1,112.40",LEE`S TAXIS (SACRISTON).
Children and Young Peoples Services,Head of Education,Transport,230012,Contract Hire,10/05/2018,3434440-3774,908.40,LINCAB TAXIS.
Children and Young Peoples Services,Head of Education,Transport,230008,Contract Hire,10/05/2018,3434443-32,990.00,LORRAINES TAXIS.
Children and Young Peoples Services,Head of Education,Transport,230006,Contract Hire,10/05/2018,3434445-60,630.00,MACS TAXIS LTD.
Children and Young Peoples Services,Head of Education,Transport,230007,Contract Hire,10/05/2018,3434450-INV-04/1810,616.00,MARK & JOHN CHISHOLM T/A (CHEVRON).
Children and Young Peoples Services,Head of Education,Transport,230006,Contract Hire,10/05/2018,3434450-INV04/1813,"1,385.00",MARK & JOHN CHISHOLM T/A (CHEVRON).
Children and Young Peoples Services,Head of Education,Transport,230008,Contract Hire,10/05/2018,3434450-INV-04/1808,726.00,MARK & JOHN CHISHOLM T/A (CHEVRON).
Children and Young Peoples Services,Head of Education,Transport,230008,Contract Hire,10/05/2018,3434450-INV03/1807,"1,936.40",MARK & JOHN CHISHOLM T/A (CHEVRON).
Children and Young Peoples Services,Head of Education,Transport,230008,Contract Hire,10/05/2018,3434450-INV04/1806,"1,320.00",MARK & JOHN CHISHOLM T/A (CHEVRON).
Children and Young Peoples Services,Head of Education,Transport,230008,Contract Hire,10/05/2018,3434450-INV04/1809,"1,144.00",MARK & JOHN CHISHOLM T/A (CHEVRON).
Children and Young Peoples Services,Head of Education,Transport,230008,Contract Hire,10/05/2018,3434454-KW854,550.00,MARK O`NEILL T/A KWIK CABS.
Children and Young Peoples Services,Head of Education,Transport,230008,Contract Hire,10/05/2018,3434454-KW854-S011,665.00,MARK O`NEILL T/A KWIK CABS.
Children and Young Peoples Services,Head of Education,Transport,230008,Contract Hire,10/05/2018,3434461-MCD37244,996.00,MCDONALD TRAVEL.
Children and Young Peoples Services,Head of Education,Transport,230008,Contract Hire,10/05/2018,3434461-MCD37245,740.00,MCDONALD TRAVEL.
Children and Young Peoples Services,Head of Education,Transport,230008,Contract Hire,10/05/2018,3434461-MCD37246,960.00,MCDONALD TRAVEL.
Children and Young Peoples Services,Head of Education,Transport,230016,Contract Hire,10/05/2018,3434463-35A,974.05,MICHAEL A BODDY T/A MBS TAXIS.
Children and Young Peoples Services,Head of Education,Transport,230008,Contract Hire,10/05/2018,3434464-00944,"1,683.00",MICHAELS TRAVEL.
Children and Young Peoples Services,Head of Education,Transport,230008,Contract Hire,10/05/2018,3434466-0130,990.00,MICKS TAXIS - MURTON.
Children and Young Peoples Services,Head of Education,Transport,230008,Contract Hire,10/05/2018,3434472-CEW4830APRIL2018,935.00,MOOR PRIVATE HIRE.
Children and Young Peoples Services,Head of Education,Transport,230007,Contract Hire,10/05/2018,3434474-916,870.00,MR AD HOWARD T/A TOFT HILL TAXIS.
Children and Young Peoples Services,Head of Education,Transport,230008,Contract Hire,10/05/2018,3434475-8-W028,660.00,MR BW YOUNG T/A ESH TAXIS.
Children and Young Peoples Services,Head of Education,Transport,230006,Contract Hire,10/05/2018,3434477-0418,818.00,MR DEREK HENDERSON.
Children and Young Peoples Services,Head of Education,Transport,230008,Contract Hire,10/05/2018,3434478-0304876,770.00,MR GN ROBBINS T/A GNR MINIBUS HIRE.
Children and Young Peoples Services,Head of Education,Transport,230008,Contract Hire,10/05/2018,3434478-0304877,770.00,MR GN ROBBINS T/A GNR MINIBUS HIRE.
Children and Young Peoples Services,Head of Education,Transport,230008,Contract Hire,10/05/2018,3434480-066,836.00,MR LJ TARRY T/A TARRY`S TAXI`S.
Children and Young Peoples Services,Head of Education,Transport,230007,Contract Hire,10/05/2018,3434518-1639,"1,210.00",PAUL WATSON TRAVEL.
Children and Young Peoples Services,Head of Education,Transport,230007,Contract Hire,10/05/2018,3434518-1641,"1,320.00",PAUL WATSON TRAVEL.
Children and Young Peoples Services,Head of Education,Transport,230006,Contract Hire,10/05/2018,3434519-190,580.00,PAUL`S TAXIS..
Children and Young Peoples Services,Head of Education,Transport,230008,Contract Hire,10/05/2018,3434519-DCC188,880.00,PAUL`S TAXIS..
Children and Young Peoples Services,Head of Education,Transport,230013,Contract Hire,10/05/2018,3434520-DCC/5237/04/2018,558.00,PB PRIVATE HIRE.
Children and Young Peoples Services,Head of Education,Transport,230008,Contract Hire,10/05/2018,3434526-0639,792.00,PETER`S PRIVATE HIRE/PETER BEST.
Children and Young Peoples Services,Head of Education,Transport,230006,Contract Hire,10/05/2018,3434528-24032,770.00,PHOENIX TAXIS T/A PRATT`S TAXIS.
Children and Young Peoples Services,Head of Education,Transport,230007,Contract Hire,10/05/2018,3434542-036,550.00,REDZ PRIVATE HIRE.
Children and Young Peoples Services,Head of Education,Transport,230008,Contract Hire,10/05/2018,3434548-215,"1,023.50",ROBBIE`S PRIVATE HIRE.
Children and Young Peoples Services,Head of Early Help Assessment and Safeguarding,Supplies and Services,338044,Services,10/05/2018,3434551-1805,"1,345.00",ROGER KENNINGTON CONSULTING.
Children and Young Peoples Services,Head of Education,Transport,230007,Contract Hire,10/05/2018,3434552-1743,880.00,RON`S TAXIS (FISHBURN).
Children and Young Peoples Services,Head of Education,Transport,230008,Contract Hire,10/05/2018,3434552-1744,"2,200.00",RON`S TAXIS (FISHBURN).
Children and Young Peoples Services,Head of Education,Transport,230008,Contract Hire,10/05/2018,3434552-1745,880.00,RON`S TAXIS (FISHBURN).
Children and Young Peoples Services,Head of Education,Transport,230008,Contract Hire,10/05/2018,3434557-A136010318A,753.50,SAFELINE TRAVEL.
Children and Young Peoples Services,Head of Education,Transport,230008,Contract Hire,10/05/2018,3434557-A138010318A,649.00,SAFELINE TRAVEL.
Children and Young Peoples Services,Head of Education,Transport,230008,Contract Hire,10/05/2018,3434557-S002010318A,735.00,SAFELINE TRAVEL.
Children and Young Peoples Services,Head of Education,Transport,230008,Contract Hire,10/05/2018,3434572-N065-04-18,583.00,SIMON ELLIFF.
Children and Young Peoples Services,Head of Education,Transport,230016,Contract Hire,10/05/2018,3434574-596A,825.00,SJ MACKENZIE T/A SCOTTS TAXIS.
Children and Young Peoples Services,Head of Education,Transport,230008,Contract Hire,10/05/2018,3434574-560A-E050,800.00,SJ MACKENZIE T/A SCOTTS TAXIS.
Children and Young Peoples Services,Head of Education,Transport,230008,Contract Hire,10/05/2018,3434574-561A-W006APR18,605.00,SJ MACKENZIE T/A SCOTTS TAXIS.
Children and Young Peoples Services,Head of Education,Transport,230008,Contract Hire,10/05/2018,3434574-562A-W070APR18,880.00,SJ MACKENZIE T/A SCOTTS TAXIS.
Children and Young Peoples Services,Head of Education,Transport,230008,Contract Hire,10/05/2018,3434574-590A,825.00,SJ MACKENZIE T/A SCOTTS TAXIS.
Children and Young Peoples Services,Head of Education,Transport,230008,Contract Hire,10/05/2018,3434574-591A,930.00,SJ MACKENZIE T/A SCOTTS TAXIS.
Children and Young Peoples Services,Head of Education,Transport,230008,Contract Hire,10/05/2018,3434574-592A,"1,550.00",SJ MACKENZIE T/A SCOTTS TAXIS.
Children and Young Peoples Services,Head of Education,Transport,230008,Contract Hire,10/05/2018,3434574-593A,"1,100.00",SJ MACKENZIE T/A SCOTTS TAXIS.
Children and Young Peoples Services,Head of Education,Transport,230008,Contract Hire,10/05/2018,3434574-594A,990.00,SJ MACKENZIE T/A SCOTTS TAXIS.
Children and Young Peoples Services,Head of Education,Transport,230008,Contract Hire,10/05/2018,3434574-595A,720.00,SJ MACKENZIE T/A SCOTTS TAXIS.
Children and Young Peoples Services,Head of Education,Transport,230008,Contract Hire,10/05/2018,3434574-599A,"1,320.00",SJ MACKENZIE T/A SCOTTS TAXIS.
Children and Young Peoples Services,Head of Education,Transport,230008,Contract Hire,10/05/2018,3434579-024224,"1,100.00",SPENNYMOOR TAXIS.
Children and Young Peoples Services,Head of Education,Transport,230008,Contract Hire,10/05/2018,3434579-192199,770.00,SPENNYMOOR TAXIS.
Children and Young Peoples Services,Head of Education,Transport,230008,Contract Hire,10/05/2018,3434579-93299,"1,160.00",SPENNYMOOR TAXIS.
Children and Young Peoples Services,Head of Education,Construction work A908,908105,Construction work,10/05/2018,3434581-6191,"2,825.00",ST ASTIER LTD.
Children and Young Peoples Services,Head of Education,Transport,230008,Contract Hire,10/05/2018,3434586-18-E002APR18,770.00,STEELYS TAXIS.
Children and Young Peoples Services,Head of Education,Transport,230007,Contract Hire,10/05/2018,3434588-5619,748.00,STEPHEN MAUDE LTD T/A MAUDES COACHES.
Children and Young Peoples Services,Head of Education,Transport,230016,Contract Hire,10/05/2018,3434597-B943,980.00,TALBOTS TRAVEL LTD.
Children and Young Peoples Services,Head of Education,Transport,230008,Contract Hire,10/05/2018,3434601-DCC/2018/018,880.00,TAYLOR`S TAXIS.
Children and Young Peoples Services,Head of Education,Transport,230008,Contract Hire,10/05/2018,3434601-DCC/2018/019,913.00,TAYLOR`S TAXIS.
Children and Young Peoples Services,Head of Education,Transport,230008,Contract Hire,10/05/2018,3434601-DCC/2018/020,902.00,TAYLOR`S TAXIS.
Children and Young Peoples Services,Head of Education,Transport,230008,Contract Hire,10/05/2018,3434601-DCC/2018/021,792.00,TAYLOR`S TAXIS.
Children and Young Peoples Services,Head of Education,Transport,230008,Contract Hire,10/05/2018,3434601-DCC/2018/022,"1,188.00",TAYLOR`S TAXIS.
Children and Young Peoples Services,Head of Education,Transport,230007,Contract Hire,10/05/2018,3434640-15-3077APR18,528.00,WALTONS TAXIS.
Children and Young Peoples Services,Head of Education,Transport,230007,Contract Hire,10/05/2018,3434640-16,528.00,WALTONS TAXIS.
Children and Young Peoples Services,Head of Education,Transport,230006,Contract Hire,10/05/2018,3434643-F681/04,680.00,WAYSIDE TAXIS.
Children and Young Peoples Services,Head of Education,Transport,230008,Contract Hire,10/05/2018,3434643-A011/01,630.00,WAYSIDE TAXIS.
Children and Young Peoples Services,Head of Education,Transport,230008,Contract Hire,10/05/2018,3434643-A128/27,825.00,WAYSIDE TAXIS.
Children and Young Peoples Services,Head of Education,Transport,230008,Contract Hire,10/05/2018,3434643-E032/04,"1,155.00",WAYSIDE TAXIS.
Children and Young Peoples Services,Head of Education,Transport,230008,Contract Hire,10/05/2018,3434643-N055/08,"1,210.00",WAYSIDE TAXIS.
Children and Young Peoples Services,Head of Education,Transport,230008,Contract Hire,10/05/2018,3434643-N100/27,"1,045.00",WAYSIDE TAXIS.
Children and Young Peoples Services,Head of Education,Transport,230008,Contract Hire,10/05/2018,3434643-N222/01,"1,210.00",WAYSIDE TAXIS.
Children and Young Peoples Services,Head of Education,Transport,230008,Contract Hire,10/05/2018,3434643-S025/07,"1,155.00",WAYSIDE TAXIS.
Children and Young Peoples Services,Head of Education,Transport,230007,Contract Hire,10/05/2018,3434644-1072,550.00,WE CONNOR.
Children and Young Peoples Services,Head of Early Help Assessment and Safeguarding,Supplies and Services,384302,Miscellaneous Expenses,10/05/2018,3434652-DERWENTSIDE028-2018,"4,640.00",WE`AR FISHING COMMUNITY INTEREST COMPANY (CIC).
Children and Young Peoples Services,Head of Education,Transport,230003,Contract Hire,10/05/2018,3434647-STJOHN/APR18-3223,"3,058.00",WEARDALE MOTOR SERVICES LTD.
Children and Young Peoples Services,Head of Education,Transport,230003,Contract Hire,10/05/2018,3434647-STJOHN/APR18-3262,"1,529.00",WEARDALE MOTOR SERVICES LTD.
Children and Young Peoples Services,Head of Education,Transport,230008,Contract Hire,10/05/2018,3434647-W059/04/18,"1,760.00",WEARDALE MOTOR SERVICES LTD.
Children and Young Peoples Services,Head of Education,Transport,230008,Contract Hire,10/05/2018,3434650-WESTLEA300418,636.00,WESTLEA TAXIS.
Dedicated Schools Grant,DSG High Needs Block,Transport,230010,Contract Hire,10/05/2018,3434419-PL006-APRIL,"1,331.00",K & R TAXIS (STANLEY).
Dedicated Schools Grant,DSG High Needs Block,Transport,230010,Contract Hire,10/05/2018,3434450-INV-04/1803,"1,483.00",MARK & JOHN CHISHOLM T/A (CHEVRON).
Dedicated Schools Grant,DSG High Needs Block,Transport,230010,Contract Hire,10/05/2018,3434450-INV-04/1814,"1,396.00",MARK & JOHN CHISHOLM T/A (CHEVRON).
Dedicated Schools Grant,DSG High Needs Block,Transport,230010,Contract Hire,10/05/2018,3434450-INV04/1801,836.00,MARK & JOHN CHISHOLM T/A (CHEVRON).
Dedicated Schools Grant,DSG High Needs Block,Transport,230010,Contract Hire,10/05/2018,3434450-INV04/1802,814.00,MARK & JOHN CHISHOLM T/A (CHEVRON).
Dedicated Schools Grant,DSG High Needs Block,Transport,230010,Contract Hire,10/05/2018,3434547-1473,849.00,ROAD RUNNERS (NE) LTD.
Dedicated Schools Grant,DSG High Needs Block,Transport,230010,Contract Hire,10/05/2018,3434619-26020,748.00,TRAVEL 6.
Dedicated Schools Grant,DSG High Needs Block,Transport,230010,Contract Hire,10/05/2018,3434619-27018,682.00,TRAVEL 6.
Dedicated Schools Grant,DSG High Needs Block,Transport,230010,Contract Hire,10/05/2018,3434619-30008,745.00,TRAVEL 6.
Regeneration and Local Services,Direct Services,Third Party Payments 4THIRD,460305,Contract Payments,10/05/2018,3434314-4207,"1,260.00",CO-WHEELS CAR CLUB CIC.
Regeneration and Local Services,Direct Services,Third Party Payments 4THIRD,460305,Contract Payments,10/05/2018,3434314-4264,"1,260.00",CO-WHEELS CAR CLUB CIC.
Regeneration and Local Services,Direct Services,Supplies and Services,384974,Miscellaneous Expenses,10/05/2018,3434339-NEI-EXP-05-2018-005,"40,000.00",DRIVER & VEHICLE STANDARDS AGENCY (DVSA).
Regeneration and Local Services,Technical Services,Supplies and Services,304221,Equipment and Materials,10/05/2018,3434417-G0I896/D,"2,331.00",JT DOVE LTD.
Regeneration and Local Services,Technical Services,Stock A926,926900,Stock in hand-Inventory system,10/05/2018,3434417-STI476721,"1,220.40",JT DOVE LTD.
Regeneration and Local Services,Culture & Sport,Supplies and Services,324001,Provisions E324,10/05/2018,3434471-904462455,"1,234.32",MOLSON COORS BREWING COMPANY (UK) LTD.
Regeneration and Local Services,Economic Development and Housing,Supplies and Services,340001,Postages E340,10/05/2018,3434495-RED-05-2018-055,"1,000.00",NEOPOST CREDIFON.
Regeneration and Local Services,Culture & Sport,Supplies and Services,384700,Miscellaneous Expenses,10/05/2018,3434497-1007,"130,000.00",NEW WRITING NORTH LTD.
Regeneration and Local Services,Spatial Policy Planning Assets & Environment,Premises,108099,Service Repairs and Maintenance,10/05/2018,3434504-NEI-EXP-04-2018-024,"1,149.00",NORTHERN GAS NETWORKS LTD.
Regeneration and Local Services,Transport and Contracted Services,Third Party Payments 4THIRD,430100,Rendered by Private Contractors,10/05/2018,3434506-00001676,"25,720.95",NSL LTD.
Regeneration and Local Services,Transport and Contracted Services,Third Party Payments 4THIRD,430100,Rendered by Private Contractors,10/05/2018,3434506-00001677,"1,570.16",NSL LTD.
Regeneration and Local Services,Transport and Contracted Services,Third Party Payments 4THIRD,430100,Rendered by Private Contractors,10/05/2018,3434506-00001680,"46,094.28",NSL LTD.
Regeneration and Local Services,Transport and Contracted Services,Third Party Payments 4THIRD,430100,Rendered by Private Contractors,10/05/2018,3434506-00001681,"3,074.34",NSL LTD.
Regeneration and Local Services,Transport and Contracted Services,Third Party Payments 4THIRD,430100,Rendered by Private Contractors,10/05/2018,3434506-00001683,"4,432.63",NSL LTD.
Regeneration and Local Services,Transport and Contracted Services,Third Party Payments 4THIRD,430100,Rendered by Private Contractors,10/05/2018,3434506-00001684,"16,513.68",NSL LTD.
Regeneration and Local Services,Transport and Contracted Services,Third Party Payments 4THIRD,430100,Rendered by Private Contractors,10/05/2018,3434506-00001711,"5,059.93",NSL LTD.
Regeneration and Local Services,Transport and Contracted Services,Third Party Payments 4THIRD,430100,Rendered by Private Contractors,10/05/2018,3434506-00001713,"3,783.94",NSL LTD.
Regeneration and Local Services,Transport and Contracted Services,Third Party Payments 4THIRD,430100,Rendered by Private Contractors,10/05/2018,3434506-00001714,"2,496.90",NSL LTD.
Regeneration and Local Services,Economic Development and Housing,Supplies and Services,352001,Conference Expenses,10/05/2018,3434508-INV-OCEAN-MEDIA-C0000-925,920.00,OCEAN MEDIA GROUP LTD.
Regeneration and Local Services,Technical Services,Supplies and Services,304221,Equipment and Materials,10/05/2018,3434537-108269,550.00,PROTECTOR SECURITY GROUP LTD.
Regeneration and Local Services,Technical Services,Supplies and Services,304221,Equipment and Materials,10/05/2018,3434537-108462,550.00,PROTECTOR SECURITY GROUP LTD.
Regeneration and Local Services,Technical Services,Supplies and Services,304221,Equipment and Materials,10/05/2018,3434537-109021,550.00,PROTECTOR SECURITY GROUP LTD.
Regeneration and Local Services,Technical Services,Supplies and Services,304221,Equipment and Materials,10/05/2018,3434537-109154,550.00,PROTECTOR SECURITY GROUP LTD.
Regeneration and Local Services,Technical Services,Third Party Payments 4THIRD,430100,Rendered by Private Contractors,10/05/2018,3434537-106363,550.00,PROTECTOR SECURITY GROUP LTD.
Regeneration and Local Services,Technical Services,Third Party Payments 4THIRD,430100,Rendered by Private Contractors,10/05/2018,3434537-106514,550.00,PROTECTOR SECURITY GROUP LTD.
Regeneration and Local Services,Technical Services,Third Party Payments 4THIRD,430100,Rendered by Private Contractors,10/05/2018,3434537-106752,550.00,PROTECTOR SECURITY GROUP LTD.
Regeneration and Local Services,Culture & Sport,Supplies and Services,384237,Miscellaneous Expenses,10/05/2018,3434546-7140008078,895.00,RIVERSIDE EVENTS LLP.
Regeneration and Local Services,Business Support,Supplies and Services,340001,Postages E340,10/05/2018,3434553-9056327848,"1,340.24",ROYAL MAIL GROUP PLC.
Regeneration and Local Services,Economic Development and Housing,Supplies and Services,384437,Miscellaneous Expenses,10/05/2018,3434585-50144,"3,005.17",STANLEY TRAVEL (NORTH EAST) LTD.
Regeneration and Local Services,Technical Services,Supplies and Services,304221,Equipment and Materials,10/05/2018,3434626-185739,739.52,TYNEDALE ROADSTONE LTD.
Regeneration and Local Services,Technical Services,Supplies and Services,304221,Equipment and Materials,10/05/2018,3434626-185741,778.88,TYNEDALE ROADSTONE LTD.
Regeneration and Local Services,Technical Services,Third Party Payments 4THIRD,430100,Rendered by Private Contractors,10/05/2018,3434629-22145,"16,030.60",UNIVERSAL SEALANTS (UK) LTD.
Regeneration and Local Services,Culture & Sport,Supplies and Services,332029,Printing Stationery and Gen Off Exps,10/05/2018,3434637-4143,"1,500.00",VISIT COUNTY DURHAM LTD.
Transformation and Partnerships,Partnerships & Community Engagement Div.,Cap Exp on Grants & Other Financial Assistance (REFCUS),918004,Contributions to other bodies 918004,10/05/2018,3434427-VOUCHER17NB-SPEN006,"3,875.00",KIRK MERRINGTON COMMUNITY ASSOCIATION.
Transformation and Partnerships,Partnerships & Community Engagement Div.,Supplies and Services,384086,Miscellaneous Expenses,10/05/2018,3434432-VOUCHER18NB-DVLY001,"7,500.00",LEADGATE CRICKET CLUB.
Transformation and Partnerships,Comms & Information Management,Supplies and Services,384540,Miscellaneous Expenses,10/05/2018,3434540-0000064286,"1,200.00",RATCLIFFE MEDIA LTD T/A ADVERTA.
Adult and Health Services,Head of Adults,Transport,230005,Contract Hire,11/05/2018,3434696-03745,576.00,ATLAS TAXIS CONSETT.
Adult and Health Services,Public Health,Third Party Payments 4THIRD,460802,Contract Payments,11/05/2018,3434716-A83025IUCDQ317/18,"4,602.39",BISHOPGATE MEDICAL CENTRE.
Adult and Health Services,Head of Adults,Employees,080025,Agency Staff,11/05/2018,3434780-1054763,"149,742.79",DE POEL MANAGED SERVICES LTD.
Adult and Health Services,Head of Adults,Supplies and Services,338066,Services,11/05/2018,3434788-0405201811052018,"1,958.39",DR IMRAN MUNIR.
Adult and Health Services,Head of Adults,Supplies and Services,338066,Services,11/05/2018,3434789-0405201811052018,545.03,DR STEPHEN WILKINSON.
Adult and Health Services,Head of Adults,Transport,230005,Contract Hire,11/05/2018,3434800-T11,600.00,ELITE TAXIS.
Adult and Health Services,Head of Adults,Transport,230005,Contract Hire,11/05/2018,3434821-100826,"1,220.00",G & P JOHNSON LTD T/A NIGHTINGALE COACHES.
Adult and Health Services,Public Health,Third Party Payments 4THIRD,460803,Contract Payments,11/05/2018,3434835-DCC043,"41,251.83",HARBOUR SUPPORT SERVICES.
Adult and Health Services,Head of Adults,Transport,230005,Contract Hire,11/05/2018,3434959-63,"1,600.00",MR JOHN KNIGHTON T/A JK TAXIS.
Adult and Health Services,Head of Adults,Supplies and Services,338066,Services,11/05/2018,3435026-0405201811052018,"3,820.01",PSYCH ONE LTD.
Adult and Health Services,Head of Adults,Supplies and Services,338066,Services,11/05/2018,3435064-0405201811052018,534.54,SHAN MEDICAL SERVICES LTD.
Adult and Health Services,Commissioning inc Supporting People,Transport,240045,Car allowances E240,11/05/2018,3435098-8308,"6,398.43",SUPPORTIVE SRC LTD.
Adult and Health Services,Head of Adults,Transport,230005,Contract Hire,11/05/2018,3435166-1136,"1,440.00",WAYNE`S TAXIS.
Children and Young Peoples Services,Head of Education,Transport,230007,Contract Hire,11/05/2018,3434682-DCC019,"1,246.08",ALSTON ROAD GARAGE.
Children and Young Peoples Services,Head of Education,Transport,230007,Contract Hire,11/05/2018,3434682-DCC019-3035,548.90,ALSTON ROAD GARAGE.
Children and Young Peoples Services,Head of Education,Transport,230007,Contract Hire,11/05/2018,3434682-DCC019-3037,863.50,ALSTON ROAD GARAGE.
Children and Young Peoples Services,Head of Education,Transport,230007,Contract Hire,11/05/2018,3434682-DCC019-3273,599.00,ALSTON ROAD GARAGE.
Children and Young Peoples Services,Head of Education,Transport,230007,Contract Hire,11/05/2018,3434682-DCC019-6014,"1,303.50",ALSTON ROAD GARAGE.
Children and Young Peoples Services,Head of Education,Transport,230006,Contract Hire,11/05/2018,3434685-3/18-F719,576.00,ANGIE`S TAXIS.
Children and Young Peoples Services,Head of Education,Transport,230008,Contract Hire,11/05/2018,3434695-DCC05APRIL18,"1,039.50",ATLAS TAXIS BISHOP AUCKLAND.
Children and Young Peoples Services,Head of Education,Transport,230008,Contract Hire,11/05/2018,3434695-DCC10APR18,"1,120.00",ATLAS TAXIS BISHOP AUCKLAND.
Children and Young Peoples Services,Head of Education,Transport,230008,Contract Hire,11/05/2018,3434695-DCC1APRIL18,709.50,ATLAS TAXIS BISHOP AUCKLAND.
Children and Young Peoples Services,Head of Education,Transport,230008,Contract Hire,11/05/2018,3434695-DCC1MARCH18,"1,620.95",ATLAS TAXIS BISHOP AUCKLAND.
Children and Young Peoples Services,Head of Education,Transport,230008,Contract Hire,11/05/2018,3434695-DCC4APRIL18,979.00,ATLAS TAXIS BISHOP AUCKLAND.
Children and Young Peoples Services,Head of Education,Transport,230008,Contract Hire,11/05/2018,3434695-DCC6APR18,"1,485.00",ATLAS TAXIS BISHOP AUCKLAND.
Children and Young Peoples Services,Head of Education,Transport,230008,Contract Hire,11/05/2018,3434695-DCC7APR18,990.00,ATLAS TAXIS BISHOP AUCKLAND.
Children and Young Peoples Services,Head of Education,Transport,230007,Contract Hire,11/05/2018,3434696-03743,924.50,ATLAS TAXIS CONSETT.
Children and Young Peoples Services,Head of Education,Transport,230007,Contract Hire,11/05/2018,3434696-03752,771.60,ATLAS TAXIS CONSETT.
Children and Young Peoples Services,Head of Education,Transport,230009,Contract Hire,11/05/2018,3434696-03749,506.00,ATLAS TAXIS CONSETT.
Children and Young Peoples Services,Head of Education,Transport,230004,Contract Hire,11/05/2018,3434696-03748,506.00,ATLAS TAXIS CONSETT.
Children and Young Peoples Services,Head of Education,Transport,230006,Contract Hire,11/05/2018,3434698-8-F686,675.20,B&C YELLOWCAB TAXI`S.
Children and Young Peoples Services,Head of Education,Transport,230007,Contract Hire,11/05/2018,3434719-2000,"1,430.00",BOB SMITH COACHES.
Children and Young Peoples Services,Head of Education,Transport,230008,Contract Hire,11/05/2018,3434726-BZ00255,649.00,BREZ`S TAXIS.
Children and Young Peoples Services,Head of Education,Transport,230008,Contract Hire,11/05/2018,3434771-N069/APR/18,"1,043.90",CRAIG RAMSHAW T/A CRAIG`S CABS.
Children and Young Peoples Services,Head of Education,Transport,230006,Contract Hire,11/05/2018,3434775-1572,969.00,DA TAXIS.
Children and Young Peoples Services,Head of Education,Transport,230016,Contract Hire,11/05/2018,3434802-E122/0418,649.00,ELLIOTTS OF TRIMDON.
Children and Young Peoples Services,Head of Education,Transport,230008,Contract Hire,11/05/2018,3434802-E014/0418,"1,134.10",ELLIOTTS OF TRIMDON.
Children and Young Peoples Services,Head of Education,Transport,230008,Contract Hire,11/05/2018,3434810-N042-008,"1,045.00",FERRYHILL VILLAGE TRAVEL.
Children and Young Peoples Services,Head of Education,Transport,230008,Contract Hire,11/05/2018,3434810-N060-019,"1,440.00",FERRYHILL VILLAGE TRAVEL.
Children and Young Peoples Services,Head of Education,Transport,230008,Contract Hire,11/05/2018,3434817-1804,990.00,FRANK ATKINSON T/A FJ MINIBUS TRAVEL.
Children and Young Peoples Services,Head of Looked After Provision Permanence and Care Leavers,Premises,108099,Service Repairs and Maintenance,11/05/2018,3434831-CD970163102,"12,895.92",GRAHAM ENVIRONMENTAL SERVICES.*
Children and Young Peoples Services,Head of Education,Transport,230008,Contract Hire,11/05/2018,3434837-HT328,990.00,HARRY`S TAXI`S.
Children and Young Peoples Services,Head of Education,Transport,230008,Contract Hire,11/05/2018,3434837-HT329,"1,122.00",HARRY`S TAXI`S.
Children and Young Peoples Services,Head of Education,Transport,230008,Contract Hire,11/05/2018,3434837-HT330,660.00,HARRY`S TAXI`S.
Children and Young Peoples Services,Head of Education,Transport,230008,Contract Hire,11/05/2018,3434837-HT331,"1,430.00",HARRY`S TAXI`S.
Children and Young Peoples Services,Head of Education,Transport,230008,Contract Hire,11/05/2018,3434837-HT332,"1,300.00",HARRY`S TAXI`S.
Children and Young Peoples Services,Head of Education,Transport,230008,Contract Hire,11/05/2018,3434854-1305,"1,012.00",JDS PRIVATE HIRE DURHAM.
Children and Young Peoples Services,Head of Education,Transport,230008,Contract Hire,11/05/2018,3434867-08-N058,"1,920.00",KD TAXIS.
Children and Young Peoples Services,Head of Education,Transport,230008,Contract Hire,11/05/2018,3434867-08-N083,935.00,KD TAXIS.
Children and Young Peoples Services,Head of Education,Transport,230007,Contract Hire,11/05/2018,3434890-5083,"1,089.00",LEE`S COACHES LTD.
Children and Young Peoples Services,Head of Education,Transport,230003,Contract Hire,11/05/2018,3434890-5084,"1,419.00",LEE`S COACHES LTD.
Children and Young Peoples Services,Head of Education,Transport,230008,Contract Hire,11/05/2018,3434903-000022,"1,560.00",MARK HUSBAND T/A TEAK`S TAXIS.
Children and Young Peoples Services,Head of Education,Transport,230008,Contract Hire,11/05/2018,3434915-00945,"1,682.00",MICHAELS TRAVEL.
Children and Young Peoples Services,Head of Education,Transport,230007,Contract Hire,11/05/2018,3434918-0131,616.00,MICKS TAXIS - MURTON.
Children and Young Peoples Services,Head of Education,Transport,230008,Contract Hire,11/05/2018,3434955-Z12,"1,000.00",MR G FREELAND T/A HUNWICK CARS.
Children and Young Peoples Services,Head of Education,Transport,230007,Contract Hire,11/05/2018,3434957-152-99-25,539.00,MR GS ANDERSON.
Children and Young Peoples Services,Head of Education,Transport,230008,Contract Hire,11/05/2018,3434957-151-98-24,797.50,MR GS ANDERSON.
Children and Young Peoples Services,Head of Education,Transport,230008,Contract Hire,11/05/2018,3434959-64,825.00,MR JOHN KNIGHTON T/A JK TAXIS.
Children and Young Peoples Services,Head of Education,Supplies and Services,338027,Services,11/05/2018,3434961-EDD0002,"1,251.20",MR KIRK BIZLEY (CONSULTANT).
Children and Young Peoples Services,Head of Education,Transport,230007,Contract Hire,11/05/2018,3434964-1626,550.00,MR PETER YOUNG.
Children and Young Peoples Services,Head of Education,Transport,230012,Contract Hire,11/05/2018,3434964-1627,637.20,MR PETER YOUNG.
Children and Young Peoples Services,Head of Education,Transport,230008,Contract Hire,11/05/2018,3434967-3022,769.00,MR S BOWERS T/A DH7 TAXIS.
Children and Young Peoples Services,Head of Education,Transport,230008,Contract Hire,11/05/2018,3434996-7371,983.40,OVERLANDER LTD.
Children and Young Peoples Services,Head of Education,Transport,230008,Contract Hire,11/05/2018,3435007-DCC189,"1,661.00",PAUL`S TAXIS..
Children and Young Peoples Services,Head of Education,Transport,230008,Contract Hire,11/05/2018,3435012-1-30/4/18,630.00,PHILS TAXIS.
Children and Young Peoples Services,Head of Education,Transport,230006,Contract Hire,11/05/2018,3435031-17180,548.00,RAPID MINIBUSES.
Children and Young Peoples Services,Head of Education,Transport,230016,Contract Hire,11/05/2018,3435031-17189,900.00,RAPID MINIBUSES.
Children and Young Peoples Services,Head of Education,Transport,230008,Contract Hire,11/05/2018,3435031-17181,748.00,RAPID MINIBUSES.
Children and Young Peoples Services,Head of Education,Transport,230008,Contract Hire,11/05/2018,3435031-17182,819.06,RAPID MINIBUSES.
Children and Young Peoples Services,Head of Education,Transport,230008,Contract Hire,11/05/2018,3435031-17184,918.06,RAPID MINIBUSES.
Children and Young Peoples Services,Head of Education,Transport,230008,Contract Hire,11/05/2018,3435044-1461,"1,320.00",ROAD RUNNERS (NE) LTD.
Children and Young Peoples Services,Head of Education,Transport,230008,Contract Hire,11/05/2018,3435044-1465,792.00,ROAD RUNNERS (NE) LTD.
Children and Young Peoples Services,Head of Education,Transport,230008,Contract Hire,11/05/2018,3435044-1470,"1,922.00",ROAD RUNNERS (NE) LTD.
Children and Young Peoples Services,Head of Education,Transport,230007,Contract Hire,11/05/2018,3435046-ROXDCC42,880.00,ROXBYS BUS HIRE.
Children and Young Peoples Services,Head of Education,Transport,230008,Contract Hire,11/05/2018,3435065-007-30/4/18,770.00,SHOEY`S TAXIS.
Children and Young Peoples Services,Head of Education,Transport,230008,Contract Hire,11/05/2018,3435076-CEDARHOUSE2493,650.00,SPENNYMOOR TAXIS.
Children and Young Peoples Services,Head of Education,Transport,230007,Contract Hire,11/05/2018,3435088-50286,"1,914.00",STANLEY TRAVEL (NORTH EAST) LTD.
Children and Young Peoples Services,Head of Education,Transport,230007,Contract Hire,11/05/2018,3435088-50293,548.90,STANLEY TRAVEL (NORTH EAST) LTD.
Children and Young Peoples Services,Head of Education,Transport,230003,Contract Hire,11/05/2018,3435088-50287,910.47,STANLEY TRAVEL (NORTH EAST) LTD.
Children and Young Peoples Services,Head of Education,Transport,230003,Contract Hire,11/05/2018,3435088-50288,705.87,STANLEY TRAVEL (NORTH EAST) LTD.
Children and Young Peoples Services,Head of Education,Transport,230003,Contract Hire,11/05/2018,3435088-50289,910.47,STANLEY TRAVEL (NORTH EAST) LTD.
Children and Young Peoples Services,Head of Education,Transport,230003,Contract Hire,11/05/2018,3435088-50290,910.47,STANLEY TRAVEL (NORTH EAST) LTD.
Children and Young Peoples Services,Head of Education,Transport,230003,Contract Hire,11/05/2018,3435088-50291,910.47,STANLEY TRAVEL (NORTH EAST) LTD.
Children and Young Peoples Services,Head of Education,Transport,230003,Contract Hire,11/05/2018,3435088-50292,812.57,STANLEY TRAVEL (NORTH EAST) LTD.
Children and Young Peoples Services,Head of Early Help Assessment and Safeguarding,Transport,240045,Car allowances E240,11/05/2018,3435098-8234,"73,305.66",SUPPORTIVE SRC LTD.
Children and Young Peoples Services,Head of Education,Transport,230008,Contract Hire,11/05/2018,3435102-1523-W061APR18,927.00,TALBOTS TAXIS.
Children and Young Peoples Services,Head of Education,Transport,230008,Contract Hire,11/05/2018,3435103-B942,792.00,TALBOTS TRAVEL LTD.
Children and Young Peoples Services,Head of Education,Transport,230007,Contract Hire,11/05/2018,3435104-004,759.00,TAXZ.
Children and Young Peoples Services,Head of Education,Transport,230009,Contract Hire,11/05/2018,3435104-005,715.00,TAXZ.
Children and Young Peoples Services,Head of Education,Transport,230007,Contract Hire,11/05/2018,3435113-10004,"1,650.00",TED WILFORD COACHES.
Children and Young Peoples Services,Head of Education,Transport,230006,Contract Hire,11/05/2018,3435130-0001963,770.00,TONY RIDLEY T/A COLORS TAXIS LTD.
Children and Young Peoples Services,Head of Education,Transport,230008,Contract Hire,11/05/2018,3435166-1135-W049APR18,"1,320.00",WAYNE`S TAXIS.
Children and Young Peoples Services,Head of Education,Transport,230007,Contract Hire,11/05/2018,3435169-4156/04/18,"1,265.00",WEARDALE MOTOR SERVICES LTD.
Dedicated Schools Grant,DSG High Needs Block,Transport,230009,Contract Hire,11/05/2018,3434669-APRIL03,627.00,A & P TAXIS.
Dedicated Schools Grant,DSG High Needs Block,Transport,230009,Contract Hire,11/05/2018,3434696-03753,511.20,ATLAS TAXIS CONSETT.
Dedicated Schools Grant,DSG High Needs Block,Third Party Payments 4THIRD,410037,Rendered by Other Local Authorities,11/05/2018,3434700-2017/18-HLPS05,"7,378.10",BALMORAL LEARNING TRUST T/A HETTON LYONS PRIMARY SCHOOL.
Dedicated Schools Grant,DSG High Needs Block,Transport,230010,Contract Hire,11/05/2018,3434810-PF009-006,506.00,FERRYHILL VILLAGE TRAVEL.
Dedicated Schools Grant,DSG High Needs Block,Transport,230010,Contract Hire,11/05/2018,3435006-B005,"1,410.00",PAUL WILSON.
Dedicated Schools Grant,DSG High Needs Block,Transport,230010,Contract Hire,11/05/2018,3435099-00-B022APRIL,894.00,SUSAN`S CARS.
Regeneration and Local Services,Direct Services,Third Party Payments 4THIRD,430100,Rendered by Private Contractors,11/05/2018,3434675-38264578-61,"3,892.00",ADT FIRE & SECURITY PLC.
Regeneration and Local Services,Technical Services,Supplies and Services,304221,Equipment and Materials,11/05/2018,3434676-26412600,"1,525.00",AGGREGATE INDUSTRIES UK LTD.
Regeneration and Local Services,Direct Services,Construction work A908,908105,Construction work,11/05/2018,3434678-161337,"1,920.00",ALBANY OFFICE EQUIPMENT (WHOLESALE) LTD.
Regeneration and Local Services,Direct Services,Construction work A908,908105,Construction work,11/05/2018,3434678-161836,"3,160.00",ALBANY OFFICE EQUIPMENT (WHOLESALE) LTD.
Regeneration and Local Services,Direct Services,Construction work A908,908105,Construction work,11/05/2018,3434678-162014,790.00,ALBANY OFFICE EQUIPMENT (WHOLESALE) LTD.
Regeneration and Local Services,Direct Services,Construction work A908,908105,Construction work,11/05/2018,3434678-162028,"1,254.00",ALBANY OFFICE EQUIPMENT (WHOLESALE) LTD.
Regeneration and Local Services,Spatial Policy Planning Assets & Environment,Cap Exp on Grants & Other Financial Assistance (REFCUS),918501,Exp assets not owned by authority,11/05/2018,3434702-9774,"16,438.89",BARKER & BLAND LTD.
Regeneration and Local Services,Spatial Policy Planning Assets & Environment,Supplies and Services,338066,Services,11/05/2018,3434747-BURSARYMAY18,592.80,CHRISTOPHER THOMAS WATT.
Regeneration and Local Services,Technical Services,Supplies and Services,304357,Equipment and Materials,11/05/2018,3434822-DCC010418,"14,005.41",GAP GROUP LTD.
Regeneration and Local Services,Technical Services,Supplies and Services,304357,Equipment and Materials,11/05/2018,3434822-DCC080418,"13,978.88",GAP GROUP LTD.
Regeneration and Local Services,Technical Services,Supplies and Services,304357,Equipment and Materials,11/05/2018,3434822-DCC150418,"17,310.41",GAP GROUP LTD.
Regeneration and Local Services,Technical Services,Supplies and Services,304357,Equipment and Materials,11/05/2018,3434822-DCC220418,"17,736.76",GAP GROUP LTD.
Regeneration and Local Services,Spatial Policy Planning Assets & Environment,Supplies and Services,338066,Services,11/05/2018,3434905-DCC01/18,"1,060.00",MARK ROWNEY T/A ROWNEYART.
Regeneration and Local Services,Direct Services,Third Party Payments 4THIRD,430100,Rendered by Private Contractors,11/05/2018,3434972-9393,"1,094.13",N1 JETTING SYSTEMS LTD.
Regeneration and Local Services,Technical Services,Third Party Payments 4THIRD,430100,Rendered by Private Contractors,11/05/2018,3434984-DI20284783,"1,091.52",NORTHERN POWERGRID (NORTHEAST) LTD.
Regeneration and Local Services,Direct Services,Transport,215005,Running Costs of Vehicles,11/05/2018,3434992-325882,"12,182.22",OIL NRG LTD.
Regeneration and Local Services,Direct Services,Transport,215005,Running Costs of Vehicles,11/05/2018,3434992-326330,"5,888.77",OIL NRG LTD.
Regeneration and Local Services,Direct Services,Transport,215022,Running Costs of Vehicles,11/05/2018,3434992-325883,"2,215.45",OIL NRG LTD.
Regeneration and Local Services,Technical Services,Third Party Payments 4THIRD,430100,Rendered by Private Contractors,11/05/2018,3435015-5085,"42,109.97",PINKNEY BUILDING CONTRACTORS LTD.
Regeneration and Local Services,Technical Services,Supplies and Services,304221,Equipment and Materials,11/05/2018,3435025-109248,550.00,PROTECTOR SECURITY GROUP LTD.
Regeneration and Local Services,Culture & Sport,Supplies and Services,338047,Services,11/05/2018,3435027-SIN009342,"1,310.00",QDOS ENTERTAINMENT (PANTOMINES) LTD
Regeneration and Local Services,Direct Services,Transport,230005,Contract Hire,11/05/2018,3435042-IV400466,"4,600.00",RIVERSIDE TRUCK RENTAL LTD (RTR).
Regeneration and Local Services,Direct Services,Transport,230005,Contract Hire,11/05/2018,3435042-IV400682,"2,625.00",RIVERSIDE TRUCK RENTAL LTD (RTR).
Regeneration and Local Services,Business Support,Supplies and Services,340001,Postages E340,11/05/2018,3435047-9056245005,"2,201.97",ROYAL MAIL GROUP PLC.
Regeneration and Local Services,Direct Services,Supplies and Services,338078,Services,11/05/2018,3435054-8455,"1,579.00",SAFEGUARD SECURITY (NE) LTD.
Regeneration and Local Services,Economic Development and Housing,Construction work A908,908105,Construction work,11/05/2018,3435080-6178,"24,330.00",ST ASTIER LTD.
Regeneration and Local Services,Culture & Sport,Supplies and Services,338047,Services,11/05/2018,3435138-00030119,664.83,TRAFALGAR RELEASING LTD.
Regeneration and Local Services,Transport and Contracted Services,Third Party Payments 4THIRD,430100,Rendered by Private Contractors,11/05/2018,3435139-RED-05-2018-083,"8,000.00",TRAFFIC ENFORCEMENT CENTRE (TEC).
Regeneration and Local Services,Direct Services,Transport,230005,Contract Hire,11/05/2018,3435146-9HP6609,540.12,TURNER HIRE DRIVE.
Regeneration and Local Services,Culture & Sport,Supplies and Services,338047,Services,11/05/2018,3435147-GB17B0124815,"2,082.13",TWENTIETH CENTURY FOX FILM COMPANY LTD.
Regeneration and Local Services,Culture & Sport,Supplies and Services,338047,Services,11/05/2018,3435147-GB17B0125491,753.86,TWENTIETH CENTURY FOX FILM COMPANY LTD.
Regeneration and Local Services,Culture & Sport,Supplies and Services,338047,Services,11/05/2018,3435147-GB17B0125492,"1,301.44",TWENTIETH CENTURY FOX FILM COMPANY LTD.
Regeneration and Local Services,Culture & Sport,Supplies and Services,338047,Services,11/05/2018,3435147-GB17B0128676,538.54,TWENTIETH CENTURY FOX FILM COMPANY LTD.
Regeneration and Local Services,Culture & Sport,Supplies and Services,338047,Services,11/05/2018,3435147-GB17B0136161,607.03,TWENTIETH CENTURY FOX FILM COMPANY LTD.
Regeneration and Local Services,Culture & Sport,Supplies and Services,338047,Services,11/05/2018,3435147-GB17B0145228,"5,196.62",TWENTIETH CENTURY FOX FILM COMPANY LTD.
Regeneration and Local Services,Culture & Sport,Supplies and Services,338047,Services,11/05/2018,3435147-GB17B0146679,"2,893.00",TWENTIETH CENTURY FOX FILM COMPANY LTD.
Regeneration and Local Services,Culture & Sport,Supplies and Services,338047,Services,11/05/2018,3435147-GB17B0147553,803.65,TWENTIETH CENTURY FOX FILM COMPANY LTD.
Regeneration and Local Services,Culture & Sport,Supplies and Services,338047,Services,11/05/2018,3435147-GB17B0151272,700.97,TWENTIETH CENTURY FOX FILM COMPANY LTD.
Regeneration and Local Services,Culture & Sport,Supplies and Services,338047,Services,11/05/2018,3435147-GB18B0004415,859.14,TWENTIETH CENTURY FOX FILM COMPANY LTD.
Regeneration and Local Services,Culture & Sport,Supplies and Services,338047,Services,11/05/2018,3435147-GB18B0026348,506.17,TWENTIETH CENTURY FOX FILM COMPANY LTD.
Regeneration and Local Services,Culture & Sport,Supplies and Services,338047,Services,11/05/2018,3435147-GB18B0037434,"1,309.35",TWENTIETH CENTURY FOX FILM COMPANY LTD.
Regeneration and Local Services,Culture & Sport,Supplies and Services,338047,Services,11/05/2018,3435147-GB18B0059340,594.48,TWENTIETH CENTURY FOX FILM COMPANY LTD.
Regeneration and Local Services,Culture & Sport,Supplies and Services,338047,Services,11/05/2018,3435147-GB18B0083773,513.08,TWENTIETH CENTURY FOX FILM COMPANY LTD.
Regeneration and Local Services,Economic Development and Housing,Supplies and Services,384871,Miscellaneous Expenses,11/05/2018,3435149-2677,"1,400.00",UK DRIVER CPC NETWORK LTD.
Regeneration and Local Services,Culture & Sport,Supplies and Services,384956,Miscellaneous Expenses,11/05/2018,3435150-UKAMEM/66787,"3,407.50",UKACTIVE.
Regeneration and Local Services,Direct Services,Transport,210057,Repair and Maintenance of Vehicles,11/05/2018,3435156-INV480892,694.93,VERSALIFT DISTRIBUTORS (UK) LTD.
Regeneration and Local Services,Direct Services,Third Party Payments 4THIRD,430100,Rendered by Private Contractors,11/05/2018,3435181-113932,"1,891.56",ZOELLER WASTE SYSTEMS LTD.
Regeneration and Local Services,Direct Services,Third Party Payments 4THIRD,430100,Rendered by Private Contractors,11/05/2018,3435181-113933,899.25,ZOELLER WASTE SYSTEMS LTD.
Regeneration and Local Services,Direct Services,Third Party Payments 4THIRD,430100,Rendered by Private Contractors,11/05/2018,3435181-113983,574.12,ZOELLER WASTE SYSTEMS LTD.
Regeneration and Local Services,Direct Services,Third Party Payments 4THIRD,430100,Rendered by Private Contractors,11/05/2018,3435181-114014,836.00,ZOELLER WASTE SYSTEMS LTD.
Regeneration and Local Services,Direct Services,Third Party Payments 4THIRD,430100,Rendered by Private Contractors,11/05/2018,3435181-114409,"1,663.45",ZOELLER WASTE SYSTEMS LTD.
Resources,Digital and Customer Services,Supplies and Services,384199,Miscellaneous Expenses,11/05/2018,3434739-92689,"3,986.00",CENTRAL POWER SERVICES LTD (CPS).
Transformation and Partnerships,Partnerships & Community Engagement Div.,Cap Exp on Grants & Other Financial Assistance (REFCUS),918004,Contributions to other bodies 918004,11/05/2018,3434717-VOUCHER17NB-EDUR015,"4,652.00",BLACKHALL COMMUNITY ASSOCIATION.
Transformation and Partnerships,Partnerships & Community Engagement Div.,Supplies and Services,384199,Miscellaneous Expenses,11/05/2018,3434828-JO0214,552.30,GLEBE CENTRE ENTERPRISES LTD.
Transformation and Partnerships,Partnerships & Community Engagement Div.,Supplies and Services,338094,Services,11/05/2018,3435120-GT3304,600.00,THE GREENHOUSE COMPANY (GROUNDWORK) LTD.
Transformation and Partnerships,Partnerships & Community Engagement Div.,Supplies and Services,338094,Services,11/05/2018,3435178-718,650.00,XCEL CONFERENCE & EVENTS (INNOVATE COUNTY DURHAM) LTD.
Transformation and Partnerships,Partnerships & Community Engagement Div.,Supplies and Services,338094,Services,11/05/2018,3435178-731,"3,760.00",XCEL CONFERENCE & EVENTS (INNOVATE COUNTY DURHAM) LTD.
Dedicated Schools Grant,DSG Early Years Block,Transfer Payments,510032,School Children,14/05/2018,3435569-7380,760.50,REDACTED - PAYMENT TO INDIVIDUAL
Dedicated Schools Grant,DSG Early Years Block,Transfer Payments,510032,School Children,14/05/2018,3435594-7533,731.25,REDACTED - PAYMENT TO INDIVIDUAL
Dedicated Schools Grant,DSG Early Years Block,Transfer Payments,510032,School Children,14/05/2018,3435633-7223,"1,243.13",REDACTED - PAYMENT TO INDIVIDUAL
Dedicated Schools Grant,DSG Early Years Block,Transfer Payments,510032,School Children,14/05/2018,3435639-7455,716.30,REDACTED - PAYMENT TO INDIVIDUAL
Adult and Health Services,Head of Adults,Transport,230005,Contract Hire,14/05/2018,3435188-AA1508,"1,067.40",AA MINIBUS HIRE.
Adult and Health Services,Head of Adults,Supplies and Services,308011,Furniture,14/05/2018,3435194-10542,958.00,AH & D CUTHBERTSON LTD.
Adult and Health Services,Head of Adults,Supplies and Services,344137,Telephones,14/05/2018,3435716-24843,554.00,RUSSELL TELECOM LTD.
Adult and Health Services,Public Health,Third Party Payments 4THIRD,460803,Contract Payments,14/05/2018,3435754-2151B,"124,166.67",SOLUTIONS 4 HEALTH.
Children and Young Peoples Services,Head of Education,Transport,230009,Contract Hire,14/05/2018,3435188-AA1497-APRIL,565.07,AA MINIBUS HIRE.
Children and Young Peoples Services,Head of Education,Transport,230016,Contract Hire,14/05/2018,3435188-AA1512,643.92,AA MINIBUS HIRE.
Children and Young Peoples Services,Head of Education,Transport,230008,Contract Hire,14/05/2018,3435188-AA1509,730.07,AA MINIBUS HIRE.
Children and Young Peoples Services,Head of Education,Transport,230006,Contract Hire,14/05/2018,3435189-L18/SX,"1,045.00",AABAT TAXIS.
Children and Young Peoples Services,Head of Education,Transport,230008,Contract Hire,14/05/2018,3435189-L8/SJ,"1,068.00",AABAT TAXIS.
Children and Young Peoples Services,Head of Education,Supplies and Services,384199,Miscellaneous Expenses,14/05/2018,3435224-116,630.00,ASPIRE TRAINING & DEVELOPMENT SOLUTIONS.
Children and Young Peoples Services,Head of Education,Transport,230006,Contract Hire,14/05/2018,3435237-0010,"1,796.00",BIRDS TAXIS LTD.
Children and Young Peoples Services,Head of Education,Supplies and Services,372009,Subscriptions E372,14/05/2018,3435282-804800219,"1,500.00",CITY & GUILDS OF LONDON INSTITUTE.
Children and Young Peoples Services,Head of Education,Supplies and Services,372009,Subscriptions E372,14/05/2018,3435282-804800220,"2,175.00",CITY & GUILDS OF LONDON INSTITUTE.
Children and Young Peoples Services,Head of Early Help Assessment and Safeguarding,Supplies and Services,338044,Services,14/05/2018,3435333-SC/CB17-2,"2,175.60",DR SUSAN COOPER.
Children and Young Peoples Services,Head of Education,Fees,901002,Professional fees,14/05/2018,3435336-8309,"1,786.60",DUNELM GEOTECHNICAL & ENVIRONMENTAL LTD.
Children and Young Peoples Services,Head of Education,Transport,230007,Contract Hire,14/05/2018,3435388-20238-3042,"1,699.50",GARNETTS LTD (COACHES).
Children and Young Peoples Services,Head of Education,Transport,230007,Contract Hire,14/05/2018,3435388-20238-3195,"1,534.50",GARNETTS LTD (COACHES).
Children and Young Peoples Services,Head of Education,Transport,230009,Contract Hire,14/05/2018,3435445-0593,688.50,JACKSON`S TAXI.
Children and Young Peoples Services,Head of Education,Transport,230008,Contract Hire,14/05/2018,3435445-0595,913.00,JACKSON`S TAXI.
Children and Young Peoples Services,Head of Education,Transport,230008,Contract Hire,14/05/2018,3435476-N012-APRIL,"1,266.00",K & R TAXIS (STANLEY).
Children and Young Peoples Services,Head of Education,Transport,230008,Contract Hire,14/05/2018,3435546-INV04/1804,"1,668.00",MARK & JOHN CHISHOLM T/A (CHEVRON).
Children and Young Peoples Services,Head of Education,Transport,230007,Contract Hire,14/05/2018,3435679-1640,"1,210.00",PAUL WATSON TRAVEL.
Children and Young Peoples Services,Head of Looked After Provision Permanence and Care Leavers,Premises,108099,Service Repairs and Maintenance,14/05/2018,3435690-10150,"5,993.00",PREMIER CELL FIT T/A LIVEWIRE GATES & DOORS.
Children and Young Peoples Services,Head of Education,Transport,230007,Contract Hire,14/05/2018,3435787-222SB,880.00,T MOORE & SON.
Children and Young Peoples Services,Head of Early Help Assessment and Safeguarding,Premises,120009,Energy Costs,14/05/2018,3435802-607,"17,992.90",TEESDALE COMMUNITY RESOURCES (TCR) LTD.
Children and Young Peoples Services,Head of Education,Transport,230012,Contract Hire,14/05/2018,3435818-TS-18/19,660.00,TOP STAR TRAVEL.
Children and Young Peoples Services,Head of Education,Transport,230008,Contract Hire,14/05/2018,3435818-TS21/19,528.00,TOP STAR TRAVEL.
Children and Young Peoples Services,Head of Education,Transport,230008,Contract Hire,14/05/2018,3435818-TS22-08,594.00,TOP STAR TRAVEL.
Children and Young Peoples Services,Head of Education,Transport,230008,Contract Hire,14/05/2018,3435818-TS40/19,572.00,TOP STAR TRAVEL.
Children and Young Peoples Services,Head of Looked After Provision Permanence and Care Leavers,Premises,108099,Service Repairs and Maintenance,14/05/2018,3435857-10042018,760.00,WAVEFORM TECHNICAL SERVICES LTD.
Children and Young Peoples Services,Head of Early Help Assessment and Safeguarding,Third Party Payments 4THIRD,425023,Rendered by Voluntary Organisations,14/05/2018,3435866-139,"19,874.00",WITHERSLACK GROUP LTD.
Children and Young Peoples Services,Head of Early Help Assessment and Safeguarding,Third Party Payments 4THIRD,425023,Rendered by Voluntary Organisations,14/05/2018,3435866-140,"19,874.00",WITHERSLACK GROUP LTD.
Dedicated Schools Grant,DSG Early Years Block,Transfer Payments,510032,School Children,14/05/2018,3435212-7366,"1,313.82",ANN GRAY (CHILDMINDER).
Dedicated Schools Grant,DSG Early Years Block,Transfer Payments,510032,School Children,14/05/2018,3435217-7197,994.50,ANNMARIE HURTON.
Dedicated Schools Grant,DSG Early Years Block,Transfer Payments,510032,School Children,14/05/2018,3435226-7369,750.75,AUDREY COOKE (CHILDMINDER).
Dedicated Schools Grant,DSG Early Years Block,Transfer Payments,510032,School Children,14/05/2018,3435227-7198,"2,486.25",AYCLIFFE DAY NURSERY.
Dedicated Schools Grant,DSG Early Years Block,Transfer Payments,510032,School Children,14/05/2018,3435227-7370,"3,159.00",AYCLIFFE DAY NURSERY.
Dedicated Schools Grant,DSG Early Years Block,Transfer Payments,510032,School Children,14/05/2018,3435238-7201,"3,978.00",BISHOP AUCKLAND COLLEGE NURSERY.
Dedicated Schools Grant,DSG Early Years Block,Transfer Payments,510032,School Children,14/05/2018,3435238-7373,"13,455.00",BISHOP AUCKLAND COLLEGE NURSERY.
Dedicated Schools Grant,DSG Early Years Block,Transfer Payments,510032,School Children,14/05/2018,3435243-7374,"2,895.75",BOW SCHOOL & NURSERY.
Dedicated Schools Grant,DSG Early Years Block,Transfer Payments,510032,School Children,14/05/2018,3435245-7202,"5,967.00",BRANDON HAPPYTIMES DAYCARE.
Dedicated Schools Grant,DSG Early Years Block,Transfer Payments,510032,School Children,14/05/2018,3435245-7375,"2,310.75",BRANDON HAPPYTIMES DAYCARE.
Dedicated Schools Grant,DSG Early Years Block,Transfer Payments,510032,School Children,14/05/2018,3435247-7203,"5,469.75",BRIGHT STAR NURSERY.
Dedicated Schools Grant,DSG Early Years Block,Transfer Payments,510032,School Children,14/05/2018,3435247-7376,"20,355.00",BRIGHT STAR NURSERY.
Dedicated Schools Grant,DSG Early Years Block,Transfer Payments,510032,School Children,14/05/2018,3435251-7377,"5,584.32",BUSY BODIES CHILDCARE.
Dedicated Schools Grant,DSG Early Years Block,Transfer Payments,510032,School Children,14/05/2018,3435252-7378,999.38,BUTTERFLIES DAY CARE.
Dedicated Schools Grant,DSG Early Years Block,Transfer Payments,510032,School Children,14/05/2018,3435253-7205,"5,967.00",BYERLEY ROAD PRE SCHOOL.
Dedicated Schools Grant,DSG Early Years Block,Transfer Payments,510032,School Children,14/05/2018,3435253-7379,"7,795.13",BYERLEY ROAD PRE SCHOOL.
Dedicated Schools Grant,DSG Early Years Block,Transfer Payments,510032,School Children,14/05/2018,3435262-7381,750.75,CAROL WOODHEAD.
Dedicated Schools Grant,DSG Early Years Block,Transfer Payments,510032,School Children,14/05/2018,3435265-7207,"1,740.38",CASTLE KINDERGARTEN LTD.
Dedicated Schools Grant,DSG Early Years Block,Transfer Payments,510032,School Children,14/05/2018,3435265-7385,"4,738.50",CASTLE KINDERGARTEN LTD.
Dedicated Schools Grant,DSG Early Years Block,Transfer Payments,510032,School Children,14/05/2018,3435266-7208,"1,243.13",CASTLE VIEW PRIVATE DAY NURSERY LTD.
Dedicated Schools Grant,DSG Early Years Block,Transfer Payments,510032,School Children,14/05/2018,3435266-7386,"44,633.96",CASTLE VIEW PRIVATE DAY NURSERY LTD.
Dedicated Schools Grant,DSG Early Years Block,Transfer Payments,510032,School Children,14/05/2018,3435277-7551,"5,460.00",CHORISTER SCHOOL.
Dedicated Schools Grant,DSG Early Years Block,Transfer Payments,510032,School Children,14/05/2018,3435284-7210,925.65,CLAIRE COOPER (CHILDMINDER).
Dedicated Schools Grant,DSG Early Years Block,Transfer Payments,510032,School Children,14/05/2018,3435291-7392,"10,393.50",CLEVES CROSS ACADEMY.
Dedicated Schools Grant,DSG Early Years Block,Transfer Payments,510032,School Children,14/05/2018,3435296-7393,570.38,CONNIE TAYLOR.
Dedicated Schools Grant,DSG Early Years Block,Transfer Payments,510032,School Children,14/05/2018,3435300-7394,500.50,CORINNA KENT.
Dedicated Schools Grant,DSG Early Years Block,Transfer Payments,510032,School Children,14/05/2018,3435301-7395,"1,295.05",COTHERSTONE PRE SCHOOL PLAYGROUP.
Dedicated Schools Grant,DSG Early Years Block,Transfer Payments,510032,School Children,14/05/2018,3435303-7216,"2,486.25",COUNDON & LEEHOLME EARLY YEARS CENTRE LTD.
Dedicated Schools Grant,DSG Early Years Block,Transfer Payments,510032,School Children,14/05/2018,3435303-7396,"8,901.75",COUNDON & LEEHOLME EARLY YEARS CENTRE LTD.
Dedicated Schools Grant,DSG Early Years Block,Transfer Payments,510032,School Children,14/05/2018,3435306-7217,"2,734.88",CRAGHEAD CHILDCARE CENTRE.
Dedicated Schools Grant,DSG Early Years Block,Transfer Payments,510032,School Children,14/05/2018,3435306-7218,"2,768.03",CRAGHEAD CHILDCARE CENTRE.
Dedicated Schools Grant,DSG Early Years Block,Transfer Payments,510032,School Children,14/05/2018,3435306-7397,"1,733.07",CRAGHEAD CHILDCARE CENTRE.
Dedicated Schools Grant,DSG Early Years Block,Transfer Payments,510032,School Children,14/05/2018,3435306-7398,"10,803.00",CRAGHEAD CHILDCARE CENTRE.
Dedicated Schools Grant,DSG Early Years Block,Transfer Payments,510032,School Children,14/05/2018,3435335-7225,994.50,DUCKLINGS DAY NURSERY.
